Workbook

Sheet OLD PAPI_24- 27 (Delib. 246) (hidden)
A1: ID Ação | B1: Ação iniciou no PA/PI anterior? | C1: Se sim, id da ação anterior | D1: Ano previsto para início | E1: Tipo de ação | F1: É ou será empreendimento FEHIDRO? | G1: Ação requer recursos financeiros? | H1: SubPDC | I1: Prioridade do SubPDC | J1: Ação | K1: Meta | L1: % Execução da meta do quadriênio | M1: Segmento do executor | N1: Área de abrangência | O1: Nome da área de abrangência | P1: Recurso financeiro estimado no ano (R$) - Cobrança Estadual | Q1: Recurso financeiro estimado no ano (R$) - CFURH | R1: Recurso financeiro estimado no ano (R$) - Cobrança Federal | S1: Recurso financeiro estimado no ano (R$) - Outras | T1: Especificar Fonte - "Outras" | U1: Recurso financeiro estimado no ano (R$) | V1: Recurso financeiro disponibilizado no ano (R$) | W1: Recurso financeiro executado no ano (R$) | X1: Justificativa sobre execução física e financeira
A2: SID012024 | B2: Não | D2: 2024 | F2: Sim | H2: 3.1 - Efluentes | I2: Não prioritário | J2: Efetuar estudos de detalhe sobre a disponibilidade hídrica superficial e subterrânea (AG.11) | K2: MG.4 - Realizar ao menos 01 estudo que subsidie o planejamento e a gestão de recursos hídricos na UGRHi 18 | N2: Sub-bacia | O2: Sub-bacia crítica conforme classe de vazão de referência apontadas no Relatório de Situação | U2: =IF(SUM(PAPI20_22_23[[#This Row],[Recurso financeiro estimado no ano (R$) - Cobrança Estadual]:[Recurso financeiro estimado no ano (R$) - Outras]]) >0,SUM(PAPI20_22_23[[#This Row],[Recurso financeiro estimado no ano (R$) - Cobrança Estadual]:[Recurso financeiro estimado no ano (R$) - Outras]]),"") -> 
A3: SID012025 | D3: 2024 | J3: Manter o cadastro atualizado na bacia hidrográfica SJD (AG.13) | K3: MG.4 - Realizar ao menos 01 estudo para acompanhamento e adequação da cobrança pelo uso dos recursos hídricos | M3: Estado | N3: UGRHi | O3: UGRHi 18 | P3: 170000 | U3: =IF(SUM(PAPI20_22_23[[#This Row],[Recurso financeiro estimado no ano (R$) - Cobrança Estadual]:[Recurso financeiro estimado no ano (R$) - Outras]]) >0,SUM(PAPI20_22_23[[#This Row],[Recurso financeiro estimado no ano (R$) - Cobrança Estadual]:[Recurso financeiro estimado no ano (R$) - Outras]]),"") -> 170000
A4: SID012024 | J4: Execução de obras de sistemas de esgotamento sanitário, bem como de tratamento de efluentes provenientes de ETE (AI.3, 4, 5 e 6) | K4: MI. 2 e 3 - Efetuar melhorias nos sistemas de tratamento de esgoto em ao menos 02 municípios | M4: Município | N4: Município | O4: Municípios da UGRHi 18 que apresentem proporção de redução da carga orgânica poluidora domestica ≤ 80%. | P4: 260000 | U4: =IF(SUM(PAPI20_22_23[[#This Row],[Recurso financeiro estimado no ano (R$) - Cobrança Estadual]:[Recurso financeiro estimado no ano (R$) - Outras]]) >0,SUM(PAPI20_22_23[[#This Row],[Recurso financeiro estimado no ano (R$) - Cobrança Estadual]:[Recurso financeiro estimado no ano (R$) - Outras]]),"") -> 260000
A5: SID042022 | J5: Execução de obras e projetos (AI 8 e 9) nos casos em que haja comprometimento dos recursos hídricos | K5: MI.4 - Efetuar melhorias nos sistemas de aterros sanitários em ao menos 02 municípios | M5: Município | N5: Município | O5: Municípios com sistema de tratamento e coleta de resíduos sólidos ineficientes, conforme consta no Rel. Situação. | P5: 250000 | U5: =IF(SUM(PAPI20_22_23[[#This Row],[Recurso financeiro estimado no ano (R$) - Cobrança Estadual]:[Recurso financeiro estimado no ano (R$) - Outras]]) >0,SUM(PAPI20_22_23[[#This Row],[Recurso financeiro estimado no ano (R$) - Cobrança Estadual]:[Recurso financeiro estimado no ano (R$) - Outras]]),"") -> 250000
A6: SID052022 | J6: Execução de obras ou projetos que controle a erosão do solo ou assoreamento dos corpos d’água, em áreas urbanas ou rurais (AI. 14, 15 e 16) | K6: MI. 6 e MI. 7 - Aprimorar sistemas de conservação do solo e controle de erosão em ao menos 03 municípios | M6: Município | N6: Município | O6: Municípios com Plano de Drenagem ou Plano Diretor de Erosão elaborado | Q6: 288866.7 | U6: =IF(SUM(PAPI20_22_23[[#This Row],[Recurso financeiro estimado no ano (R$) - Cobrança Estadual]:[Recurso financeiro estimado no ano (R$) - Outras]]) >0,SUM(PAPI20_22_23[[#This Row],[Recurso financeiro estimado no ano (R$) - Cobrança Estadual]:[Recurso financeiro estimado no ano (R$) - Outras]]),"") -> 288866.7
A7: SID062022 | J7: Implementação das açoes indicadas no Plano de Saneamento (AI.11 e 12) (troca de hidrômetros, manutenção de rede, instalação de válvulas redutoras de pressão, entre outros) | K7: MI.5 - Reduzir perdas em sistemas de abastecimento de água em ao menos 02 municípios | M7: Município | N7: Município | O7: Ilha Solteira, Santa Fé do Sul, Suzanápolis, São João de Iracema e Neves Paulista | P7: 170000 | U7: =IF(SUM(PAPI20_22_23[[#This Row],[Recurso financeiro estimado no ano (R$) - Cobrança Estadual]:[Recurso financeiro estimado no ano (R$) - Outras]]) >0,SUM(PAPI20_22_23[[#This Row],[Recurso financeiro estimado no ano (R$) - Cobrança Estadual]:[Recurso financeiro estimado no ano (R$) - Outras]]),"") -> 170000
A8: SID072022 | J8: Execução de obras ou projetos de galerias de águas pluviais e canalização de curso d'água em área urbana e periurbana (AI.17, AI. 21, 22 e 23 ) | K8: MI. 7 e MI. 9 - Realizar melhorias nos sistemas de drenagem em ao menos 02 municípios | M8: Município | N8: Município | O8: Obras indicadas no Plano/Estudo de Drenagem no Município e para Projetos com necessidades de readequação/ampliação | Q8: 200000 | U8: =IF(SUM(PAPI20_22_23[[#This Row],[Recurso financeiro estimado no ano (R$) - Cobrança Estadual]:[Recurso financeiro estimado no ano (R$) - Outras]]) >0,SUM(PAPI20_22_23[[#This Row],[Recurso financeiro estimado no ano (R$) - Cobrança Estadual]:[Recurso financeiro estimado no ano (R$) - Outras]]),"") -> 200000
A9: SID082022 | J9: Orientação aos produtores rurais quanto à importância da outorga e treinamento/capacitação sobre os procedimentos de outorga e licenciamento ambiental (AG.25) | K9: MG.9. Realizar ao menos 1 curso de capacitação técnica relacionada ao planejamento e gestão de recursos hídricos | N9: UGRHi | O9: UGRHi 18 | P9: 150000 | U9: =IF(SUM(PAPI20_22_23[[#This Row],[Recurso financeiro estimado no ano (R$) - Cobrança Estadual]:[Recurso financeiro estimado no ano (R$) - Outras]]) >0,SUM(PAPI20_22_23[[#This Row],[Recurso financeiro estimado no ano (R$) - Cobrança Estadual]:[Recurso financeiro estimado no ano (R$) - Outras]]),"") -> 150000 | V9: 150000 | W9: 0 | X9: empreendimento não iniciado - emitiu o contrato
A10: SID012023 | J10: Realizar estudo/diagnóstico ambiental das nascentes, por sub-bacia, na UGRHI | K10: Aumentar as informações afim de subsidiar o planejamento e a gestão dos recursos hídricos na UGRHI | M10: DIVERSOS | N10: UGRHi | O10: UGRHi 18 | P10: 200197.43 | U10: =IF(SUM(PAPI20_22_23[[#This Row],[Recurso financeiro estimado no ano (R$) - Cobrança Estadual]:[Recurso financeiro estimado no ano (R$) - Outras]]) >0,SUM(PAPI20_22_23[[#This Row],[Recurso financeiro estimado no ano (R$) - Cobrança Estadual]:[Recurso financeiro estimado no ano (R$) - Outras]]),"") -> 200197.43
A11: SID022023 | J11: Elaborar mapa de feições erosivas da UGRHI | K11: Aumentar as informações afim de subsidiar o planejamento e a gestão dos recursos hídricos na UGRHI | M11: DIVERSOS | N11: UGRHi | O11: UGRHi 18 | Q11: 280000 | U11: =IF(SUM(PAPI20_22_23[[#This Row],[Recurso financeiro estimado no ano (R$) - Cobrança Estadual]:[Recurso financeiro estimado no ano (R$) - Outras]]) >0,SUM(PAPI20_22_23[[#This Row],[Recurso financeiro estimado no ano (R$) - Cobrança Estadual]:[Recurso financeiro estimado no ano (R$) - Outras]]),"") -> 280000
A12: SID032022 | J12: Elaboração do Plano diretor de controle de perdas | K12: Aumentar as informações afim de subsidiar o planejamento e a gestão dos recursos hídricos na UGRHI | M12: Município | N12: Município | O12: Ilha Solteira, Neves Paulista, São João de Iracema e Santa Fé do Sul. | P12: 170000 | U12: =IF(SUM(PAPI20_22_23[[#This Row],[Recurso financeiro estimado no ano (R$) - Cobrança Estadual]:[Recurso financeiro estimado no ano (R$) - Outras]]) >0,SUM(PAPI20_22_23[[#This Row],[Recurso financeiro estimado no ano (R$) - Cobrança Estadual]:[Recurso financeiro estimado no ano (R$) - Outras]]),"") -> 170000
A13: SID042023 | J13: Elaborar estudos para o controle de processos erosivos e projetos (básicos e/ou executivos), serviços ou obras para prevenção, prioritariamente em bacias de abastecimento, nascentes e áreas de recarga (troca de hidrômetros, manutenção de rede, instalação de válvulas redutoras de pressão, entre outros) | K13: Prevenir e controlar processos de erosão e assoreamento, visando a melhoria ou recuperação dos corpos d’água | M13: Município | N13: Município | O13: Floreal, General Salgado, Ilha Solteira, Jales, Monte Aprazível, Neves Paulista, Nhandeara, Palmeira d´oeste, Santa Fé do Sul, Sebastianópolis do Sul, Cosmorama, Monte Aprazível, Poloni, Santa Salete, Santana da Ponte Pensa, São Francisco, Tanabi, Três Fronteiras e Votuporanga | P13: 400000 | Q13: 300000 | U13: =IF(SUM(PAPI20_22_23[[#This Row],[Recurso financeiro estimado no ano (R$) - Cobrança Estadual]:[Recurso financeiro estimado no ano (R$) - Outras]]) >0,SUM(PAPI20_22_23[[#This Row],[Recurso financeiro estimado no ano (R$) - Cobrança Estadual]:[Recurso financeiro estimado no ano (R$) - Outras]]),"") -> 700000
A14: SID052023 | J14: Elaborar Projetos (básicos e/ou executivos), obras ou serviços em sistemas de abastecimento, visando controle e redução de perdas de água | K14: Alcance de uma média de 25% de perdas globais nos municípios da Bacia | M14: Município | N14: Município | O14: Ilha Solteira, Suzanápolis, Santa Fé do Sul, Neves Paulista e São João de Iracema. | P14: 300000 | U14: =IF(SUM(PAPI20_22_23[[#This Row],[Recurso financeiro estimado no ano (R$) - Cobrança Estadual]:[Recurso financeiro estimado no ano (R$) - Outras]]) >0,SUM(PAPI20_22_23[[#This Row],[Recurso financeiro estimado no ano (R$) - Cobrança Estadual]:[Recurso financeiro estimado no ano (R$) - Outras]]),"") -> 300000
A15: SID092023 | J15: Aquisição de equipamentos para operacionalização de sistemas de alerta, radares meteorológicos ou redes telemétricas integrados a sistemas de suporte à decisão; divulgação de informações e apoio à defesa civil (AG. 24) | K15: MG. 8 - Estruturar 01 Sala de Situação visando o Monitoramento de eventos extremos e sistemas de suporte a decisão | N15: Sub-bacia | O15: UGRHi 18 | P15: 400000 | U15: =IF(SUM(PAPI20_22_23[[#This Row],[Recurso financeiro estimado no ano (R$) - Cobrança Estadual]:[Recurso financeiro estimado no ano (R$) - Outras]]) >0,SUM(PAPI20_22_23[[#This Row],[Recurso financeiro estimado no ano (R$) - Cobrança Estadual]:[Recurso financeiro estimado no ano (R$) - Outras]]),"") -> 400000 | V15: 851322.1 | W15: 0 | X15: adiantamos a indicação da ação prevista para 2023 - empreendimento cancelado
A16: SID07023 | J16: Elaborar projetos (básicos e/ou executivos), serviços, obras em municípios com sistema de coleta e disposição final de resíduos sólidos ineficientes e/ou inadequadas; e implantar pontos de entrega voluntária (PEV), e programas de coleta seletiva | K16: Aumentar a cobertura da coleta de resíduos sólidos em áreas urbanas e rurais dos municípios | M16: Município | N16: Município | O16: Município | P16: 308323.15 | U16: =IF(SUM(PAPI20_22_23[[#This Row],[Recurso financeiro estimado no ano (R$) - Cobrança Estadual]:[Recurso financeiro estimado no ano (R$) - Outras]]) >0,SUM(PAPI20_22_23[[#This Row],[Recurso financeiro estimado no ano (R$) - Cobrança Estadual]:[Recurso financeiro estimado no ano (R$) - Outras]]),"") -> 308323.15
A17: SID08023 | J17: Elaborar projetos (básicos e/ou executivos), executar obras ou serviços em sistemas de abastecimento, visando propor soluções alternativas e a ampliação da rede de distribuição, das demais estruturas de apoio ao abastecimento | K17: Aproveitamento dos recursos hídricos e segurança hídrica | M17: Município | N17: Município | O17: Município | P17: 179324.92 | U17: =IF(SUM(PAPI20_22_23[[#This Row],[Recurso financeiro estimado no ano (R$) - Cobrança Estadual]:[Recurso financeiro estimado no ano (R$) - Outras]]) >0,SUM(PAPI20_22_23[[#This Row],[Recurso financeiro estimado no ano (R$) - Cobrança Estadual]:[Recurso financeiro estimado no ano (R$) - Outras]]),"") -> 179324.92
A18: SID06023 | J18: Elaborar projetos (básicos e/ou executivos), serviços ou obras para contenção de inundações, alagamentos, inclusive por técnicas de infiltração e armazenamento; e regularizações de descargas e dispositivos de lançamento de drenagem | K18: Contenção de inundações, alagamentos e regularizações de descargas na UGRHI | M18: Município | N18: Município | O18: Município | Q18: 1113141.65 | U18: =IF(SUM(PAPI20_22_23[[#This Row],[Recurso financeiro estimado no ano (R$) - Cobrança Estadual]:[Recurso financeiro estimado no ano (R$) - Outras]]) >0,SUM(PAPI20_22_23[[#This Row],[Recurso financeiro estimado no ano (R$) - Cobrança Estadual]:[Recurso financeiro estimado no ano (R$) - Outras]]),"") -> 1113141.65
U19: =IF(SUM(PAPI20_22_23[[#This Row],[Recurso financeiro estimado no ano (R$) - Cobrança Estadual]:[Recurso financeiro estimado no ano (R$) - Outras]]) >0,SUM(PAPI20_22_23[[#This Row],[Recurso financeiro estimado no ano (R$) - Cobrança Estadual]:[Recurso financeiro estimado no ano (R$) - Outras]]),"") -> 
U20: =IF(SUM(PAPI20_22_23[[#This Row],[Recurso financeiro estimado no ano (R$) - Cobrança Estadual]:[Recurso financeiro estimado no ano (R$) - Outras]]) >0,SUM(PAPI20_22_23[[#This Row],[Recurso financeiro estimado no ano (R$) - Cobrança Estadual]:[Recurso financeiro estimado no ano (R$) - Outras]]),"") -> 
U21: =IF(SUM(PAPI20_22_23[[#This Row],[Recurso financeiro estimado no ano (R$) - Cobrança Estadual]:[Recurso financeiro estimado no ano (R$) - Outras]]) >0,SUM(PAPI20_22_23[[#This Row],[Recurso financeiro estimado no ano (R$) - Cobrança Estadual]:[Recurso financeiro estimado no ano (R$) - Outras]]),"") -> 
U22: =IF(SUM(PAPI20_22_23[[#This Row],[Recurso financeiro estimado no ano (R$) - Cobrança Estadual]:[Recurso financeiro estimado no ano (R$) - Outras]]) >0,SUM(PAPI20_22_23[[#This Row],[Recurso financeiro estimado no ano (R$) - Cobrança Estadual]:[Recurso financeiro estimado no ano (R$) - Outras]]),"") -> 
U23: =IF(SUM(PAPI20_22_23[[#This Row],[Recurso financeiro estimado no ano (R$) - Cobrança Estadual]:[Recurso financeiro estimado no ano (R$) - Outras]]) >0,SUM(PAPI20_22_23[[#This Row],[Recurso financeiro estimado no ano (R$) - Cobrança Estadual]:[Recurso financeiro estimado no ano (R$) - Outras]]),"") -> 
U24: =IF(SUM(PAPI20_22_23[[#This Row],[Recurso financeiro estimado no ano (R$) - Cobrança Estadual]:[Recurso financeiro estimado no ano (R$) - Outras]]) >0,SUM(PAPI20_22_23[[#This Row],[Recurso financeiro estimado no ano (R$) - Cobrança Estadual]:[Recurso financeiro estimado no ano (R$) - Outras]]),"") -> 
U25: =IF(SUM(PAPI20_22_23[[#This Row],[Recurso financeiro estimado no ano (R$) - Cobrança Estadual]:[Recurso financeiro estimado no ano (R$) - Outras]]) >0,SUM(PAPI20_22_23[[#This Row],[Recurso financeiro estimado no ano (R$) - Cobrança Estadual]:[Recurso financeiro estimado no ano (R$) - Outras]]),"") -> 
U26: =IF(SUM(PAPI20_22_23[[#This Row],[Recurso financeiro estimado no ano (R$) - Cobrança Estadual]:[Recurso financeiro estimado no ano (R$) - Outras]]) >0,SUM(PAPI20_22_23[[#This Row],[Recurso financeiro estimado no ano (R$) - Cobrança Estadual]:[Recurso financeiro estimado no ano (R$) - Outras]]),"") -> 
U27: =IF(SUM(PAPI20_22_23[[#This Row],[Recurso financeiro estimado no ano (R$) - Cobrança Estadual]:[Recurso financeiro estimado no ano (R$) - Outras]]) >0,SUM(PAPI20_22_23[[#This Row],[Recurso financeiro estimado no ano (R$) - Cobrança Estadual]:[Recurso financeiro estimado no ano (R$) - Outras]]),"") -> 
U28: =IF(SUM(PAPI20_22_23[[#This Row],[Recurso financeiro estimado no ano (R$) - Cobrança Estadual]:[Recurso financeiro estimado no ano (R$) - Outras]]) >0,SUM(PAPI20_22_23[[#This Row],[Recurso financeiro estimado no ano (R$) - Cobrança Estadual]:[Recurso financeiro estimado no ano (R$) - Outras]]),"") -> 
U29: =IF(SUM(PAPI20_22_23[[#This Row],[Recurso financeiro estimado no ano (R$) - Cobrança Estadual]:[Recurso financeiro estimado no ano (R$) - Outras]]) >0,SUM(PAPI20_22_23[[#This Row],[Recurso financeiro estimado no ano (R$) - Cobrança Estadual]:[Recurso financeiro estimado no ano (R$) - Outras]]),"") -> 
U30: =IF(SUM(PAPI20_22_23[[#This Row],[Recurso financeiro estimado no ano (R$) - Cobrança Estadual]:[Recurso financeiro estimado no ano (R$) - Outras]]) >0,SUM(PAPI20_22_23[[#This Row],[Recurso financeiro estimado no ano (R$) - Cobrança Estadual]:[Recurso financeiro estimado no ano (R$) - Outras]]),"") -> 
U31: =IF(SUM(PAPI20_22_23[[#This Row],[Recurso financeiro estimado no ano (R$) - Cobrança Estadual]:[Recurso financeiro estimado no ano (R$) - Outras]]) >0,SUM(PAPI20_22_23[[#This Row],[Recurso financeiro estimado no ano (R$) - Cobrança Estadual]:[Recurso financeiro estimado no ano (R$) - Outras]]),"") -> 
U32: =IF(SUM(PAPI20_22_23[[#This Row],[Recurso financeiro estimado no ano (R$) - Cobrança Estadual]:[Recurso financeiro estimado no ano (R$) - Outras]]) >0,SUM(PAPI20_22_23[[#This Row],[Recurso financeiro estimado no ano (R$) - Cobrança Estadual]:[Recurso financeiro estimado no ano (R$) - Outras]]),"") -> 
U33: =IF(SUM(PAPI20_22_23[[#This Row],[Recurso financeiro estimado no ano (R$) - Cobrança Estadual]:[Recurso financeiro estimado no ano (R$) - Outras]]) >0,SUM(PAPI20_22_23[[#This Row],[Recurso financeiro estimado no ano (R$) - Cobrança Estadual]:[Recurso financeiro estimado no ano (R$) - Outras]]),"") -> 
U34: =IF(SUM(PAPI20_22_23[[#This Row],[Recurso financeiro estimado no ano (R$) - Cobrança Estadual]:[Recurso financeiro estimado no ano (R$) - Outras]]) >0,SUM(PAPI20_22_23[[#This Row],[Recurso financeiro estimado no ano (R$) - Cobrança Estadual]:[Recurso financeiro estimado no ano (R$) - Outras]]),"") -> 
U35: =IF(SUM(PAPI20_22_23[[#This Row],[Recurso financeiro estimado no ano (R$) - Cobrança Estadual]:[Recurso financeiro estimado no ano (R$) - Outras]]) >0,SUM(PAPI20_22_23[[#This Row],[Recurso financeiro estimado no ano (R$) - Cobrança Estadual]:[Recurso financeiro estimado no ano (R$) - Outras]]),"") -> 
U36: =IF(SUM(PAPI20_22_23[[#This Row],[Recurso financeiro estimado no ano (R$) - Cobrança Estadual]:[Recurso financeiro estimado no ano (R$) - Outras]]) >0,SUM(PAPI20_22_23[[#This Row],[Recurso financeiro estimado no ano (R$) - Cobrança Estadual]:[Recurso financeiro estimado no ano (R$) - Outras]]),"") -> 
U37: =IF(SUM(PAPI20_22_23[[#This Row],[Recurso financeiro estimado no ano (R$) - Cobrança Estadual]:[Recurso financeiro estimado no ano (R$) - Outras]]) >0,SUM(PAPI20_22_23[[#This Row],[Recurso financeiro estimado no ano (R$) - Cobrança Estadual]:[Recurso financeiro estimado no ano (R$) - Outras]]),"") -> 
U38: =IF(SUM(PAPI20_22_23[[#This Row],[Recurso financeiro estimado no ano (R$) - Cobrança Estadual]:[Recurso financeiro estimado no ano (R$) - Outras]]) >0,SUM(PAPI20_22_23[[#This Row],[Recurso financeiro estimado no ano (R$) - Cobrança Estadual]:[Recurso financeiro estimado no ano (R$) - Outras]]),"") -> 
U39: =IF(SUM(PAPI20_22_23[[#This Row],[Recurso financeiro estimado no ano (R$) - Cobrança Estadual]:[Recurso financeiro estimado no ano (R$) - Outras]]) >0,SUM(PAPI20_22_23[[#This Row],[Recurso financeiro estimado no ano (R$) - Cobrança Estadual]:[Recurso financeiro estimado no ano (R$) - Outras]]),"") -> 
U40: =IF(SUM(PAPI20_22_23[[#This Row],[Recurso financeiro estimado no ano (R$) - Cobrança Estadual]:[Recurso financeiro estimado no ano (R$) - Outras]]) >0,SUM(PAPI20_22_23[[#This Row],[Recurso financeiro estimado no ano (R$) - Cobrança Estadual]:[Recurso financeiro estimado no ano (R$) - Outras]]),"") -> 
U41: =IF(SUM(PAPI20_22_23[[#This Row],[Recurso financeiro estimado no ano (R$) - Cobrança Estadual]:[Recurso financeiro estimado no ano (R$) - Outras]]) >0,SUM(PAPI20_22_23[[#This Row],[Recurso financeiro estimado no ano (R$) - Cobrança Estadual]:[Recurso financeiro estimado no ano (R$) - Outras]]),"") -> 
U42: =IF(SUM(PAPI20_22_23[[#This Row],[Recurso financeiro estimado no ano (R$) - Cobrança Estadual]:[Recurso financeiro estimado no ano (R$) - Outras]]) >0,SUM(PAPI20_22_23[[#This Row],[Recurso financeiro estimado no ano (R$) - Cobrança Estadual]:[Recurso financeiro estimado no ano (R$) - Outras]]),"") -> 
U43: =IF(SUM(PAPI20_22_23[[#This Row],[Recurso financeiro estimado no ano (R$) - Cobrança Estadual]:[Recurso financeiro estimado no ano (R$) - Outras]]) >0,SUM(PAPI20_22_23[[#This Row],[Recurso financeiro estimado no ano (R$) - Cobrança Estadual]:[Recurso financeiro estimado no ano (R$) - Outras]]),"") -> 
U44: =IF(SUM(PAPI20_22_23[[#This Row],[Recurso financeiro estimado no ano (R$) - Cobrança Estadual]:[Recurso financeiro estimado no ano (R$) - Outras]]) >0,SUM(PAPI20_22_23[[#This Row],[Recurso financeiro estimado no ano (R$) - Cobrança Estadual]:[Recurso financeiro estimado no ano (R$) - Outras]]),"") -> 
U45: =IF(SUM(PAPI20_22_23[[#This Row],[Recurso financeiro estimado no ano (R$) - Cobrança Estadual]:[Recurso financeiro estimado no ano (R$) - Outras]]) >0,SUM(PAPI20_22_23[[#This Row],[Recurso financeiro estimado no ano (R$) - Cobrança Estadual]:[Recurso financeiro estimado no ano (R$) - Outras]]),"") -> 
U46: =IF(SUM(PAPI20_22_23[[#This Row],[Recurso financeiro estimado no ano (R$) - Cobrança Estadual]:[Recurso financeiro estimado no ano (R$) - Outras]]) >0,SUM(PAPI20_22_23[[#This Row],[Recurso financeiro estimado no ano (R$) - Cobrança Estadual]:[Recurso financeiro estimado no ano (R$) - Outras]]),"") -> 
U47: =IF(SUM(PAPI20_22_23[[#This Row],[Recurso financeiro estimado no ano (R$) - Cobrança Estadual]:[Recurso financeiro estimado no ano (R$) - Outras]]) >0,SUM(PAPI20_22_23[[#This Row],[Recurso financeiro estimado no ano (R$) - Cobrança Estadual]:[Recurso financeiro estimado no ano (R$) - Outras]]),"") -> 
U48: =IF(SUM(PAPI20_22_23[[#This Row],[Recurso financeiro estimado no ano (R$) - Cobrança Estadual]:[Recurso financeiro estimado no ano (R$) - Outras]]) >0,SUM(PAPI20_22_23[[#This Row],[Recurso financeiro estimado no ano (R$) - Cobrança Estadual]:[Recurso financeiro estimado no ano (R$) - Outras]]),"") -> 
U49: =IF(SUM(PAPI20_22_23[[#This Row],[Recurso financeiro estimado no ano (R$) - Cobrança Estadual]:[Recurso financeiro estimado no ano (R$) - Outras]]) >0,SUM(PAPI20_22_23[[#This Row],[Recurso financeiro estimado no ano (R$) - Cobrança Estadual]:[Recurso financeiro estimado no ano (R$) - Outras]]),"") -> 
U50: =IF(SUM(PAPI20_22_23[[#This Row],[Recurso financeiro estimado no ano (R$) - Cobrança Estadual]:[Recurso financeiro estimado no ano (R$) - Outras]]) >0,SUM(PAPI20_22_23[[#This Row],[Recurso financeiro estimado no ano (R$) - Cobrança Estadual]:[Recurso financeiro estimado no ano (R$) - Outras]]),"") -> 

Sheet Identificação das ações 24-27
A1: ID Ação | B1: Descrição da ação | C1: SubPDC | D1: Prioridade do PDC | E1: É (ou será) empreendimento FEHIDRO? | F1: Requer recursos financeiros? | G1: Quantidade de fontes de recursos | H1: Segmento do executor | I1: Área de abrangência | J1: Detalhamento da área de abrangência | K1: Início estimado da ação | L1: Fim estimado | M1: Observações
A2: BPG0124 | B2: T.1.2.2 . Diagnóstico qualitativo e/ou quantitativo de recursos hídricos superficiais e/ou subterrâneos 1ª | C2: 1.2. Planejamento e gestão de recursos hídricos | E2: Sim | F2: Sim | G2: 2 | H2: Sociedade Civil | I2: Bacia | J2: Prioritariamente nas sub bacias das áreas consideradas com criticidade no Estudos dos sistemas dos aquíferps Guarani, Bauru e Serra Geral | K2: 2024-07-01 | L2: 2027-12-15 | M2: Pode ser executado por municipios
A3: BPG0224 | B3: T.1.2.3 .Diagnóstico/Levantamento/Modelagem matemática hidrometeorológica para adaptação e mitigação dos efeitos das mudanças climáticas re lacionado aos recursos hídricos. | C3: 1.2. Planejamento e gestão de recursos hídricos | E3: Sim | F3: Sim | G3: 2 | H3: Sociedade Civil | I3: Bacia | J3: Prioritariamente nas sub bacias das áreas consideradas com criticidade no Estudos dos sistemas dos aquíferps Guarani, Bauru e Serra Geral | K3: 2024-07-01 | L3: 2027-12-15 | M3: Pode ser executado por municipios
A4: BPG0324 | B4: T.1.2.8 . Estudo relacionado à interferência de sistemas agroflorestais, transição agroecológica, recu- | C4: 1.2. Planejamento e gestão de recursos hídricos | E4: Sim | F4: Sim | G4: 2 | H4: Sociedade Civil | I4: Bacia | J4: Prioritariamente nas sub bacias das áreas consideradas com criticidade no Estudos dos sistemas dos aquíferps Guarani, Bauru e Serra Geral | K4: 2024-07-01 | L4: 2027-12-15 | M4: Pode ser executado por municipios
A5: BPG0424 | B5: T.1.2.11. Estudo, levantamento, diagnóstico para subsidiar projetos de PSA 3ª | C5: 1.2. Planejamento e gestão de recursos hídricos | E5: Sim | F5: Sim | G5: 2 | H5: Sociedade Civil | I5: Bacia | J5: Prioritariamente nas sub bacias das áreas consideradas com criticidade no Estudos dos sistemas dos aquíferps Guarani, Bauru e Serra Geral | K5: 2024-07-01 | L5: 2027-12-15 | M5: Pode ser executado por municipios
A6: BPG0524 | B6: T.1.2.14. Mapeamento de áreas suscetíveis a pro cessos erosivos e deslizamentos. 2ª | C6: 1.2. Planejamento e gestão de recursos hídricos | E6: Sim | F6: Sim | G6: 2 | H6: Sociedade Civil | I6: Bacia | J6: Prioritariamente nas sub bacias das áreas consideradas com criticidade no Estudos dos sistemas dos aquíferps Guarani, Bauru e Serra Geral | K6: 2024-07-01 | L6: 2027-12-15 | M6: Pode ser executado por municipios
A7: BPG0624 | B7: T.1.2.15. Modelagem matemática qualitativa e/ou quantitativa de recursos hídricos superficiais e/ou subterrâneos. | C7: 1.2. Planejamento e gestão de recursos hídricos | E7: Sim | F7: Sim | G7: 2 | H7: Sociedade Civil | I7: Bacia | J7: Prioritariamente nas sub bacias das áreas consideradas com criticidade no Estudos dos sistemas dos aquíferps Guarani, Bauru e Serra Geral | K7: 2024-07-01 | L7: 2027-12-15 | M7: Pode ser executado por municipios
A8: BPG0724 | B8: T.1.2.16. Planejamento territorial com foco na conservação, proteção, recuperaç ão ou uso dos recursos hídricos | C8: 1.2. Planejamento e gestão de recursos hídricos | E8: Sim | F8: Sim | G8: 2 | H8: Sociedade Civil | I8: Bacia | J8: Prioritariamente nas sub bacias das áreas consideradas com criticidade no Estudos dos sistemas dos aquíferps Guarani, Bauru e Serra Geral | K8: 2024-07-01 | L8: 2027-12-15 | M8: Pode ser executado por municipios
A9: BPG0824 | B9: T.1.2.21. Plano diretor de controle de perdas. 4ª+D17 | C9: 1.2. Planejamento e gestão de recursos hídricos | E9: Sim | F9: Sim | G9: 2 | H9: Sociedade Civil | I9: Bacia | J9: Prioritariamente nas sub bacias das áreas consideradas com criticidade no Estudos dos sistemas dos aquíferps Guarani, Bauru e Serra Geral | K9: 2024-07-01 | L9: 2027-12-15 | M9: Pode ser executado por municipios
A10: BPG0924 | B10: T.1.2.23. Plano de comunicação Social de Comitê de Bacia Hid rográfica demanda induzida | C10: 1.2. Planejamento e gestão de recursos hídricos | E10: Sim | F10: Sim | G10: 2 | H10: Sociedade Civil | I10: Bacia | J10: Prioritariamente nas sub bacias das áreas consideradas com criticidade no Estudos dos sistemas dos aquíferps Guarani, Bauru e Serra Geral | K10: 2024-07-01 | L10: 2027-12-15 | M10: Pode ser executado por municipios
A11: BPG1024 | B11: T.2.5.2. Desenvolvimento, implantação, manutenção ou atualização de sistema de informação e/ou de suporte à decisão (SSD) com centro de contole operacional | C11: 2.5 Rede de Monitoramento e Sistemas de Informação sobre Recursos Hídricos | E11: Sim | F11: Sim | G11: 3 | H11: Estado | I11: Bacia | J11: Prioritariamente nos aquiferos Guarani, Bauru e Serra Geral e águas superficiais da bacias do BPG | K11: 2024-07-01 | L11: 2027-12-15 | M11: Pode ser executado por municipios e sociedade civil
A12: BPG1124 | B12: T.2.5.3. Implantação, manutenção, modernização e ampliação de rede de monitoramento qualiquantitativo | C12: 2.5 Rede de Monitoramento e Sistemas de Informação sobre Recursos Hídricos | E12: Sim | F12: Sim | G12: 3 | H12: Estado | I12: Bacia | J12: Prioritariamente nos aquiferos Guarani, Bauru e Serra Geral e águas superficiais da bacias do BPG | K12: 2024-07-01 | L12: 2027-12-15 | M12: Pode ser executado por municipios e sociedade civil
A13: BPG1224 | B13: T.3.1.1. Projeto (básico e/ou executivo) de obras lineares (rede coletora de esgotos, emissário por gravidade, interceptores ou coletor tronco) | C13: 3.1 - Sist. esgotamento | E13: Sim | F13: Sim | G13: 3 | H13: Município | I13: Bacia | J13: Municipio que não possuem toda a rede coletora e de afastamento de esgoto ou precisam altera-las | K13: 2024-07-01 | L13: 2027-12-15 | M13: Pode ser executado por municipios e sociedade civil
A14: BPG1324 | B14: T.3.1.2. Execução de obras lineares (rede coletora, emissário por gravidade, interceptores ou coletor tronco) inclusive substituição. | C14: 3.1 - Sist. esgotamento | E14: Sim | F14: Sim | G14: 3 | H14: Município | I14: Bacia | J14: Municipio que não possuem toda a rede coletora e de afastamento de esgoto ou precisam altera-las | K14: 2024-07-01 | L14: 2027-12-15 | M14: Pode ser executado por municipios e sociedade civil
A15: BPG1424 | B15: T.3.1.3. Projeto (básico e/ou executivos) de reformas, melhorias ou obras localizadas (EEE Estação Elevatória de Esgoto e/ou ETE Estação de tratamento de Esgoto) | C15: 3.1 - Sist. esgotamento | E15: Sim | F15: Sim | G15: 2 | H15: Município | I15: Bacia | J15: Municipio que não possuem toda a vazão de esgoto tratada ou necessita de EEE para afastamento e tratmento do esgoto. | K15: 2024-07-01 | L15: 2027-12-15 | M15: Pode ser executado por municipios e sociedade civil
A16: BPG1524 | B16: T.3.1.4. Execução de reformas, melhorias ou obras de EEE e/ou ETE | C16: 3.1 - Sist. esgotamento | E16: Sim | F16: Sim | G16: 2 | H16: Município | I16: Bacia | J16: Municipio que não possuem toda a vazão de esgoto tratada ou necessita de EEE para afastamento e tratmento do esgoto. | K16: 2024-07-01 | L16: 2027-12-15 | M16: Pode ser executado por municipios e sociedade civil
A17: BPG1624 | B17: T.3.1.6. Projeto de sistema de tratamento de lodo de ETE ou ETA | C17: 3.1 - Sist. esgotamento | E17: Sim | F17: Sim | G17: 2 | H17: Município | I17: Bacia | J17: Municipio que não possuem toda a vazão de esgoto tratada ou necessita de EEE para afastamento e tratmento do esgotp ou tratamento do lodo de ETA | K17: 2024-07-01 | L17: 2027-12-15 | M17: Pode ser executado por municipios e sociedade civil
A18: BPG1724 | B18: T.3.1.7. Execução de sistema de tratamento de lodo de ETE ou ETA | C18: 3.1 - Sist. esgotamento | E18: Sim | F18: Sim | G18: 2 | H18: Município | I18: Bacia | J18: Municipio que não possuem toda a vazão de esgoto tratada ou necessita de EEE para afastamento e tratmento do esgotp ou tratamento do lodo de ETA | K18: 2024-07-01 | L18: 2027-12-15 | M18: Pode ser executado por municipios e sociedade civil
A19: BPG1824 | B19: T.3.2.1 . Projetos (básicos e/ou executivos) de recuperação de áreas contaminadas | C19: 3.2. Áreas contaminadas e poluição difusa | E19: Sim | F19: Sim | G19: 3 | H19: Município | I19: Bacia | J19: Municipio que possuem área contaminada por chorume ou necrochorume ou de postos de combustiveis abandonados | K19: 2024-07-01 | L19: 2027-12-15 | M19: Pode ser executado por municipios. sociedade civil e iniciativa privada
A20: BPG1924 | B20: T.3.2.2. Execução de serviços, obras ou ações de recuperação de áreas contaminadas | C20: 3.2. Áreas contaminadas e poluição difusa | E20: Sim | F20: Sim | G20: 3 | H20: Município | I20: Bacia | J20: Municipio que possuem área contaminada por chorume ou necrochorume ou de postos de combustiveis abandonados | K20: 2024-07-01 | L20: 2027-12-15 | M20: Pode ser executado por municipios. sociedade civil e iniciativa privada
A21: BPG2024 | B21: T.4.1.1 . Projetos (básicos e/ou executivos) para prevenção e controle de processos erosivos, tais como ravinas, voçorocas e deslizamentos | C21: 4.1. Controle de processos erosivos | E21: Sim | F21: Sim | G21: 4 | H21: Município | I21: Bacia | J21: Municipio que possuem processos erosivos na área urbana ou rural | K21: 2024-07-01 | L21: 2027-12-15 | M21: Pode ser executado por municipios. sociedade civil e iniciativa privada
A22: BPG2124 | B22: T.4.1.2. Obras/serviços para prevenção e controle de processos erosivos, tais como ravinas, voçorocas e deslizamento, , envolvendo muros de proteção, escadas de dissipação, componentes do sistema de drenagem, curvas de nível, terraceamento, sumidouro, reade quação de estradas rurais, dentre outros- | C22: 4.1. Controle de processos erosivos | E22: Sim | F22: Sim | G22: 4 | H22: Município | I22: Bacia | J22: Municipio que possuem processos erosivos na área urbana ou rural | K22: 2024-07-01 | L22: 2027-12-15 | M22: Pode ser executado por municipios. sociedade civil e iniciativa privada
A23: BPG2224 | B23: T.4.1.3. Projetos (básicos e/ou executivos) para proteção e/ou contenção de margens de curso dagua | C23: 4.1. Controle de processos erosivos | E23: Sim | F23: Sim | G23: 4 | H23: Município | I23: Bacia | J23: Municipio que possuem processos erosivos nas margens dos cursos dágua na área urbana ou rural | K23: 2024-07-01 | L23: 2027-12-15 | M23: Pode ser executado por municipios. sociedade civil e iniciativa privada
A24: BPG2324 | B24: T.4.1.4. Obras/serviços de proteção e/ou contenção de margens de curso d´água | C24: 4.1. Controle de processos erosivos | E24: Sim | F24: Sim | G24: 4 | H24: Município | I24: Bacia | J24: Municipio que possuem processos erosivos nas margens dos cursos dágua na área urbana ou rural | K24: 2024-07-01 | L24: 2027-12-15 | M24: Pode ser executado por municipios. sociedade civil e iniciativa privada
A25: BPG2424 | B25: T.4.1.5. Projetos (básicos e/ou executivos) de desassoreamento de curso d'água+D33 | C25: 4.1. Controle de processos erosivos | E25: Sim | F25: Sim | G25: 4 | H25: Município | I25: Bacia | J25: Municipio que possuem cursos dágua na área urbana ou rural assoreados. | K25: 2024-07-01 | L25: 2027-12-15 | M25: Pode ser executado por municipios. sociedade civil e iniciativa privada
A26: BPG2524 | B26: T.4.1.6. Obras/serviços de desassoreamento em curso d´água | C26: 4.1. Controle de processos erosivos | E26: Sim | F26: Sim | G26: 4 | H26: Município | I26: Bacia | J26: Municipio que possuem cursos dágua na área urbana ou rural assoreados. | K26: 2024-07-01 | L26: 2027-12-15 | M26: Pode ser executado por municipios. sociedade civil e iniciativa privada
A27: BPG2624 | B27: T.4.2.4. Execução de restauração ecológica | C27: 4.2. Soluções baseadas na natureza | E27: Sim | F27: Sim | G27: 4 | H27: Município | I27: Bacia | J27: Municipio que possuem cursos dágua na área urbana ou rural assoreados. | K27: 2024-07-01 | L27: 2027-12-15 | M27: Pode ser executado por municipios. sociedade civil e iniciativa privada
A28: BPG2724 | B28: T.5.1.1. Elaboração de Projeto de setorização da rede de abastecimento de água | C28: 5.1 - Controle de perdas | E28: Sim | F28: Sim | G28: 2 | H28: Município | I28: Bacia | J28: Municípios da UGRHI priorizados conforme alto índices de perdas de água no sistema abastecimento público, com mais de 25% | K28: 2024-07-01 | L28: 2027-12-15 | M28: Pode ser executado por municipios. sociedade civil
A29: BPG2824 | B29: T.5.1.2. Execução d a setorização de rede de abaste cimento de água | C29: 5.1 - Controle de perdas | E29: Sim | F29: Sim | G29: 2 | H29: Município | I29: Bacia | J29: Municípios da UGRHI priorizados conforme alto índices de perdas de água no sistema abastecimento público, com mais de 25% | K29: 2024-07-01 | L29: 2027-12-15 | M29: Pode ser executado por municipios. sociedade civil
A30: BPG2924 | B30: T.5.1.3. Fornecimento e instalação de hidrômetros | C30: 5.1 - Controle de perdas | E30: Sim | F30: Sim | G30: 2 | H30: Município | I30: Bacia | J30: Municípios da UGRHI priorizados conforme alto índices de perdas de água no sistema abastecimento público, com mais de 25% | K30: 2024-07-01 | L30: 2027-12-15 | M30: Pode ser executado por municipios. sociedade civil
A31: BPG3024 | B31: T.5.1.4. Fornecimento e instalação de macromedidores | C31: 5.1 - Controle de perdas | E31: Sim | F31: Sim | G31: 2 | H31: Município | I31: Bacia | J31: Municípios da UGRHI priorizados conforme alto índices de perdas de água no sistema abastecimento público, com mais de 25% | K31: 2024-07-01 | L31: 2027-12-15 | M31: Pode ser executado por municipios. sociedade civil
A32: BPG3124 | B32: T.6.1.2. Obras/serviços para captação e/ou adução de recursos hídricos subterrâneos do poço até o reservatório | C32: 6.1. Captação de recursos hídricos | E32: Sim | F32: Sim | G32: 2 | H32: Município | I32: Bacia | J32: Municípios da UGRHI priorizados conforme alto índices de perdas de água no sistema abastecimento público, com mais de 25% | K32: 2024-07-01 | L32: 2027-12-15 | M32: Pode ser executado por municipios. sociedade civil
A33: BPG3224 | B33: T.6.1.3. Projetos (básicos e/ou executivos) para captação e/ou adução de recursos hídricos superficiais -do corpo d'água até o sistema de tratamento ou local do uso pretendido | C33: 6.1. Captação de recursos hídricos | E33: Sim | F33: Sim | G33: 2 | H33: Município | I33: Bacia | J33: Municipios cujo o valor da vazão subterrânea outorgada m³/s está maior que em 2018 ou priorizam o abastecimento com água superficial. | K33: 2024-07-01 | L33: 2027-12-15 | M33: Pode ser executado por municipios. sociedade civil
A34: BPG3324 | B34: T.6.1.4. Obras/serviços para captação e/ou adução de recursos hídricos superficiais do corpo d'água | C34: 6.1. Captação de recursos hídricos | E34: Sim | F34: Sim | G34: 2 | H34: Município | I34: Bacia | J34: Municipios cujo o valor da vazão subterrânea outorgada m³/s está maior que em 2018 ou priorizam o abastecimento com água superficial. | K34: 2024-07-01 | L34: 2027-12-15 | M34: Pode ser executado por municipios. sociedade civil
A35: BPG3424 | B35: T.6.2.2. Obras/serviços para construção, ampliação ou recuperação de barramento, cisterna, açude | C35: 6.2 - Segurança hídrica | E35: Sim | F35: Sim | G35: 3 | H35: Município | I35: Bacia | J35: Municipios cujo o valor da vazão subterrânea outorgada m³/s está maior que em 2018 ou priorizam o abastecimento com água superficial. | K35: 2024-07-01 | L35: 2027-12-15 | M35: Pode ser executado por municipios. sociedade civil
A36: BPG3524 | B36: T.7.1.2. Obras/serviços de microdrenagem (sarjetas, guias, bocas de lobo, poços de visita, galerias, pavimentação com material drenante entre outros). | C36: 7.1. Ações estruturais de micro ou macro drenagem para mitigação de inundações e alagamentos | E36: Sim | F36: Sim | G36: 2 | H36: Município | I36: Bacia | J36: Municipios que possuem áreas de alagamento ou inundação mapeadas, ou em Plano de Macrodrenagem. | K36: 2024-07-01 | L36: 2027-12-15 | M36: Pode ser executado por municipios. sociedade civil
A37: BPG3624 | B37: T.7.1.3. Projetos (básicos e/ou executivos) de macrodrenagem (canalizações, retificações, travessias entre outros, inclusive Planos de Drenagem | C37: 7.1. Ações estruturais de micro ou macro drenagem para mitigação de inundações e alagamentos | E37: Sim | F37: Sim | G37: 2 | H37: Município | I37: Bacia | J37: Municipios que possuem áreas de alagamento ou inundação mapeadas, ou em Plano de Macrodrenagem. | K37: 2024-07-01 | L37: 2027-12-15 | M37: Pode ser executado por municipios. sociedade civil
A38: BPG3724 | B38: T.7.1.4. Obras/serviços de macrodrenagem (canalizações, retificações, travessias entre outros) | C38: 7.1. Ações estruturais de micro ou macro drenagem para mitigação de inundações e alagamentos | E38: Sim | F38: Sim | G38: 2 | H38: Município | I38: Bacia | J38: Municipios que possuem áreas de alagamento ou inundação mapeadas, ou em Plano de Macrodrenagem. | K38: 2024-07-01 | L38: 2027-12-15 | M38: Pode ser executado por municipios. sociedade civil
A39: BPG3824 | B39: T.8.1.1. Organização de congressos, simpósios, workshops e eventos afins voltados a gestão dos recursos hídricos | C39: 8.1. Capacitação técnica em planejamento e gestão de recursos hídricos | E39: Sim | F39: Sim | G39: 3 | H39: Sociedade Civil | I39: Bacia | J39: Todaa a UGRHI 12 | K39: 2024-07-01 | L39: 2027-12-15 | M39: Pode ser executado por municipios. sociedade civil
A40: BPG3924 | B40: T.8.1.2. Organização de capacitação (cursos formais) em gestão de recursos hídricos voltada a técnicos, profissionais e/ou educadores | C40: 8.1. Capacitação técnica em planejamento e gestão de recursos hídricos | E40: Sim | F40: Sim | G40: 3 | H40: Sociedade Civil | I40: Bacia | J40: Todaa a UGRHI 12 | K40: 2024-07-01 | L40: 2027-12-15 | M40: Pode ser executado por municipios. sociedade civil
A41: BPG4024 | B41: T.8.2.1. Processos formativos de educação voltados à gestão dos recursos hídricos para a sociedade | C41: 8.2. Educação ambiental vinculada às ações dos planos de bacias | E41: Sim | F41: Sim | G41: 3 | H41: Sociedade Civil | I41: Bacia | J41: Todaa a UGRHI 12 | K41: 2024-07-01 | L41: 2027-12-15 | M41: Pode ser executado por municipios. sociedade civil
A42: BPG4124 | B42: T.8.3.1 . Campanha educativa voltada para a conservação e gestão dos recursos hídricos | C42: 8.3. Comunicação social e difusão de informações relacionadas à gestão | E42: Sim | F42: Sim | G42: 3 | H42: Sociedade Civil | I42: Bacia | J42: Todaa a UGRHI 12 | K42: 2024-07-01 | L42: 2027-12-15 | M42: Pode ser executado por municipios. sociedade civil
A43: BPG4224 | B43: T.8.3.2. Serviços afetos à elaboração e divulgação de instrumentos de comunicação social | C43: 8.3. Comunicação social e difusão de informações relacionadas à gestão | E43: Sim | F43: Sim | G43: 3 | H43: Sociedade Civil | I43: Bacia | J43: Todaa a UGRHI 12 | K43: 2024-07-01 | L43: 2027-12-15 | M43: Pode ser executado por municipios. sociedade civil

Sheet PAPI-2024-2027
A1: ID Ação | B1: Descrição da ação | C1: Meta | D1: Fonte | E1: 2024 | F1: 2025 | G1: 2026 | H1: 2027 | I1: SubPDC | J1: Prioridade do PDC | K1: Segmento do executor | L1: Área de abrangência | M1: Nome da área de abrangência
A2: =IF(INDEX(Financeiro[],,1)=0,"",(INDEX(Financeiro[],,1))) -> BPG0124 | B2: T.1.2.2 . Diagnóstico qualitativo e/ou quantitativo de recursos hídricos superficiais e/ou subterrâneos 1ª | C2: Ampliar o sistema de informações hidrometeorologicas, quantidade e qualidade das águas subterrãneas e superficiais, situação de nascentes e APPs da Bacia do Baixo Pardo Grande | D2: Cobrança Estadual | E2: 0 | F2: 160000 | G2: 160000 | H2: 160000 | I2: 1.2. Planejamento e gestão de recursos hídricos | J2: <25% | K2: A definir | L2: ='Identificação das ações 24-27'!I2 -> Bacia | M2: ='Identificação das ações 24-27'!J2 -> Prioritariamente nas sub bacias das áreas consideradas com criticidade no Estudos dos sistemas dos aquíferps Guarani, Bauru e Serra Geral
A3: BPG0124 | B3: T.1.2.3 .Diagnóstico/Levantamento/Modelagem matemática hidrometeorológica para adaptação e mitigação dos efeitos das mudanças climáticas re lacionado aos recursos hídricos. | C3: Ampliar o sistema de informações hidrometeorologicas, quantidade e qualidade das águas subterrãneas e superficiais, situação de nascentes e APPs da Bacia do Baixo Pardo Grande | D3: Cobrança Estadual | E3: 0 | F3: 0 | G3: 0 | H3: 160000 | I3: 1.2. Planejamento e gestão de recursos hídricos | J3: <25% | K3: A definir | L3: ='Identificação das ações 24-27'!I3 -> Bacia | M3: ='Identificação das ações 24-27'!J3 -> Prioritariamente nas sub bacias das áreas consideradas com criticidade no Estudos dos sistemas dos aquíferps Guarani, Bauru e Serra Geral
A4: BPG0224 | B4: T.1.2.8 . Estudo relacionado à interferência de sistemas agroflorestais, transição agroecológica, recu- | C4: Ampliar o sistema de informações hidrometeorologicas, quantidade e qualidade das águas subterrãneas e superficiais, situação de nascentes e APPs da Bacia do Baixo Pardo Grande | D4: Cobrança Estadual | E4: 0 | F4: 160000 | G4: 0 | H4: 160000 | I4: 1.2. Planejamento e gestão de recursos hídricos | J4: <25% | K4: A definir | L4: ='Identificação das ações 24-27'!I4 -> Bacia | M4: ='Identificação das ações 24-27'!J4 -> Prioritariamente nas sub bacias das áreas consideradas com criticidade no Estudos dos sistemas dos aquíferps Guarani, Bauru e Serra Geral
A5: BPG0224 | B5: T.1.2.11. Estudo, levantamento, diagnóstico para subsidiar projetos de PSA 3ª | C5: Ampliar o sistema de informações hidrometeorologicas, quantidade e qualidade das águas subterrãneas e superficiais, situação de nascentes e APPs da Bacia do Baixo Pardo Grande | D5: Cobrança Estadual | E5: 0 | F5: 0 | G5: 0 | H5: 160000 | I5: 1.2. Planejamento e gestão de recursos hídricos | J5: <25% | K5: A definir | L5: ='Identificação das ações 24-27'!I5 -> Bacia | M5: ='Identificação das ações 24-27'!J5 -> Prioritariamente nas sub bacias das áreas consideradas com criticidade no Estudos dos sistemas dos aquíferps Guarani, Bauru e Serra Geral
A6: BPG0324 | B6: T.1.2.14. Mapeamento de áreas suscetíveis a pro cessos erosivos e deslizamentos. 2ª | C6: Ampliar o sistema de informações hidrometeorologicas, quantidade e qualidade das águas subterrãneas e superficiais, situação de nascentes e APPs da Bacia do Baixo Pardo Grande | D6: Cobrança Estadual | E6: 160000 | F6: 0 | G6: =160000+22747 -> 182747 | H6: 0 | I6: 1.2. Planejamento e gestão de recursos hídricos | J6: <25% | K6: A definir | L6: ='Identificação das ações 24-27'!I6 -> Bacia | M6: ='Identificação das ações 24-27'!J6 -> Prioritariamente nas sub bacias das áreas consideradas com criticidade no Estudos dos sistemas dos aquíferps Guarani, Bauru e Serra Geral
A7: BPG0324 | B7: T.1.2.15. Modelagem matemática qualitativa e/ou quantitativa de recursos hídricos superficiais e/ou subterrâneos. | C7: Ampliar o sistema de informações hidrometeorologicas, quantidade e qualidade das águas subterrãneas e superficiais, situação de nascentes e APPs da Bacia do Baixo Pardo Grande | D7: Cobrança Estadual | E7: 0 | F7: 0 | G7: 160000 | H7: 0 | I7: 1.2. Planejamento e gestão de recursos hídricos | J7: <25% | K7: A definir | L7: ='Identificação das ações 24-27'!I7 -> Bacia | M7: ='Identificação das ações 24-27'!J7 -> Prioritariamente nas sub bacias das áreas consideradas com criticidade no Estudos dos sistemas dos aquíferps Guarani, Bauru e Serra Geral
A8: BPG0424 | B8: T.1.2.16. Planejamento territorial com foco na conservação, proteção, recuperaç ão ou uso dos recursos hídricos | C8: Ampliar o sistema de informações hidrometeorologicas, quantidade e qualidade das águas subterrãneas e superficiais, situação de nascentes e APPs da Bacia do Baixo Pardo Grande | D8: Cobrança Estadual | E8: 160000 | F8: 160000 | G8: 0 | H8: 160000 | I8: 1.2. Planejamento e gestão de recursos hídricos | J8: <25% | K8: A definir | L8: ='Identificação das ações 24-27'!I8 -> Bacia | M8: ='Identificação das ações 24-27'!J8 -> Prioritariamente nas sub bacias das áreas consideradas com criticidade no Estudos dos sistemas dos aquíferps Guarani, Bauru e Serra Geral
A9: BPG0424 | B9: T.1.2.21. Plano diretor de controle de perdas. 4ª+D17 | C9: Ampliar o sistema de informações hidrometeorologicas, quantidade e qualidade das águas subterrãneas e superficiais, situação de nascentes e APPs da Bacia do Baixo Pardo Grande | D9: Cobrança Estadual | E9: 0 | F9: 0 | G9: 160000 | H9: 0 | I9: 1.2. Planejamento e gestão de recursos hídricos | J9: <25% | K9: Autarquias e Concessionárias de saneamento | L9: ='Identificação das ações 24-27'!I9 -> Bacia | M9: ='Identificação das ações 24-27'!J9 -> Prioritariamente nas sub bacias das áreas consideradas com criticidade no Estudos dos sistemas dos aquíferps Guarani, Bauru e Serra Geral
A10: BPG0524 | B10: T.1.2.23. Plano de comunicação Social de Comitê de Bacia Hid rográfica demanda induzida | C10: Ampliar o sistema de informações hidrometeorologicas, quantidade e qualidade das águas subterrãneas e superficiais, situação de nascentes e APPs da Bacia do Baixo Pardo Grande | D10: Cobrança Estadual | E10: 0 | F10: 160000 | G10: 0 | H10: 0 | I10: 1.2. Planejamento e gestão de recursos hídricos | J10: <25% | K10: A definir | L10: ='Identificação das ações 24-27'!I10 -> Bacia | M10: ='Identificação das ações 24-27'!J10 -> Prioritariamente nas sub bacias das áreas consideradas com criticidade no Estudos dos sistemas dos aquíferps Guarani, Bauru e Serra Geral
A11: BPG0524 | B11: T.2.5.2. Desenvolvimento, implantação, manutenção ou atualização de sistema de informação e/ou de suporte à decisão (SSD) | C11: Criar o Centro Controle Operacional para reunião e ´facilitar a análise de dados da UGRHI 12 | D11: Cobrança Estadual | E11: 360000 | F11: 0 | G11: 160000 | H11: 0 | I11: 2.5 Rede de Monitoramento e Sistemas de Informação sobre Recursos Hídricos | J11: <25% | K11: A definir | L11: ='Identificação das ações 24-27'!I11 -> Bacia | M11: ='Identificação das ações 24-27'!J11 -> Prioritariamente nos aquiferos Guarani, Bauru e Serra Geral e águas superficiais da bacias do BPG
A12: BPG0624 | B12: T.2.5.3. Implantação, manutenção, modernização e ampliação de rede de monitoramento qualiquantitativo | C12: aumentar a rede de monitormento de vazão dos corpos dágua | D12: Cobrança Estadual | E12: 0 | F12: 160000 | G12: 0 | H12: 160000 | I12: 2.5 Rede de Monitoramento e Sistemas de Informação sobre Recursos Hídricos | J12: <25% | K12: A definir | L12: ='Identificação das ações 24-27'!I12 -> Bacia | M12: ='Identificação das ações 24-27'!J12 -> Prioritariamente nos aquiferos Guarani, Bauru e Serra Geral e águas superficiais da bacias do BPG
A13: ='Identificação das ações 24-27'!A13 -> BPG1224 | B13: ='Identificação das ações 24-27'!B13 -> T.3.1.1. Projeto (básico e/ou executivo) de obras lineares (rede coletora de esgotos, emissário por gravidade, interceptores ou coletor tronco) | C13: Aprimorar o sistema de esgotamento sanitário em todos os municipios da bacia, aumentando a eficiência dos sistemas e cumprimento da legislação ambiental | D13: Cobrança Estadual | E13: 0 | F13: 160000 | G13: 0 | H13: 0 | I13: 3.1 - Sist. esgotamento | J13: Prioritário > 60% | K13: A definir | L13: ='Identificação das ações 24-27'!I13 -> Bacia | M13: ='Identificação das ações 24-27'!J13 -> Municipio que não possuem toda a rede coletora e de afastamento de esgoto ou precisam altera-las
A14: ='Identificação das ações 24-27'!A14 -> BPG1324 | B14: ='Identificação das ações 24-27'!B14 -> T.3.1.2. Execução de obras lineares (rede coletora, emissário por gravidade, interceptores ou coletor tronco) inclusive substituição. | C14: Aprimorar o sistema de esgotamento sanitário em todos os municipios da bacia, aumentando a eficiência dos sistemas e cumprimento da legislação ambiental | D14: Cobrança Estadual | E14: 1000000 | F14: =500000+44300-160000-160000+50000+50000+137827.37-309.5 -> 461817.87 | G14: =500000-237232+100010 -> 362778 | H14: =250000+355290.75+6102.2 -> 611392.95 | I14: 3.1 - Sist. esgotamento | J14: Prioritário > 60% | K14: A definir | L14: ='Identificação das ações 24-27'!I14 -> Bacia | M14: ='Identificação das ações 24-27'!J14 -> Municipio que não possuem toda a rede coletora e de afastamento de esgoto ou precisam altera-las
A15: ='Identificação das ações 24-27'!A15 -> BPG1424 | B15: ='Identificação das ações 24-27'!B15 -> T.3.1.3. Projeto (básico e/ou executivos) de reformas, melhorias ou obras localizadas (EEE Estação Elevatória de Esgoto e/ou ETE Estação de tratamento de Esgoto) | C15: Aprimorar o sistema de esgotamento sanitário em todos os municipios da bacia, aumentando a eficiência dos sistemas e cumprimento da legislação ambiental | D15: Cobrança Estadual | E15: 0 | F15: 0 | G15: 0 | H15: 160000 | I15: 3.1 - Sist. esgotamento | J15: Prioritário > 60% | K15: A definir | L15: ='Identificação das ações 24-27'!I15 -> Bacia | M15: ='Identificação das ações 24-27'!J15 -> Municipio que não possuem toda a vazão de esgoto tratada ou necessita de EEE para afastamento e tratmento do esgoto.
A16: ='Identificação das ações 24-27'!A16 -> BPG1524 | B16: ='Identificação das ações 24-27'!B16 -> T.3.1.4. Execução de reformas, melhorias ou obras de EEE e/ou ETE | C16: Aprimorar o sistema de esgotamento sanitário em todos os municipios da bacia, aumentando a eficiência dos sistemas e cumprimento da legislação ambiental | D16: Cobrança Estadual | E16: 600000 | F16: 600000 | G16: 600000 | H16: =600000+100246.09 -> 700246.09 | I16: 3.1 - Sist. esgotamento | J16: Prioritário > 60% | K16: A definir | L16: ='Identificação das ações 24-27'!I16 -> Bacia | M16: ='Identificação das ações 24-27'!J16 -> Municipio que não possuem toda a vazão de esgoto tratada ou necessita de EEE para afastamento e tratmento do esgoto.
A17: ='Identificação das ações 24-27'!A17 -> BPG1624 | B17: ='Identificação das ações 24-27'!B17 -> T.3.1.6. Projeto de sistema de tratamento de lodo de ETE ou ETA | C17: Aprimorar o sistema de esgotamento sanitário em todos os municipios da bacia, aumentando a eficiência dos sistemas e cumprimento da legislação ambiental | D17: 3.1 - Sist. esgotamento | E17: 0 | F17: 0 | G17: 0 | H17: 0 | I17: 3.1 - Sist. esgotamento | J17: Prioritário > 60% | K17: A definir | L17: ='Identificação das ações 24-27'!I17 -> Bacia | M17: ='Identificação das ações 24-27'!J17 -> Municipio que não possuem toda a vazão de esgoto tratada ou necessita de EEE para afastamento e tratmento do esgotp ou tratamento do lodo de ETA
A18: ='Identificação das ações 24-27'!A18 -> BPG1724 | B18: ='Identificação das ações 24-27'!B18 -> T.3.1.7. Execução de sistema de tratamento de lodo de ETE ou ETA | C18: Aprimorar o sistema de esgotamento sanitário em todos os municipios da bacia, aumentando a eficiência dos sistemas e cumprimento da legislação ambiental | D18: Cobrança Estadual | E18: =600000-21667-0.63 -> 578332.37 | F18: 600000 | G18: 600000 | H18: 802000 | I18: 3.1 - Sist. esgotamento | J18: Prioritário > 60% | K18: A definir | L18: ='Identificação das ações 24-27'!I18 -> Bacia | M18: ='Identificação das ações 24-27'!J18 -> Municipio que não possuem toda a vazão de esgoto tratada ou necessita de EEE para afastamento e tratmento do esgotp ou tratamento do lodo de ETA
A19: ='Identificação das ações 24-27'!A19 -> BPG1824 | B19: ='Identificação das ações 24-27'!B19 -> T.3.2.1 . Projetos (básicos e/ou executivos) de recuperação de áreas contaminadas | C19: Projetos (básicos e/ou executivos), serviços, obras ou ações de recuperação de áreas contaminadas e de controle da poluição difusa | D19: Cobrança Estadual | E19: 0 | F19: 0 | G19: 160000 | H19: 0 | I19: 3.2. Áreas contaminadas e poluição difusa | J19: Prioritário > 60% | K19: A definir | L19: ='Identificação das ações 24-27'!I19 -> Bacia | M19: ='Identificação das ações 24-27'!J19 -> Municipio que possuem área contaminada por chorume ou necrochorume ou de postos de combustiveis abandonados
A20: ='Identificação das ações 24-27'!A20 -> BPG1924 | B20: ='Identificação das ações 24-27'!B20 -> T.3.2.2. Execução de serviços, obras ou ações de recuperação de áreas contaminadas | C20: Elaboração de Projetos (básicos e/ou executivos), serviços, obras ou ações de recuperação de áreas contaminadas e de controle da poluição difusa | D20: Cobrança Estadual | E20: 0 | F20: 160000 | G20: 0 | H20: 0 | I20: 3.2. Áreas contaminadas e poluição difusa | J20: Prioritário > 60% | K20: A definir | L20: ='Identificação das ações 24-27'!I20 -> Bacia | M20: ='Identificação das ações 24-27'!J20 -> Municipio que possuem área contaminada por chorume ou necrochorume ou de postos de combustiveis abandonados
A21: ='Identificação das ações 24-27'!A21 -> BPG2024 | B21: ='Identificação das ações 24-27'!B21 -> T.4.1.1 . Projetos (básicos e/ou executivos) para prevenção e controle de processos erosivos, tais como ravinas, voçorocas e deslizamentos | C21: Elaboração de Projetos (básicos e/ou executivos), serviços ou obras de prevenção e controle da erosão do solo ou do assoreamento dos corpos d’água, visando a melhoria ou recuperação dos corpos d’água | D21: Cobrança Estadual | E21: 160000 | F21: 0 | G21: 160000 | H21: 0 | I21: 4.1. Controle de processos erosivos | J21: < 15% | K21: A definir | L21: ='Identificação das ações 24-27'!I21 -> Bacia | M21: ='Identificação das ações 24-27'!J21 -> Municipio que possuem processos erosivos na área urbana ou rural
A22: ='Identificação das ações 24-27'!A22 -> BPG2124 | B22: ='Identificação das ações 24-27'!B22 -> T.4.1.2. Obras/serviços para prevenção e controle de processos erosivos, tais como ravinas, voçorocas e deslizamento, , envolvendo muros de proteção, escadas de dissipação, componentes do sistema de drenagem, curvas de nível, terraceamento, sumidouro, reade quação de estradas rurais, dentre outros- | C22: Elaboração de Projetos (básicos e/ou executivos), serviços ou obras de prevenção e controle da erosão do solo ou do assoreamento dos corpos d’água, visando a melhoria ou recuperação dos corpos d’água | D22: Cobrança Estadual | E22: 0 | F22: 200000 | G22: 0 | H22: 250000 | I22: 4.1. Controle de processos erosivos | J22: < 15% | K22: A definir | L22: ='Identificação das ações 24-27'!I22 -> Bacia | M22: ='Identificação das ações 24-27'!J22 -> Municipio que possuem processos erosivos na área urbana ou rural
A23: ='Identificação das ações 24-27'!A23 -> BPG2224 | B23: ='Identificação das ações 24-27'!B23 -> T.4.1.3. Projetos (básicos e/ou executivos) para proteção e/ou contenção de margens de curso dagua | C23: Elaboração de Projetos (básicos e/ou executivos), serviços ou obras de prevenção e controle da erosão do solo ou do assoreamento dos corpos d’água, visando a melhoria ou recuperação dos corpos d’água | D23: Cobrança Estadual | E23: 0 | F23: 0 | G23: 160000 | H23: 0 | I23: 4.1. Controle de processos erosivos | J23: < 15% | K23: A definir | L23: ='Identificação das ações 24-27'!I23 -> Bacia | M23: ='Identificação das ações 24-27'!J23 -> Municipio que possuem processos erosivos nas margens dos cursos dágua na área urbana ou rural
A24: ='Identificação das ações 24-27'!A24 -> BPG2324 | B24: ='Identificação das ações 24-27'!B24 -> T.4.1.4. Obras/serviços de proteção e/ou contenção de margens de curso d´água | C24: Elaboração de Projetos (básicos e/ou executivos), serviços ou obras de prevenção e controle da erosão do solo ou do assoreamento dos corpos d’água, visando a melhoria ou recuperação dos corpos d’água | D24: Cobrança Estadual | E24: 160000 | F24: 0 | G24: 0 | H24: 160000 | I24: 4.1. Controle de processos erosivos | J24: < 15% | K24: A definir | L24: ='Identificação das ações 24-27'!I24 -> Bacia | M24: ='Identificação das ações 24-27'!J24 -> Municipio que possuem processos erosivos nas margens dos cursos dágua na área urbana ou rural
A25: ='Identificação das ações 24-27'!A25 -> BPG2424 | B25: ='Identificação das ações 24-27'!B25 -> T.4.1.5. Projetos (básicos e/ou executivos) de desassoreamento de curso d'água+D33 | C25: Elaboração de Projetos (básicos e/ou executivos), serviços ou obras de prevenção e controle da erosão do solo ou do assoreamento dos corpos d’água, visando a melhoria ou recuperação dos corpos d’água | D25: Cobrança Estadual | E25: 160000 | F25: 0 | G25: 160000 | H25: 0 | I25: 4.1. Controle de processos erosivos | J25: < 15% | K25: A definir | L25: ='Identificação das ações 24-27'!I25 -> Bacia | M25: ='Identificação das ações 24-27'!J25 -> Municipio que possuem cursos dágua na área urbana ou rural assoreados.
A26: ='Identificação das ações 24-27'!A26 -> BPG2524 | B26: ='Identificação das ações 24-27'!B26 -> T.4.1.6. Obras/serviços de desassoreamento em curso d´água | C26: Elaboração de Projetos (básicos e/ou executivos), serviços ou obras de prevenção e controle da erosão do solo ou do assoreamento dos corpos d’água, visando a melhoria ou recuperação dos corpos d’água | D26: Cobrança Estadual | E26: 160000 | F26: 0 | G26: 160000 | H26: 160000 | I26: 4.1. Controle de processos erosivos | J26: < 15% | K26: A definir | L26: ='Identificação das ações 24-27'!I26 -> Bacia | M26: ='Identificação das ações 24-27'!J26 -> Municipio que possuem cursos dágua na área urbana ou rural assoreados.
A27: ='Identificação das ações 24-27'!A27 -> BPG2624 | B27: ='Identificação das ações 24-27'!B27 -> T.4.2.4. Execução de restauração ecológica | C27: Elaboração de Projetos (básicos e/ou executivos), serviços ou intervenções contemplando soluções baseada na natureza que subsidiem a proteção e recuperação de corpos d'água e as práticas de conservação de solo e água (incluindo transição agroecológica) ou que resultem em aumento de áreas permeáveis, redução do escoamento superficial e aumento da resiliência de sistemas estuarino-lagunares | D27: Cobrança Estadual | E27: 160000 | F27: 160000 | G27: 160000 | H27: 160000 | I27: 4.2. Soluções baseadas na natureza | J27: < 15% | K27: A definir | L27: ='Identificação das ações 24-27'!I27 -> Bacia | M27: ='Identificação das ações 24-27'!J27 -> Municipio que possuem cursos dágua na área urbana ou rural assoreados.
A28: ='Identificação das ações 24-27'!A28 -> BPG2724 | B28: ='Identificação das ações 24-27'!B28 -> T.5.1.1. Elaboração de Projeto de setorização da rede de abastecimento de água | C28: Aprimorar o sistema de controle de perdas para reduzir as perdas no mínimo em 7% | D28: Cobrança Estadual | E28: 300000 | F28: 0 | G28: 0 | H28: 160000 | I28: 5.1 - Controle de perdas | J28: Prioritário > 60% | K28: A definir | L28: ='Identificação das ações 24-27'!I28 -> Bacia | M28: ='Identificação das ações 24-27'!J28 -> Municípios da UGRHI priorizados conforme alto índices de perdas de água no sistema abastecimento público, com mais de 25%
A29: ='Identificação das ações 24-27'!A29 -> BPG2824 | B29: ='Identificação das ações 24-27'!B29 -> T.5.1.2. Execução d a setorização de rede de abaste cimento de água | C29: Aprimorar o sistema de controle de perdas para reduzir as perdas no mínimo em 7% | D29: Cobrança Estadual | E29: 480000 | F29: 800000 | G29: 1106606.05 | H29: 1000000 | I29: 5.1 - Controle de perdas | J29: Prioritário > 60% | K29: A definir | L29: ='Identificação das ações 24-27'!I29 -> Bacia | M29: ='Identificação das ações 24-27'!J29 -> Municípios da UGRHI priorizados conforme alto índices de perdas de água no sistema abastecimento público, com mais de 25%
A30: ='Identificação das ações 24-27'!A30 -> BPG2924 | B30: ='Identificação das ações 24-27'!B30 -> T.5.1.3. Fornecimento e instalação de hidrômetros | C30: Aprimorar o sistema de controle de perdas para reduzir as perdas no mínimo em 7% | D30: Cobrança Estadual | E30: 300000 | F30: 200000 | G30: 200000 | H30: 20000 | I30: 5.1 - Controle de perdas | J30: Prioritário > 60% | K30: A definir | L30: ='Identificação das ações 24-27'!I30 -> Bacia | M30: ='Identificação das ações 24-27'!J30 -> Municípios da UGRHI priorizados conforme alto índices de perdas de água no sistema abastecimento público, com mais de 25%
A31: ='Identificação das ações 24-27'!A31 -> BPG3024 | B31: ='Identificação das ações 24-27'!B31 -> T.5.1.4. Fornecimento e instalação de macromedidores | C31: Aprimorar o sistema de controle de perdas para reduzir as perdas no mínimo em 7% | D31: Cobrança Estadual | E31: 300000 | F31: 600000 | G31: 200000 | H31: 200000 | I31: 5.1 - Controle de perdas | J31: Prioritário > 60% | K31: A definir | L31: ='Identificação das ações 24-27'!I31 -> Bacia | M31: ='Identificação das ações 24-27'!J31 -> Municípios da UGRHI priorizados conforme alto índices de perdas de água no sistema abastecimento público, com mais de 25%
A32: ='Identificação das ações 24-27'!A32 -> BPG3124 | B32: ='Identificação das ações 24-27'!B32 -> T.6.1.2. Obras/serviços para captação e/ou adução de recursos hídricos subterrâneos do poço até o reservatório | C32: Inverter o uso predominante da água subterrânea para superficial aos níveis de 2019 e garantir a água subterrânea com reserva estratégica | D32: Cobrança Estadual | E32: 0 | F32: 160000 | G32: 0 | H32: 0 | I32: 6.1. Captação de recursos hídricos | J32: < 15% | K32: A definir | L32: ='Identificação das ações 24-27'!I32 -> Bacia | M32: ='Identificação das ações 24-27'!J32 -> Municípios da UGRHI priorizados conforme alto índices de perdas de água no sistema abastecimento público, com mais de 25%
A33: ='Identificação das ações 24-27'!A33 -> BPG3224 | B33: ='Identificação das ações 24-27'!B33 -> T.6.1.3. Projetos (básicos e/ou executivos) para captação e/ou adução de recursos hídricos superficiais -do corpo d'água até o sistema de tratamento ou local do uso pretendido | C33: Inverter o uso predominante da água subterrânea para superficial aos níveis de 2019 e garantir a água subterrânea com reserva estratégica | D33: Cobrança Estadual | E33: 160000 | F33: 0 | G33: 0 | H33: 0 | I33: 6.1. Captação de recursos hídricos | J33: < 15% | K33: A definir | L33: ='Identificação das ações 24-27'!I33 -> Bacia | M33: ='Identificação das ações 24-27'!J33 -> Municipios cujo o valor da vazão subterrânea outorgada m³/s está maior que em 2018 ou priorizam o abastecimento com água superficial.
A34: ='Identificação das ações 24-27'!A34 -> BPG3324 | B34: ='Identificação das ações 24-27'!B34 -> T.6.1.4. Obras/serviços para captação e/ou adução de recursos hídricos superficiais do corpo d'água | C34: Inverter o uso predominante da água subterrânea para superficial aos níveis de 2019 e garantir a água subterrânea com reserva estratégica | D34: Cobrança Estadual | E34: 0 | F34: 0 | G34: 160000 | H34: 0 | I34: 6.1. Captação de recursos hídricos | J34: < 15% | K34: A definir | L34: ='Identificação das ações 24-27'!I34 -> Bacia | M34: ='Identificação das ações 24-27'!J34 -> Municipios cujo o valor da vazão subterrânea outorgada m³/s está maior que em 2018 ou priorizam o abastecimento com água superficial.
A35: ='Identificação das ações 24-27'!A35 -> BPG3424 | B35: ='Identificação das ações 24-27'!B35 -> T.6.2.2. Obras/serviços para construção, ampliação ou recuperação de barramento, cisterna, açude | C35: Inverter o uso predominante da água subterrânea para superficial aos níveis de 2019 e garantir a água subterrânea com reserva estratégica | D35: Cobrança Estadual | E35: 0 | F35: 0 | G35: 0 | H35: 0 | I35: 6.2 - Segurança hídrica | J35: < 15% | K35: A definir | L35: ='Identificação das ações 24-27'!I35 -> Bacia | M35: ='Identificação das ações 24-27'!J35 -> Municipios cujo o valor da vazão subterrânea outorgada m³/s está maior que em 2018 ou priorizam o abastecimento com água superficial.
A36: ='Identificação das ações 24-27'!A36 -> BPG3524 | B36: ='Identificação das ações 24-27'!B36 -> T.7.1.2. Obras/serviços de microdrenagem (sarjetas, guias, bocas de lobo, poços de visita, galerias, pavimentação com material drenante entre outros). | C36: Elaboração de Projetos (básicos e/ou executivos), serviços ou obras para contenção de inundações, alagamentos e regularizações de descargas e assim todos os municipios tenham atualizado seus Planos diretores de drenagem ou macrodrenagem e Planos de Contigência para mitigação dos efeitos de eventos climáticos extremos. | D36: Compensação Financeira | E36: 900000 | F36: 1600000 | G36: 1700000 | H36: 1800000 | I36: 7.1. Ações estruturais de micro ou macro drenagem para mitigação de inundações e alagamentos | J36: Prioritário > 60% | K36: A definir | L36: ='Identificação das ações 24-27'!I36 -> Bacia | M36: ='Identificação das ações 24-27'!J36 -> Municipios que possuem áreas de alagamento ou inundação mapeadas, ou em Plano de Macrodrenagem.
A37: ='Identificação das ações 24-27'!A37 -> BPG3624 | B37: ='Identificação das ações 24-27'!B37 -> T.7.1.3. Projetos (básicos e/ou executivos) de macrodrenagem (canalizações, retificações, travessias entre outros, inclusive Planos de Drenagem | C37: Elaboração de Projetos (básicos e/ou executivos), serviços ou obras para contenção de inundações, alagamentos e regularizações de descargas e assim todos os municipios tenham atualizado seus Planos diretores de drenagem ou macrodrenagem e Planos de Contigência para mitigação dos efeitos de eventos climáticos extremos. | D37: Compensação Financeira | E37: 200000 | F37: 300000 | G37: 300000 | H37: 160000 | I37: 7.1. Ações estruturais de micro ou macro drenagem para mitigação de inundações e alagamentos | J37: Prioritário > 60% | K37: A definir | L37: ='Identificação das ações 24-27'!I37 -> Bacia | M37: ='Identificação das ações 24-27'!J37 -> Municipios que possuem áreas de alagamento ou inundação mapeadas, ou em Plano de Macrodrenagem.
A38: ='Identificação das ações 24-27'!A38 -> BPG3724 | B38: ='Identificação das ações 24-27'!B38 -> T.7.1.4. Obras/serviços de macrodrenagem (canalizações, retificações, travessias entre outros) | C38: Elaboração de Projetos (básicos e/ou executivos), serviços ou obras para contenção de inundações, alagamentos e regularizações de descargas e assim todos os municipios tenham atualizado seus Planos diretores de drenagem ou macrodrenagem e Planos de Contigência para mitigação dos efeitos de eventos climáticos extremos. | D38: Compensação Financeira | E38: =1712218.99-E36-E37 -> 612218.99 | F38: 800000 | G38: 900000 | H38: 1000000 | I38: 7.1. Ações estruturais de micro ou macro drenagem para mitigação de inundações e alagamentos | J38: Prioritário > 60% | K38: A definir | L38: ='Identificação das ações 24-27'!I38 -> Bacia | M38: ='Identificação das ações 24-27'!J38 -> Municipios que possuem áreas de alagamento ou inundação mapeadas, ou em Plano de Macrodrenagem.
A39: ='Identificação das ações 24-27'!A39 -> BPG3824 | B39: ='Identificação das ações 24-27'!B39 -> T.8.1.1. Organização de congressos, simpósios, workshops e eventos afins voltados a gestão dos recursos hídricos | C39: Oferecer ao menos 2 eventos relacionados à gestão dos recursos hídricos | D39: Cobrança Estadual | E39: 0 | F39: 0 | G39: 0 | H39: 0 | I39: 8.1. Capacitação técnica em planejamento e gestão de recursos hídricos | J39: < 15% | K39: A definir | L39: ='Identificação das ações 24-27'!I39 -> Bacia | M39: ='Identificação das ações 24-27'!J39 -> Todaa a UGRHI 12
A40: ='Identificação das ações 24-27'!A40 -> BPG3924 | B40: ='Identificação das ações 24-27'!B40 -> T.8.1.2. Organização de capacitação (cursos formais) em gestão de recursos hídricos voltada a técnicos, profissionais e/ou educadores | C40: Oferecer ao menos 1 capacitação técnica relacionada à gestão dos recursos hídricos | D40: Cobrança Estadual | E40: 160000 | F40: 0 | G40: 0 | H40: 0 | I40: 8.1. Capacitação técnica em planejamento e gestão de recursos hídricos | J40: < 15% | K40: A definir | L40: ='Identificação das ações 24-27'!I40 -> Bacia | M40: ='Identificação das ações 24-27'!J40 -> Todaa a UGRHI 12
A41: ='Identificação das ações 24-27'!A41 -> BPG4024 | B41: ='Identificação das ações 24-27'!B41 -> T.8.2.1. Processos formativos de educação voltados à gestão dos recursos hídricos para a sociedade | C41: Oferecer ao menos 1 capacitação técnica relacionada à gestão dos recursos hídricos | D41: Cobrança Estadual | E41: 0 | F41: 0 | G41: 0 | H41: 160000 | I41: 8.2. Educação ambiental vinculada às ações dos planos de bacias | J41: < 15% | K41: A definir | L41: ='Identificação das ações 24-27'!I41 -> Bacia | M41: ='Identificação das ações 24-27'!J41 -> Todaa a UGRHI 12
A42: ='Identificação das ações 24-27'!A42 -> BPG4124 | B42: ='Identificação das ações 24-27'!B42 -> T.8.3.1 . Campanha educativa voltada para a conservação e gestão dos recursos hídricos | C42: Elaborar e Implantar ao menos 1 Plano de Comunicação Social do monitoramento dos recursos hídricos e realizar no minio 2 campanhas | D42: Cobrança Estadual | E42: 0 | F42: 0 | G42: 160000 | H42: 0 | I42: 8.3. Comunicação social e difusão de informações relacionadas à gestão | J42: < 15% | K42: A definir | L42: ='Identificação das ações 24-27'!I42 -> Bacia | M42: ='Identificação das ações 24-27'!J42 -> Todaa a UGRHI 12
A43: ='Identificação das ações 24-27'!A43 -> BPG4224 | B43: ='Identificação das ações 24-27'!B43 -> T.8.3.2. Serviços afetos à elaboração e divulgação de instrumentos de comunicação social | C43: Difundir informações apontadas pela rede de monitoramento dos recursos hídricos,por meio de mídias digitais para acesso da população prioizanado no CCO do BPG. | D43: Cobrança Estadual | E43: 0 | F43: 0 | G43: 0 | H43: 0 | I43: 8.3. Comunicação social e difusão de informações relacionadas à gestão | J43: < 15% | K43: A definir | L43: ='Identificação das ações 24-27'!I43 -> Bacia | M43: ='Identificação das ações 24-27'!J43 -> Todaa a UGRHI 12

Sheet Acompanhamento das metas 24-27
A1: ID | B1: Descrição da ação | C1: Meta do quadriênio | D1: Meta 2024 | E1: % de execução física da meta (2024) | F1: Meta 2025 | G1: % de execução física da meta (2025) | H1: Meta 2026 | I1: % de execução física da meta (2026) | J1: Meta 2027 | K1: % de execução física da meta (2027) | L1: Observações
A2: =IF(INDEX(IdentAcoes[],,1)=0,"",(INDEX(IdentAcoes[],,1))) -> BPG0124 | B2: =IF(INDEX(IdentAcoes[],,4)=0,"",(INDEX(IdentAcoes[],,2))) -> 
A3: BPG0224
A4: BPG0324
A5: BPG0424
A6: BPG0524
A7: BPG0624
A8: BPG0724
A9: BPG0824
A10: BPG0924
A11: BPG1024
A12: BPG1124
A13: BPG1224
A14: BPG1324
A15: BPG1424
A16: BPG1524
A17: BPG1624
A18: BPG1724
A19: BPG1824
A20: BPG1924
A21: BPG2024
A22: BPG2124
A23: BPG2224
A24: BPG2324
A25: BPG2424
A26: BPG2524
A27: BPG2624
A28: BPG2724
A29: BPG2824
A30: BPG2924
A31: BPG3024
A32: BPG3124
A33: BPG3224
A34: BPG3324
A35: BPG3424
A36: BPG3524
A37: BPG3624
A38: BPG3724
A39: BPG3824
A40: BPG3924
A41: BPG4024
A42: BPG4124
A43: BPG4224

Sheet Acomp. financeiro 24-27
A1: ID Ação | B1: Descrição da ação | C1: Fonte | D1: R$ Planejado (2024) | E1: R$ Disponibilizado (2024) | F1: R$ Executado (2024) | G1: R$ Planejado (2025) | H1: R$ Disponibilizado (2025) | I1: R$ Executado (2025) | J1: R$ Planejado (2026) | K1: R$ Disponibilizado (2026) | L1: R$ Executado (2026) | M1: R$ Planejado (2027) | N1: R$ Disponibilizado (2027) | O1: R$ Executado (2027) | P1: Observações sobre execução financeira da meta
A2: =IFERROR(INDEX(IdentAcoes[ID Ação],MATCH(0,INDEX(--(COUNTIF(A$1:A1,IdentAcoes[ID Ação])=IdentAcoes[[Quantidade de fontes de recursos ]]),0),0)),"") -> BPG0124 | B2: =IFERROR(INDEX(IdentAcoes[Descrição da ação],MATCH(0,INDEX(--(COUNTIF(B$1:B1,IdentAcoes[Descrição da ação])=IdentAcoes[[Quantidade de fontes de recursos ]]),0),0)),"") -> T.1.2.2 . Diagnóstico qualitativo e/ou quantitativo de recursos hídricos superficiais e/ou subterrâneos 1ª
A3: =IFERROR(INDEX(IdentAcoes[ID Ação],MATCH(0,INDEX(--(COUNTIF(A$1:A2,IdentAcoes[ID Ação])=IdentAcoes[[Quantidade de fontes de recursos ]]),0),0)),"") -> BPG0124 | B3: =IFERROR(INDEX(IdentAcoes[Descrição da ação],MATCH(0,INDEX(--(COUNTIF(B$1:B2,IdentAcoes[Descrição da ação])=IdentAcoes[[Quantidade de fontes de recursos ]]),0),0)),"") -> T.1.2.2 . Diagnóstico qualitativo e/ou quantitativo de recursos hídricos superficiais e/ou subterrâneos 1ª
A4: =IFERROR(INDEX(IdentAcoes[ID Ação],MATCH(0,INDEX(--(COUNTIF(A$1:A3,IdentAcoes[ID Ação])=IdentAcoes[[Quantidade de fontes de recursos ]]),0),0)),"") -> BPG0224 | B4: =IFERROR(INDEX(IdentAcoes[Descrição da ação],MATCH(0,INDEX(--(COUNTIF(B$1:B3,IdentAcoes[Descrição da ação])=IdentAcoes[[Quantidade de fontes de recursos ]]),0),0)),"") -> T.1.2.3 .Diagnóstico/Levantamento/Modelagem matemática hidrometeorológica para adaptação e mitigação dos efeitos das mudanças climáticas re lacionado aos recursos hídricos.
A5: =IFERROR(INDEX(IdentAcoes[ID Ação],MATCH(0,INDEX(--(COUNTIF(A$1:A4,IdentAcoes[ID Ação])=IdentAcoes[[Quantidade de fontes de recursos ]]),0),0)),"") -> BPG0224 | B5: =IFERROR(INDEX(IdentAcoes[Descrição da ação],MATCH(0,INDEX(--(COUNTIF(B$1:B4,IdentAcoes[Descrição da ação])=IdentAcoes[[Quantidade de fontes de recursos ]]),0),0)),"") -> T.1.2.3 .Diagnóstico/Levantamento/Modelagem matemática hidrometeorológica para adaptação e mitigação dos efeitos das mudanças climáticas re lacionado aos recursos hídricos.
A6: =IFERROR(INDEX(IdentAcoes[ID Ação],MATCH(0,INDEX(--(COUNTIF(A$1:A5,IdentAcoes[ID Ação])=IdentAcoes[[Quantidade de fontes de recursos ]]),0),0)),"") -> BPG0324 | B6: =IFERROR(INDEX(IdentAcoes[Descrição da ação],MATCH(0,INDEX(--(COUNTIF(B$1:B5,IdentAcoes[Descrição da ação])=IdentAcoes[[Quantidade de fontes de recursos ]]),0),0)),"") -> T.1.2.8 . Estudo relacionado à interferência de sistemas agroflorestais, transição agroecológica, recu-
A7: =IFERROR(INDEX(IdentAcoes[ID Ação],MATCH(0,INDEX(--(COUNTIF(A$1:A6,IdentAcoes[ID Ação])=IdentAcoes[[Quantidade de fontes de recursos ]]),0),0)),"") -> BPG0324 | B7: =IFERROR(INDEX(IdentAcoes[Descrição da ação],MATCH(0,INDEX(--(COUNTIF(B$1:B6,IdentAcoes[Descrição da ação])=IdentAcoes[[Quantidade de fontes de recursos ]]),0),0)),"") -> T.1.2.8 . Estudo relacionado à interferência de sistemas agroflorestais, transição agroecológica, recu-
A8: =IFERROR(INDEX(IdentAcoes[ID Ação],MATCH(0,INDEX(--(COUNTIF(A$1:A7,IdentAcoes[ID Ação])=IdentAcoes[[Quantidade de fontes de recursos ]]),0),0)),"") -> BPG0424 | B8: =IFERROR(INDEX(IdentAcoes[Descrição da ação],MATCH(0,INDEX(--(COUNTIF(B$1:B7,IdentAcoes[Descrição da ação])=IdentAcoes[[Quantidade de fontes de recursos ]]),0),0)),"") -> T.1.2.11. Estudo, levantamento, diagnóstico para subsidiar projetos de PSA 3ª
A9: =IFERROR(INDEX(IdentAcoes[ID Ação],MATCH(0,INDEX(--(COUNTIF(A$1:A8,IdentAcoes[ID Ação])=IdentAcoes[[Quantidade de fontes de recursos ]]),0),0)),"") -> BPG0424 | B9: =IFERROR(INDEX(IdentAcoes[Descrição da ação],MATCH(0,INDEX(--(COUNTIF(B$1:B8,IdentAcoes[Descrição da ação])=IdentAcoes[[Quantidade de fontes de recursos ]]),0),0)),"") -> T.1.2.11. Estudo, levantamento, diagnóstico para subsidiar projetos de PSA 3ª
A10: =IFERROR(INDEX(IdentAcoes[ID Ação],MATCH(0,INDEX(--(COUNTIF(A$1:A9,IdentAcoes[ID Ação])=IdentAcoes[[Quantidade de fontes de recursos ]]),0),0)),"") -> BPG0524 | B10: =IFERROR(INDEX(IdentAcoes[Descrição da ação],MATCH(0,INDEX(--(COUNTIF(B$1:B9,IdentAcoes[Descrição da ação])=IdentAcoes[[Quantidade de fontes de recursos ]]),0),0)),"") -> T.1.2.14. Mapeamento de áreas suscetíveis a pro cessos erosivos e deslizamentos. 2ª
A11: =IFERROR(INDEX(IdentAcoes[ID Ação],MATCH(0,INDEX(--(COUNTIF(A$1:A10,IdentAcoes[ID Ação])=IdentAcoes[[Quantidade de fontes de recursos ]]),0),0)),"") -> BPG0524 | B11: =IFERROR(INDEX(IdentAcoes[Descrição da ação],MATCH(0,INDEX(--(COUNTIF(B$1:B10,IdentAcoes[Descrição da ação])=IdentAcoes[[Quantidade de fontes de recursos ]]),0),0)),"") -> T.1.2.14. Mapeamento de áreas suscetíveis a pro cessos erosivos e deslizamentos. 2ª
A12: =IFERROR(INDEX(IdentAcoes[ID Ação],MATCH(0,INDEX(--(COUNTIF(A$1:A11,IdentAcoes[ID Ação])=IdentAcoes[[Quantidade de fontes de recursos ]]),0),0)),"") -> BPG0624 | B12: =IFERROR(INDEX(IdentAcoes[Descrição da ação],MATCH(0,INDEX(--(COUNTIF(B$1:B11,IdentAcoes[Descrição da ação])=IdentAcoes[[Quantidade de fontes de recursos ]]),0),0)),"") -> T.1.2.15. Modelagem matemática qualitativa e/ou quantitativa de recursos hídricos superficiais e/ou subterrâneos.
A13: =IFERROR(INDEX(IdentAcoes[ID Ação],MATCH(0,INDEX(--(COUNTIF(A$1:A12,IdentAcoes[ID Ação])=IdentAcoes[[Quantidade de fontes de recursos ]]),0),0)),"") -> BPG0624 | B13: =IFERROR(INDEX(IdentAcoes[Descrição da ação],MATCH(0,INDEX(--(COUNTIF(B$1:B12,IdentAcoes[Descrição da ação])=IdentAcoes[[Quantidade de fontes de recursos ]]),0),0)),"") -> T.1.2.15. Modelagem matemática qualitativa e/ou quantitativa de recursos hídricos superficiais e/ou subterrâneos.
A14: =IFERROR(INDEX(IdentAcoes[ID Ação],MATCH(0,INDEX(--(COUNTIF(A$1:A13,IdentAcoes[ID Ação])=IdentAcoes[[Quantidade de fontes de recursos ]]),0),0)),"") -> BPG0724 | B14: =IFERROR(INDEX(IdentAcoes[Descrição da ação],MATCH(0,INDEX(--(COUNTIF(B$1:B13,IdentAcoes[Descrição da ação])=IdentAcoes[[Quantidade de fontes de recursos ]]),0),0)),"") -> T.1.2.16. Planejamento territorial com foco na conservação, proteção, recuperaç ão ou uso dos recursos hídricos
A15: =IFERROR(INDEX(IdentAcoes[ID Ação],MATCH(0,INDEX(--(COUNTIF(A$1:A14,IdentAcoes[ID Ação])=IdentAcoes[[Quantidade de fontes de recursos ]]),0),0)),"") -> BPG0724 | B15: =IFERROR(INDEX(IdentAcoes[Descrição da ação],MATCH(0,INDEX(--(COUNTIF(B$1:B14,IdentAcoes[Descrição da ação])=IdentAcoes[[Quantidade de fontes de recursos ]]),0),0)),"") -> T.1.2.16. Planejamento territorial com foco na conservação, proteção, recuperaç ão ou uso dos recursos hídricos
A16: =IFERROR(INDEX(IdentAcoes[ID Ação],MATCH(0,INDEX(--(COUNTIF(A$1:A15,IdentAcoes[ID Ação])=IdentAcoes[[Quantidade de fontes de recursos ]]),0),0)),"") -> BPG0824 | B16: =IFERROR(INDEX(IdentAcoes[Descrição da ação],MATCH(0,INDEX(--(COUNTIF(B$1:B15,IdentAcoes[Descrição da ação])=IdentAcoes[[Quantidade de fontes de recursos ]]),0),0)),"") -> T.1.2.21. Plano diretor de controle de perdas. 4ª+D17
A17: =IFERROR(INDEX(IdentAcoes[ID Ação],MATCH(0,INDEX(--(COUNTIF(A$1:A16,IdentAcoes[ID Ação])=IdentAcoes[[Quantidade de fontes de recursos ]]),0),0)),"") -> BPG0824 | B17: =IFERROR(INDEX(IdentAcoes[Descrição da ação],MATCH(0,INDEX(--(COUNTIF(B$1:B16,IdentAcoes[Descrição da ação])=IdentAcoes[[Quantidade de fontes de recursos ]]),0),0)),"") -> T.1.2.21. Plano diretor de controle de perdas. 4ª+D17
A18: =IFERROR(INDEX(IdentAcoes[ID Ação],MATCH(0,INDEX(--(COUNTIF(A$1:A17,IdentAcoes[ID Ação])=IdentAcoes[[Quantidade de fontes de recursos ]]),0),0)),"") -> BPG0924 | B18: =IFERROR(INDEX(IdentAcoes[Descrição da ação],MATCH(0,INDEX(--(COUNTIF(B$1:B17,IdentAcoes[Descrição da ação])=IdentAcoes[[Quantidade de fontes de recursos ]]),0),0)),"") -> T.1.2.23. Plano de comunicação Social de Comitê de Bacia Hid rográfica demanda induzida
A19: =IFERROR(INDEX(IdentAcoes[ID Ação],MATCH(0,INDEX(--(COUNTIF(A$1:A18,IdentAcoes[ID Ação])=IdentAcoes[[Quantidade de fontes de recursos ]]),0),0)),"") -> BPG0924 | B19: =IFERROR(INDEX(IdentAcoes[Descrição da ação],MATCH(0,INDEX(--(COUNTIF(B$1:B18,IdentAcoes[Descrição da ação])=IdentAcoes[[Quantidade de fontes de recursos ]]),0),0)),"") -> T.1.2.23. Plano de comunicação Social de Comitê de Bacia Hid rográfica demanda induzida
A20: =IFERROR(INDEX(IdentAcoes[ID Ação],MATCH(0,INDEX(--(COUNTIF(A$1:A19,IdentAcoes[ID Ação])=IdentAcoes[[Quantidade de fontes de recursos ]]),0),0)),"") -> BPG1024 | B20: =IFERROR(INDEX(IdentAcoes[Descrição da ação],MATCH(0,INDEX(--(COUNTIF(B$1:B19,IdentAcoes[Descrição da ação])=IdentAcoes[[Quantidade de fontes de recursos ]]),0),0)),"") -> T.2.5.2. Desenvolvimento, implantação, manutenção ou atualização de sistema de informação e/ou de suporte à decisão (SSD) com centro de contole operacional
A21: =IFERROR(INDEX(IdentAcoes[ID Ação],MATCH(0,INDEX(--(COUNTIF(A$1:A20,IdentAcoes[ID Ação])=IdentAcoes[[Quantidade de fontes de recursos ]]),0),0)),"") -> BPG1024 | B21: =IFERROR(INDEX(IdentAcoes[Descrição da ação],MATCH(0,INDEX(--(COUNTIF(B$1:B20,IdentAcoes[Descrição da ação])=IdentAcoes[[Quantidade de fontes de recursos ]]),0),0)),"") -> T.2.5.2. Desenvolvimento, implantação, manutenção ou atualização de sistema de informação e/ou de suporte à decisão (SSD) com centro de contole operacional
A22: =IFERROR(INDEX(IdentAcoes[ID Ação],MATCH(0,INDEX(--(COUNTIF(A$1:A21,IdentAcoes[ID Ação])=IdentAcoes[[Quantidade de fontes de recursos ]]),0),0)),"") -> BPG1024 | B22: =IFERROR(INDEX(IdentAcoes[Descrição da ação],MATCH(0,INDEX(--(COUNTIF(B$1:B21,IdentAcoes[Descrição da ação])=IdentAcoes[[Quantidade de fontes de recursos ]]),0),0)),"") -> T.2.5.2. Desenvolvimento, implantação, manutenção ou atualização de sistema de informação e/ou de suporte à decisão (SSD) com centro de contole operacional
A23: =IFERROR(INDEX(IdentAcoes[ID Ação],MATCH(0,INDEX(--(COUNTIF(A$1:A22,IdentAcoes[ID Ação])=IdentAcoes[[Quantidade de fontes de recursos ]]),0),0)),"") -> BPG1124 | B23: =IFERROR(INDEX(IdentAcoes[Descrição da ação],MATCH(0,INDEX(--(COUNTIF(B$1:B22,IdentAcoes[Descrição da ação])=IdentAcoes[[Quantidade de fontes de recursos ]]),0),0)),"") -> T.2.5.3. Implantação, manutenção, modernização e ampliação de rede de monitoramento qualiquantitativo
A24: =IFERROR(INDEX(IdentAcoes[ID Ação],MATCH(0,INDEX(--(COUNTIF(A$1:A23,IdentAcoes[ID Ação])=IdentAcoes[[Quantidade de fontes de recursos ]]),0),0)),"") -> BPG1124 | B24: =IFERROR(INDEX(IdentAcoes[Descrição da ação],MATCH(0,INDEX(--(COUNTIF(B$1:B23,IdentAcoes[Descrição da ação])=IdentAcoes[[Quantidade de fontes de recursos ]]),0),0)),"") -> T.2.5.3. Implantação, manutenção, modernização e ampliação de rede de monitoramento qualiquantitativo
A25: =IFERROR(INDEX(IdentAcoes[ID Ação],MATCH(0,INDEX(--(COUNTIF(A$1:A24,IdentAcoes[ID Ação])=IdentAcoes[[Quantidade de fontes de recursos ]]),0),0)),"") -> BPG1124 | B25: =IFERROR(INDEX(IdentAcoes[Descrição da ação],MATCH(0,INDEX(--(COUNTIF(B$1:B24,IdentAcoes[Descrição da ação])=IdentAcoes[[Quantidade de fontes de recursos ]]),0),0)),"") -> T.2.5.3. Implantação, manutenção, modernização e ampliação de rede de monitoramento qualiquantitativo
A26: =IFERROR(INDEX(IdentAcoes[ID Ação],MATCH(0,INDEX(--(COUNTIF(A$1:A25,IdentAcoes[ID Ação])=IdentAcoes[[Quantidade de fontes de recursos ]]),0),0)),"") -> BPG1224 | B26: =IFERROR(INDEX(IdentAcoes[Descrição da ação],MATCH(0,INDEX(--(COUNTIF(B$1:B25,IdentAcoes[Descrição da ação])=IdentAcoes[[Quantidade de fontes de recursos ]]),0),0)),"") -> T.3.1.1. Projeto (básico e/ou executivo) de obras lineares (rede coletora de esgotos, emissário por gravidade, interceptores ou coletor tronco)
A27: =IFERROR(INDEX(IdentAcoes[ID Ação],MATCH(0,INDEX(--(COUNTIF(A$1:A26,IdentAcoes[ID Ação])=IdentAcoes[[Quantidade de fontes de recursos ]]),0),0)),"") -> BPG1224 | B27: =IFERROR(INDEX(IdentAcoes[Descrição da ação],MATCH(0,INDEX(--(COUNTIF(B$1:B26,IdentAcoes[Descrição da ação])=IdentAcoes[[Quantidade de fontes de recursos ]]),0),0)),"") -> T.3.1.1. Projeto (básico e/ou executivo) de obras lineares (rede coletora de esgotos, emissário por gravidade, interceptores ou coletor tronco)
A28: =IFERROR(INDEX(IdentAcoes[ID Ação],MATCH(0,INDEX(--(COUNTIF(A$1:A27,IdentAcoes[ID Ação])=IdentAcoes[[Quantidade de fontes de recursos ]]),0),0)),"") -> BPG1224 | B28: =IFERROR(INDEX(IdentAcoes[Descrição da ação],MATCH(0,INDEX(--(COUNTIF(B$1:B27,IdentAcoes[Descrição da ação])=IdentAcoes[[Quantidade de fontes de recursos ]]),0),0)),"") -> T.3.1.1. Projeto (básico e/ou executivo) de obras lineares (rede coletora de esgotos, emissário por gravidade, interceptores ou coletor tronco)
A29: =IFERROR(INDEX(IdentAcoes[ID Ação],MATCH(0,INDEX(--(COUNTIF(A$1:A28,IdentAcoes[ID Ação])=IdentAcoes[[Quantidade de fontes de recursos ]]),0),0)),"") -> BPG1324 | B29: =IFERROR(INDEX(IdentAcoes[Descrição da ação],MATCH(0,INDEX(--(COUNTIF(B$1:B28,IdentAcoes[Descrição da ação])=IdentAcoes[[Quantidade de fontes de recursos ]]),0),0)),"") -> T.3.1.2. Execução de obras lineares (rede coletora, emissário por gravidade, interceptores ou coletor tronco) inclusive substituição.
A30: =IFERROR(INDEX(IdentAcoes[ID Ação],MATCH(0,INDEX(--(COUNTIF(A$1:A29,IdentAcoes[ID Ação])=IdentAcoes[[Quantidade de fontes de recursos ]]),0),0)),"") -> BPG1324 | B30: =IFERROR(INDEX(IdentAcoes[Descrição da ação],MATCH(0,INDEX(--(COUNTIF(B$1:B29,IdentAcoes[Descrição da ação])=IdentAcoes[[Quantidade de fontes de recursos ]]),0),0)),"") -> T.3.1.2. Execução de obras lineares (rede coletora, emissário por gravidade, interceptores ou coletor tronco) inclusive substituição.
A31: =IFERROR(INDEX(IdentAcoes[ID Ação],MATCH(0,INDEX(--(COUNTIF(A$1:A30,IdentAcoes[ID Ação])=IdentAcoes[[Quantidade de fontes de recursos ]]),0),0)),"") -> BPG1324 | B31: =IFERROR(INDEX(IdentAcoes[Descrição da ação],MATCH(0,INDEX(--(COUNTIF(B$1:B30,IdentAcoes[Descrição da ação])=IdentAcoes[[Quantidade de fontes de recursos ]]),0),0)),"") -> T.3.1.2. Execução de obras lineares (rede coletora, emissário por gravidade, interceptores ou coletor tronco) inclusive substituição.
A32: =IFERROR(INDEX(IdentAcoes[ID Ação],MATCH(0,INDEX(--(COUNTIF(A$1:A31,IdentAcoes[ID Ação])=IdentAcoes[[Quantidade de fontes de recursos ]]),0),0)),"") -> BPG1424 | B32: =IFERROR(INDEX(IdentAcoes[Descrição da ação],MATCH(0,INDEX(--(COUNTIF(B$1:B31,IdentAcoes[Descrição da ação])=IdentAcoes[[Quantidade de fontes de recursos ]]),0),0)),"") -> T.3.1.3. Projeto (básico e/ou executivos) de reformas, melhorias ou obras localizadas (EEE Estação Elevatória de Esgoto e/ou ETE Estação de tratamento de Esgoto)
A33: =IFERROR(INDEX(IdentAcoes[ID Ação],MATCH(0,INDEX(--(COUNTIF(A$1:A32,IdentAcoes[ID Ação])=IdentAcoes[[Quantidade de fontes de recursos ]]),0),0)),"") -> BPG1424 | B33: =IFERROR(INDEX(IdentAcoes[Descrição da ação],MATCH(0,INDEX(--(COUNTIF(B$1:B32,IdentAcoes[Descrição da ação])=IdentAcoes[[Quantidade de fontes de recursos ]]),0),0)),"") -> T.3.1.3. Projeto (básico e/ou executivos) de reformas, melhorias ou obras localizadas (EEE Estação Elevatória de Esgoto e/ou ETE Estação de tratamento de Esgoto)
A34: =IFERROR(INDEX(IdentAcoes[ID Ação],MATCH(0,INDEX(--(COUNTIF(A$1:A33,IdentAcoes[ID Ação])=IdentAcoes[[Quantidade de fontes de recursos ]]),0),0)),"") -> BPG1524 | B34: =IFERROR(INDEX(IdentAcoes[Descrição da ação],MATCH(0,INDEX(--(COUNTIF(B$1:B33,IdentAcoes[Descrição da ação])=IdentAcoes[[Quantidade de fontes de recursos ]]),0),0)),"") -> T.3.1.4. Execução de reformas, melhorias ou obras de EEE e/ou ETE
A35: =IFERROR(INDEX(IdentAcoes[ID Ação],MATCH(0,INDEX(--(COUNTIF(A$1:A34,IdentAcoes[ID Ação])=IdentAcoes[[Quantidade de fontes de recursos ]]),0),0)),"") -> BPG1524 | B35: =IFERROR(INDEX(IdentAcoes[Descrição da ação],MATCH(0,INDEX(--(COUNTIF(B$1:B34,IdentAcoes[Descrição da ação])=IdentAcoes[[Quantidade de fontes de recursos ]]),0),0)),"") -> T.3.1.4. Execução de reformas, melhorias ou obras de EEE e/ou ETE
A36: =IFERROR(INDEX(IdentAcoes[ID Ação],MATCH(0,INDEX(--(COUNTIF(A$1:A35,IdentAcoes[ID Ação])=IdentAcoes[[Quantidade de fontes de recursos ]]),0),0)),"") -> BPG1624 | B36: =IFERROR(INDEX(IdentAcoes[Descrição da ação],MATCH(0,INDEX(--(COUNTIF(B$1:B35,IdentAcoes[Descrição da ação])=IdentAcoes[[Quantidade de fontes de recursos ]]),0),0)),"") -> T.3.1.6. Projeto de sistema de tratamento de lodo de ETE ou ETA
A37: =IFERROR(INDEX(IdentAcoes[ID Ação],MATCH(0,INDEX(--(COUNTIF(A$1:A36,IdentAcoes[ID Ação])=IdentAcoes[[Quantidade de fontes de recursos ]]),0),0)),"") -> BPG1624 | B37: =IFERROR(INDEX(IdentAcoes[Descrição da ação],MATCH(0,INDEX(--(COUNTIF(B$1:B36,IdentAcoes[Descrição da ação])=IdentAcoes[[Quantidade de fontes de recursos ]]),0),0)),"") -> T.3.1.6. Projeto de sistema de tratamento de lodo de ETE ou ETA
A38: =IFERROR(INDEX(IdentAcoes[ID Ação],MATCH(0,INDEX(--(COUNTIF(A$1:A37,IdentAcoes[ID Ação])=IdentAcoes[[Quantidade de fontes de recursos ]]),0),0)),"") -> BPG1724 | B38: =IFERROR(INDEX(IdentAcoes[Descrição da ação],MATCH(0,INDEX(--(COUNTIF(B$1:B37,IdentAcoes[Descrição da ação])=IdentAcoes[[Quantidade de fontes de recursos ]]),0),0)),"") -> T.3.1.7. Execução de sistema de tratamento de lodo de ETE ou ETA
A39: =IFERROR(INDEX(IdentAcoes[ID Ação],MATCH(0,INDEX(--(COUNTIF(A$1:A38,IdentAcoes[ID Ação])=IdentAcoes[[Quantidade de fontes de recursos ]]),0),0)),"") -> BPG1724 | B39: =IFERROR(INDEX(IdentAcoes[Descrição da ação],MATCH(0,INDEX(--(COUNTIF(B$1:B38,IdentAcoes[Descrição da ação])=IdentAcoes[[Quantidade de fontes de recursos ]]),0),0)),"") -> T.3.1.7. Execução de sistema de tratamento de lodo de ETE ou ETA
A40: =IFERROR(INDEX(IdentAcoes[ID Ação],MATCH(0,INDEX(--(COUNTIF(A$1:A39,IdentAcoes[ID Ação])=IdentAcoes[[Quantidade de fontes de recursos ]]),0),0)),"") -> BPG1824 | B40: =IFERROR(INDEX(IdentAcoes[Descrição da ação],MATCH(0,INDEX(--(COUNTIF(B$1:B39,IdentAcoes[Descrição da ação])=IdentAcoes[[Quantidade de fontes de recursos ]]),0),0)),"") -> T.3.2.1 . Projetos (básicos e/ou executivos) de recuperação de áreas contaminadas
A41: =IFERROR(INDEX(IdentAcoes[ID Ação],MATCH(0,INDEX(--(COUNTIF(A$1:A40,IdentAcoes[ID Ação])=IdentAcoes[[Quantidade de fontes de recursos ]]),0),0)),"") -> BPG1824 | B41: =IFERROR(INDEX(IdentAcoes[Descrição da ação],MATCH(0,INDEX(--(COUNTIF(B$1:B40,IdentAcoes[Descrição da ação])=IdentAcoes[[Quantidade de fontes de recursos ]]),0),0)),"") -> T.3.2.1 . Projetos (básicos e/ou executivos) de recuperação de áreas contaminadas
A42: =IFERROR(INDEX(IdentAcoes[ID Ação],MATCH(0,INDEX(--(COUNTIF(A$1:A41,IdentAcoes[ID Ação])=IdentAcoes[[Quantidade de fontes de recursos ]]),0),0)),"") -> BPG1824 | B42: =IFERROR(INDEX(IdentAcoes[Descrição da ação],MATCH(0,INDEX(--(COUNTIF(B$1:B41,IdentAcoes[Descrição da ação])=IdentAcoes[[Quantidade de fontes de recursos ]]),0),0)),"") -> T.3.2.1 . Projetos (básicos e/ou executivos) de recuperação de áreas contaminadas
A43: =IFERROR(INDEX(IdentAcoes[ID Ação],MATCH(0,INDEX(--(COUNTIF(A$1:A42,IdentAcoes[ID Ação])=IdentAcoes[[Quantidade de fontes de recursos ]]),0),0)),"") -> BPG1924 | B43: =IFERROR(INDEX(IdentAcoes[Descrição da ação],MATCH(0,INDEX(--(COUNTIF(B$1:B42,IdentAcoes[Descrição da ação])=IdentAcoes[[Quantidade de fontes de recursos ]]),0),0)),"") -> T.3.2.2. Execução de serviços, obras ou ações de recuperação de áreas contaminadas
A44: =IFERROR(INDEX(IdentAcoes[ID Ação],MATCH(0,INDEX(--(COUNTIF(A$1:A43,IdentAcoes[ID Ação])=IdentAcoes[[Quantidade de fontes de recursos ]]),0),0)),"") -> BPG1924 | B44: =IFERROR(INDEX(IdentAcoes[Descrição da ação],MATCH(0,INDEX(--(COUNTIF(B$1:B43,IdentAcoes[Descrição da ação])=IdentAcoes[[Quantidade de fontes de recursos ]]),0),0)),"") -> T.3.2.2. Execução de serviços, obras ou ações de recuperação de áreas contaminadas
A45: =IFERROR(INDEX(IdentAcoes[ID Ação],MATCH(0,INDEX(--(COUNTIF(A$1:A44,IdentAcoes[ID Ação])=IdentAcoes[[Quantidade de fontes de recursos ]]),0),0)),"") -> BPG1924 | B45: =IFERROR(INDEX(IdentAcoes[Descrição da ação],MATCH(0,INDEX(--(COUNTIF(B$1:B44,IdentAcoes[Descrição da ação])=IdentAcoes[[Quantidade de fontes de recursos ]]),0),0)),"") -> T.3.2.2. Execução de serviços, obras ou ações de recuperação de áreas contaminadas
A46: =IFERROR(INDEX(IdentAcoes[ID Ação],MATCH(0,INDEX(--(COUNTIF(A$1:A45,IdentAcoes[ID Ação])=IdentAcoes[[Quantidade de fontes de recursos ]]),0),0)),"") -> BPG2024 | B46: =IFERROR(INDEX(IdentAcoes[Descrição da ação],MATCH(0,INDEX(--(COUNTIF(B$1:B45,IdentAcoes[Descrição da ação])=IdentAcoes[[Quantidade de fontes de recursos ]]),0),0)),"") -> T.4.1.1 . Projetos (básicos e/ou executivos) para prevenção e controle de processos erosivos, tais como ravinas, voçorocas e deslizamentos
A47: =IFERROR(INDEX(IdentAcoes[ID Ação],MATCH(0,INDEX(--(COUNTIF(A$1:A46,IdentAcoes[ID Ação])=IdentAcoes[[Quantidade de fontes de recursos ]]),0),0)),"") -> BPG2024 | B47: =IFERROR(INDEX(IdentAcoes[Descrição da ação],MATCH(0,INDEX(--(COUNTIF(B$1:B46,IdentAcoes[Descrição da ação])=IdentAcoes[[Quantidade de fontes de recursos ]]),0),0)),"") -> T.4.1.1 . Projetos (básicos e/ou executivos) para prevenção e controle de processos erosivos, tais como ravinas, voçorocas e deslizamentos
A48: =IFERROR(INDEX(IdentAcoes[ID Ação],MATCH(0,INDEX(--(COUNTIF(A$1:A47,IdentAcoes[ID Ação])=IdentAcoes[[Quantidade de fontes de recursos ]]),0),0)),"") -> BPG2024 | B48: =IFERROR(INDEX(IdentAcoes[Descrição da ação],MATCH(0,INDEX(--(COUNTIF(B$1:B47,IdentAcoes[Descrição da ação])=IdentAcoes[[Quantidade de fontes de recursos ]]),0),0)),"") -> T.4.1.1 . Projetos (básicos e/ou executivos) para prevenção e controle de processos erosivos, tais como ravinas, voçorocas e deslizamentos
A49: =IFERROR(INDEX(IdentAcoes[ID Ação],MATCH(0,INDEX(--(COUNTIF(A$1:A48,IdentAcoes[ID Ação])=IdentAcoes[[Quantidade de fontes de recursos ]]),0),0)),"") -> BPG2024 | B49: =IFERROR(INDEX(IdentAcoes[Descrição da ação],MATCH(0,INDEX(--(COUNTIF(B$1:B48,IdentAcoes[Descrição da ação])=IdentAcoes[[Quantidade de fontes de recursos ]]),0),0)),"") -> T.4.1.1 . Projetos (básicos e/ou executivos) para prevenção e controle de processos erosivos, tais como ravinas, voçorocas e deslizamentos
A50: =IFERROR(INDEX(IdentAcoes[ID Ação],MATCH(0,INDEX(--(COUNTIF(A$1:A49,IdentAcoes[ID Ação])=IdentAcoes[[Quantidade de fontes de recursos ]]),0),0)),"") -> BPG2124 | B50: =IFERROR(INDEX(IdentAcoes[Descrição da ação],MATCH(0,INDEX(--(COUNTIF(B$1:B49,IdentAcoes[Descrição da ação])=IdentAcoes[[Quantidade de fontes de recursos ]]),0),0)),"") -> T.4.1.3. Projetos (básicos e/ou executivos) para proteção e/ou contenção de margens de curso dagua

Sheet Acomp. - PAPI_21 (Delib. 190)
A1: ID Ação | B1: Ano | C1: SubPDC | D1: Prioridade do SubPDC | E1: Ação | F1: Meta | G1: % Execução da meta | H1: Segmento do executor | I1: Área de abrangência | J1: Nome da área de abrangência | K1: Recurso financeiro executado no ano (R$) | L1: Justificativa sobre execução física e financeira em 2024

Sheet Acomp. PAPI_22_23 (Delib. 246)
A1: ID Ação | B1: Ano | C1: SubPDC | D1: Prioridade do SubPDC | E1: Ação | F1: Meta | G1: % Execução da meta | H1: Segmento do executor | I1: Área de abrangência | J1: Nome da área de abrangência | K1: Justificativa sobre execução física e financeira em 2024

Sheet PAPI 2024-2027
E1: R$ Planejado
A2: ID Ação | B2: Descrição da ação | C2: Meta | D2: Fonte | E2: 2024 | F2: 2025 | G2: 2026 | H2: 2027 | I2: SubPDC | J2: Prioridade do PDC | K2: Segmento do executor | L2: Área de abrangência | M2: Nome da área de abrangência
A3: =IF(INDEX(Financeiro[],,1)=0,"",(INDEX(Financeiro[],,1))) -> BPG0124 | B3: T.1.2.2 . Diagnóstico qualitativo e/ou quantitativo de recursos hídricos superficiais e/ou subterrâneos 1ª | C3: Ampliar o sistema de informações hidrometeorologicas, quantidade e qualidade das águas subterrãneas e superficiais, situação de nascentes e APPs da Bacia do Baixo Pardo Grande | D3: Cobrança Estadual | E3: 0 | F3: 160000 | G3: 160000 | H3: 160000 | I3: 1.2. Planejamento e gestão de recursos hídricos | J3: <25% | K3: A definir | L3: UGRHi | M3: Prioritariamente nas sub bacias das áreas consideradas com criticidade no Estudos dos sistemas dos aquíferps Guarani, Bauru e Serra Geral
A4: BPG0124 | B4: T.1.2.3 .Diagnóstico/Levantamento/Modelagem matemática hidrometeorológica para adaptação e mitigação dos efeitos das mudanças climáticas re lacionado aos recursos hídricos. | E4: 0 | F4: 0 | G4: 0 | H4: 160000 | J4: <25% | K4: A definir
A5: BPG0224 | B5: T.1.2.8 . Estudo relacionado à interferência de sistemas agroflorestais, transição agroecológica, recu- | E5: 0 | F5: 160000 | G5: 0 | H5: 160000 | J5: <25% | K5: A definir
A6: BPG0224 | B6: T.1.2.11. Estudo, levantamento, diagnóstico para subsidiar projetos de PSA 3ª | E6: 0 | F6: 0 | G6: 0 | H6: 160000 | J6: <25% | K6: A definir
A7: BPG0324 | B7: T.1.2.14. Mapeamento de áreas suscetíveis a pro cessos erosivos e deslizamentos. 2ª | E7: 160000 | F7: 0 | G7: =160000+22747 -> 182747 | H7: 0 | J7: <25% | K7: A definir
A8: BPG0324 | B8: T.1.2.15. Modelagem matemática qualitativa e/ou quantitativa de recursos hídricos superficiais e/ou subterrâneos. | E8: 0 | F8: 0 | G8: 160000 | H8: 0 | J8: <25% | K8: A definir
A9: BPG0424 | B9: T.1.2.16. Planejamento territorial com foco na conservação, proteção, recuperaç ão ou uso dos recursos hídricos | E9: 160000 | F9: 160000 | G9: 0 | H9: 160000 | J9: <25% | K9: A definir
A10: BPG0424 | B10: T.1.2.21. Plano diretor de controle de perdas. 4ª+D17 | E10: 0 | F10: 0 | G10: 160000 | H10: 0 | J10: <25% | K10: Autarquias e Concessionárias de saneamento
A11: BPG0524 | B11: T.1.2.23. Plano de comunicação Social de Comitê de Bacia Hid rográfica demanda induzida | E11: 0 | F11: 160000 | G11: 0 | H11: 0 | J11: <25% | K11: A definir
A12: BPG0524 | B12: T.2.5.2. Desenvolvimento, implantação, manutenção ou atualização de sistema de informação e/ou de suporte à decisão (SSD) | C12: Criar o Centro Controle Operacional para reunião e ´facilitar a análise de dados da UGRHI 12 | D12: Cobrança Estadual | E12: =IFERROR(INDEX(Financeiro[R$ Planejado (2024)],MATCH($A12,IdentAcoes[ID Ação])),"") -> 0 | F12: =IFERROR(INDEX(Financeiro[R$ Planejado (2025)],MATCH($A12,IdentAcoes[ID Ação])),"") -> 0 | G12: =IFERROR(INDEX(Financeiro[R$ Planejado (2026)],MATCH($A12,IdentAcoes[ID Ação])),"") -> 0 | H12: =IFERROR(INDEX(Financeiro[R$ Planejado (2027)],MATCH($A12,IdentAcoes[ID Ação])),"") -> 0 | I12: 2.5 Rede de Monitoramento e Sistemas de Informação sobre Recursos Hídricos | J12: <25% | K12: A definir | L12: UGRHi | M12: Prioritariamente nas sub bacias das áreas consideradas com criticidade no Estudos dos sistemas dos aquíferps Guarani, Bauru e Serra Geral
A13: BPG0624 | B13: T.2.5.3. Implantação, manutenção, modernização e ampliação de rede de monitoramento qualiquantitativo | D13: Cobrança Estadual | E13: =IFERROR(INDEX(Financeiro[R$ Planejado (2024)],MATCH($A13,IdentAcoes[ID Ação])),"") -> 0 | F13: =IFERROR(INDEX(Financeiro[R$ Planejado (2025)],MATCH($A13,IdentAcoes[ID Ação])),"") -> 0 | G13: =IFERROR(INDEX(Financeiro[R$ Planejado (2026)],MATCH($A13,IdentAcoes[ID Ação])),"") -> 0 | H13: =IFERROR(INDEX(Financeiro[R$ Planejado (2027)],MATCH($A13,IdentAcoes[ID Ação])),"") -> 0 | J13: <25% | K13: A definir
A14: BPG0624 | C14: =IF(INDEX('Acompanhamento das metas 24-27'!$C$2:$C$50,MATCH(A14,'Acompanhamento das metas 24-27'!$A$2:$A$50,0))<>0,INDEX('Acompanhamento das metas 24-27'!$C$2:$C$50,MATCH(A14,'Acompanhamento das metas 24-27'!$A$2:$A$50,0)),"") ->  | D14: =IFERROR(INDEX(Financeiro[Fonte],MATCH(A14,IdentAcoes[ID Ação])),"") -> 0 | E14: =IFERROR(INDEX(Financeiro[R$ Planejado (2024)],MATCH($A14,IdentAcoes[ID Ação])),"") -> 0 | F14: =IFERROR(INDEX(Financeiro[R$ Planejado (2025)],MATCH($A14,IdentAcoes[ID Ação])),"") -> 0 | G14: =IFERROR(INDEX(Financeiro[R$ Planejado (2026)],MATCH($A14,IdentAcoes[ID Ação])),"") -> 0 | H14: =IFERROR(INDEX(Financeiro[R$ Planejado (2027)],MATCH($A14,IdentAcoes[ID Ação])),"") -> 0 | I14: =IFERROR(INDEX(IdentAcoes[SubPDC],MATCH(A14,IdentAcoes[ID Ação],0)),"") -> 1.2. Planejamento e gestão de recursos hídricos | J14: =IFERROR(INDEX(IdentAcoes[Prioridade do PDC],MATCH(A14,IdentAcoes[ID Ação],0)),"") -> 0 | K14: =IFERROR(INDEX(IdentAcoes[Segmento do executor],MATCH($A14,IdentAcoes[ID Ação],0)),"") -> Sociedade Civil | L14: =IFERROR(INDEX(IdentAcoes[Área de abrangência],MATCH($A14,IdentAcoes[ID Ação],0)),"") -> Bacia | M14: =IFERROR(INDEX(IdentAcoes[Detalhamento da área de abrangência],MATCH($A14,IdentAcoes[ID Ação],0)),"") -> Prioritariamente nas sub bacias das áreas consideradas com criticidade no Estudos dos sistemas dos aquíferps Guarani, Bauru e Serra Geral
A15: BPG0724 | B15: =INDEX(Financeiro[Descrição da ação],MATCH(A15,Financeiro[ID Ação], 0)) -> T.1.2.16. Planejamento territorial com foco na conservação, proteção, recuperaç ão ou uso dos recursos hídricos | C15: =IF(INDEX('Acompanhamento das metas 24-27'!$C$2:$C$50,MATCH(A15,'Acompanhamento das metas 24-27'!$A$2:$A$50,0))<>0,INDEX('Acompanhamento das metas 24-27'!$C$2:$C$50,MATCH(A15,'Acompanhamento das metas 24-27'!$A$2:$A$50,0)),"") ->  | D15: =IFERROR(INDEX(Financeiro[Fonte],MATCH(A15,IdentAcoes[ID Ação])),"") -> 0 | E15: =IFERROR(INDEX(Financeiro[R$ Planejado (2024)],MATCH($A15,IdentAcoes[ID Ação])),"") -> 0 | F15: =IFERROR(INDEX(Financeiro[R$ Planejado (2025)],MATCH($A15,IdentAcoes[ID Ação])),"") -> 0 | G15: =IFERROR(INDEX(Financeiro[R$ Planejado (2026)],MATCH($A15,IdentAcoes[ID Ação])),"") -> 0 | H15: =IFERROR(INDEX(Financeiro[R$ Planejado (2027)],MATCH($A15,IdentAcoes[ID Ação])),"") -> 0 | I15: =IFERROR(INDEX(IdentAcoes[SubPDC],MATCH(A15,IdentAcoes[ID Ação],0)),"") -> 1.2. Planejamento e gestão de recursos hídricos | J15: =IFERROR(INDEX(IdentAcoes[Prioridade do PDC],MATCH(A15,IdentAcoes[ID Ação],0)),"") -> 0 | K15: =IFERROR(INDEX(IdentAcoes[Segmento do executor],MATCH($A15,IdentAcoes[ID Ação],0)),"") -> Sociedade Civil | L15: =IFERROR(INDEX(IdentAcoes[Área de abrangência],MATCH($A15,IdentAcoes[ID Ação],0)),"") -> Bacia | M15: =IFERROR(INDEX(IdentAcoes[Detalhamento da área de abrangência],MATCH($A15,IdentAcoes[ID Ação],0)),"") -> Prioritariamente nas sub bacias das áreas consideradas com criticidade no Estudos dos sistemas dos aquíferps Guarani, Bauru e Serra Geral
A16: BPG0724 | B16: =INDEX(Financeiro[Descrição da ação],MATCH(A16,Financeiro[ID Ação], 0)) -> T.1.2.16. Planejamento territorial com foco na conservação, proteção, recuperaç ão ou uso dos recursos hídricos | C16: =IF(INDEX('Acompanhamento das metas 24-27'!$C$2:$C$50,MATCH(A16,'Acompanhamento das metas 24-27'!$A$2:$A$50,0))<>0,INDEX('Acompanhamento das metas 24-27'!$C$2:$C$50,MATCH(A16,'Acompanhamento das metas 24-27'!$A$2:$A$50,0)),"") ->  | D16: =IFERROR(INDEX(Financeiro[Fonte],MATCH(A16,IdentAcoes[ID Ação])),"") -> 0 | E16: =IFERROR(INDEX(Financeiro[R$ Planejado (2024)],MATCH($A16,IdentAcoes[ID Ação])),"") -> 0 | F16: =IFERROR(INDEX(Financeiro[R$ Planejado (2025)],MATCH($A16,IdentAcoes[ID Ação])),"") -> 0 | G16: =IFERROR(INDEX(Financeiro[R$ Planejado (2026)],MATCH($A16,IdentAcoes[ID Ação])),"") -> 0 | H16: =IFERROR(INDEX(Financeiro[R$ Planejado (2027)],MATCH($A16,IdentAcoes[ID Ação])),"") -> 0 | I16: =IFERROR(INDEX(IdentAcoes[SubPDC],MATCH(A16,IdentAcoes[ID Ação],0)),"") -> 1.2. Planejamento e gestão de recursos hídricos | J16: =IFERROR(INDEX(IdentAcoes[Prioridade do PDC],MATCH(A16,IdentAcoes[ID Ação],0)),"") -> 0 | K16: =IFERROR(INDEX(IdentAcoes[Segmento do executor],MATCH($A16,IdentAcoes[ID Ação],0)),"") -> Sociedade Civil | L16: =IFERROR(INDEX(IdentAcoes[Área de abrangência],MATCH($A16,IdentAcoes[ID Ação],0)),"") -> Bacia | M16: =IFERROR(INDEX(IdentAcoes[Detalhamento da área de abrangência],MATCH($A16,IdentAcoes[ID Ação],0)),"") -> Prioritariamente nas sub bacias das áreas consideradas com criticidade no Estudos dos sistemas dos aquíferps Guarani, Bauru e Serra Geral
A17: BPG0824 | B17: =INDEX(Financeiro[Descrição da ação],MATCH(A17,Financeiro[ID Ação], 0)) -> T.1.2.21. Plano diretor de controle de perdas. 4ª+D17 | C17: =IF(INDEX('Acompanhamento das metas 24-27'!$C$2:$C$50,MATCH(A17,'Acompanhamento das metas 24-27'!$A$2:$A$50,0))<>0,INDEX('Acompanhamento das metas 24-27'!$C$2:$C$50,MATCH(A17,'Acompanhamento das metas 24-27'!$A$2:$A$50,0)),"") ->  | D17: =IFERROR(INDEX(Financeiro[Fonte],MATCH(A17,IdentAcoes[ID Ação])),"") -> 0 | E17: =IFERROR(INDEX(Financeiro[R$ Planejado (2024)],MATCH($A17,IdentAcoes[ID Ação])),"") -> 0 | F17: =IFERROR(INDEX(Financeiro[R$ Planejado (2025)],MATCH($A17,IdentAcoes[ID Ação])),"") -> 0 | G17: =IFERROR(INDEX(Financeiro[R$ Planejado (2026)],MATCH($A17,IdentAcoes[ID Ação])),"") -> 0 | H17: =IFERROR(INDEX(Financeiro[R$ Planejado (2027)],MATCH($A17,IdentAcoes[ID Ação])),"") -> 0 | I17: =IFERROR(INDEX(IdentAcoes[SubPDC],MATCH(A17,IdentAcoes[ID Ação],0)),"") -> 1.2. Planejamento e gestão de recursos hídricos | J17: =IFERROR(INDEX(IdentAcoes[Prioridade do PDC],MATCH(A17,IdentAcoes[ID Ação],0)),"") -> 0 | K17: =IFERROR(INDEX(IdentAcoes[Segmento do executor],MATCH($A17,IdentAcoes[ID Ação],0)),"") -> Sociedade Civil | L17: =IFERROR(INDEX(IdentAcoes[Área de abrangência],MATCH($A17,IdentAcoes[ID Ação],0)),"") -> Bacia | M17: =IFERROR(INDEX(IdentAcoes[Detalhamento da área de abrangência],MATCH($A17,IdentAcoes[ID Ação],0)),"") -> Prioritariamente nas sub bacias das áreas consideradas com criticidade no Estudos dos sistemas dos aquíferps Guarani, Bauru e Serra Geral
A18: BPG0824 | B18: =INDEX(Financeiro[Descrição da ação],MATCH(A18,Financeiro[ID Ação], 0)) -> T.1.2.21. Plano diretor de controle de perdas. 4ª+D17 | C18: =IF(INDEX('Acompanhamento das metas 24-27'!$C$2:$C$50,MATCH(A18,'Acompanhamento das metas 24-27'!$A$2:$A$50,0))<>0,INDEX('Acompanhamento das metas 24-27'!$C$2:$C$50,MATCH(A18,'Acompanhamento das metas 24-27'!$A$2:$A$50,0)),"") ->  | D18: =IFERROR(INDEX(Financeiro[Fonte],MATCH(A18,IdentAcoes[ID Ação])),"") -> 0 | E18: =IFERROR(INDEX(Financeiro[R$ Planejado (2024)],MATCH($A18,IdentAcoes[ID Ação])),"") -> 0 | F18: =IFERROR(INDEX(Financeiro[R$ Planejado (2025)],MATCH($A18,IdentAcoes[ID Ação])),"") -> 0 | G18: =IFERROR(INDEX(Financeiro[R$ Planejado (2026)],MATCH($A18,IdentAcoes[ID Ação])),"") -> 0 | H18: =IFERROR(INDEX(Financeiro[R$ Planejado (2027)],MATCH($A18,IdentAcoes[ID Ação])),"") -> 0 | I18: =IFERROR(INDEX(IdentAcoes[SubPDC],MATCH(A18,IdentAcoes[ID Ação],0)),"") -> 1.2. Planejamento e gestão de recursos hídricos | J18: =IFERROR(INDEX(IdentAcoes[Prioridade do PDC],MATCH(A18,IdentAcoes[ID Ação],0)),"") -> 0 | K18: =IFERROR(INDEX(IdentAcoes[Segmento do executor],MATCH($A18,IdentAcoes[ID Ação],0)),"") -> Sociedade Civil | L18: =IFERROR(INDEX(IdentAcoes[Área de abrangência],MATCH($A18,IdentAcoes[ID Ação],0)),"") -> Bacia | M18: =IFERROR(INDEX(IdentAcoes[Detalhamento da área de abrangência],MATCH($A18,IdentAcoes[ID Ação],0)),"") -> Prioritariamente nas sub bacias das áreas consideradas com criticidade no Estudos dos sistemas dos aquíferps Guarani, Bauru e Serra Geral
A19: BPG0924 | B19: =INDEX(Financeiro[Descrição da ação],MATCH(A19,Financeiro[ID Ação], 0)) -> T.1.2.23. Plano de comunicação Social de Comitê de Bacia Hid rográfica demanda induzida | C19: =IF(INDEX('Acompanhamento das metas 24-27'!$C$2:$C$50,MATCH(A19,'Acompanhamento das metas 24-27'!$A$2:$A$50,0))<>0,INDEX('Acompanhamento das metas 24-27'!$C$2:$C$50,MATCH(A19,'Acompanhamento das metas 24-27'!$A$2:$A$50,0)),"") ->  | D19: =IFERROR(INDEX(Financeiro[Fonte],MATCH(A19,IdentAcoes[ID Ação])),"") -> 0 | E19: =IFERROR(INDEX(Financeiro[R$ Planejado (2024)],MATCH($A19,IdentAcoes[ID Ação])),"") -> 0 | F19: =IFERROR(INDEX(Financeiro[R$ Planejado (2025)],MATCH($A19,IdentAcoes[ID Ação])),"") -> 0 | G19: =IFERROR(INDEX(Financeiro[R$ Planejado (2026)],MATCH($A19,IdentAcoes[ID Ação])),"") -> 0 | H19: =IFERROR(INDEX(Financeiro[R$ Planejado (2027)],MATCH($A19,IdentAcoes[ID Ação])),"") -> 0 | I19: =IFERROR(INDEX(IdentAcoes[SubPDC],MATCH(A19,IdentAcoes[ID Ação],0)),"") -> 1.2. Planejamento e gestão de recursos hídricos | J19: =IFERROR(INDEX(IdentAcoes[Prioridade do PDC],MATCH(A19,IdentAcoes[ID Ação],0)),"") -> 0 | K19: =IFERROR(INDEX(IdentAcoes[Segmento do executor],MATCH($A19,IdentAcoes[ID Ação],0)),"") -> Sociedade Civil | L19: =IFERROR(INDEX(IdentAcoes[Área de abrangência],MATCH($A19,IdentAcoes[ID Ação],0)),"") -> Bacia | M19: =IFERROR(INDEX(IdentAcoes[Detalhamento da área de abrangência],MATCH($A19,IdentAcoes[ID Ação],0)),"") -> Prioritariamente nas sub bacias das áreas consideradas com criticidade no Estudos dos sistemas dos aquíferps Guarani, Bauru e Serra Geral
A20: BPG0924 | B20: =INDEX(Financeiro[Descrição da ação],MATCH(A20,Financeiro[ID Ação], 0)) -> T.1.2.23. Plano de comunicação Social de Comitê de Bacia Hid rográfica demanda induzida | C20: =IF(INDEX('Acompanhamento das metas 24-27'!$C$2:$C$50,MATCH(A20,'Acompanhamento das metas 24-27'!$A$2:$A$50,0))<>0,INDEX('Acompanhamento das metas 24-27'!$C$2:$C$50,MATCH(A20,'Acompanhamento das metas 24-27'!$A$2:$A$50,0)),"") ->  | D20: =IFERROR(INDEX(Financeiro[Fonte],MATCH(A20,IdentAcoes[ID Ação])),"") -> 0 | E20: =IFERROR(INDEX(Financeiro[R$ Planejado (2024)],MATCH($A20,IdentAcoes[ID Ação])),"") -> 0 | F20: =IFERROR(INDEX(Financeiro[R$ Planejado (2025)],MATCH($A20,IdentAcoes[ID Ação])),"") -> 0 | G20: =IFERROR(INDEX(Financeiro[R$ Planejado (2026)],MATCH($A20,IdentAcoes[ID Ação])),"") -> 0 | H20: =IFERROR(INDEX(Financeiro[R$ Planejado (2027)],MATCH($A20,IdentAcoes[ID Ação])),"") -> 0 | I20: =IFERROR(INDEX(IdentAcoes[SubPDC],MATCH(A20,IdentAcoes[ID Ação],0)),"") -> 1.2. Planejamento e gestão de recursos hídricos | J20: =IFERROR(INDEX(IdentAcoes[Prioridade do PDC],MATCH(A20,IdentAcoes[ID Ação],0)),"") -> 0 | K20: =IFERROR(INDEX(IdentAcoes[Segmento do executor],MATCH($A20,IdentAcoes[ID Ação],0)),"") -> Sociedade Civil | L20: =IFERROR(INDEX(IdentAcoes[Área de abrangência],MATCH($A20,IdentAcoes[ID Ação],0)),"") -> Bacia | M20: =IFERROR(INDEX(IdentAcoes[Detalhamento da área de abrangência],MATCH($A20,IdentAcoes[ID Ação],0)),"") -> Prioritariamente nas sub bacias das áreas consideradas com criticidade no Estudos dos sistemas dos aquíferps Guarani, Bauru e Serra Geral
A21: BPG1024 | B21: =INDEX(Financeiro[Descrição da ação],MATCH(A21,Financeiro[ID Ação], 0)) -> T.2.5.2. Desenvolvimento, implantação, manutenção ou atualização de sistema de informação e/ou de suporte à decisão (SSD) com centro de contole operacional | C21: =IF(INDEX('Acompanhamento das metas 24-27'!$C$2:$C$50,MATCH(A21,'Acompanhamento das metas 24-27'!$A$2:$A$50,0))<>0,INDEX('Acompanhamento das metas 24-27'!$C$2:$C$50,MATCH(A21,'Acompanhamento das metas 24-27'!$A$2:$A$50,0)),"") ->  | D21: =IFERROR(INDEX(Financeiro[Fonte],MATCH(A21,IdentAcoes[ID Ação])),"") -> 0 | E21: =IFERROR(INDEX(Financeiro[R$ Planejado (2024)],MATCH($A21,IdentAcoes[ID Ação])),"") -> 0 | F21: =IFERROR(INDEX(Financeiro[R$ Planejado (2025)],MATCH($A21,IdentAcoes[ID Ação])),"") -> 0 | G21: =IFERROR(INDEX(Financeiro[R$ Planejado (2026)],MATCH($A21,IdentAcoes[ID Ação])),"") -> 0 | H21: =IFERROR(INDEX(Financeiro[R$ Planejado (2027)],MATCH($A21,IdentAcoes[ID Ação])),"") -> 0 | I21: =IFERROR(INDEX(IdentAcoes[SubPDC],MATCH(A21,IdentAcoes[ID Ação],0)),"") -> 2.5 Rede de Monitoramento e Sistemas de Informação sobre Recursos Hídricos | J21: =IFERROR(INDEX(IdentAcoes[Prioridade do PDC],MATCH(A21,IdentAcoes[ID Ação],0)),"") -> 0 | K21: =IFERROR(INDEX(IdentAcoes[Segmento do executor],MATCH($A21,IdentAcoes[ID Ação],0)),"") -> Estado | L21: =IFERROR(INDEX(IdentAcoes[Área de abrangência],MATCH($A21,IdentAcoes[ID Ação],0)),"") -> Bacia | M21: =IFERROR(INDEX(IdentAcoes[Detalhamento da área de abrangência],MATCH($A21,IdentAcoes[ID Ação],0)),"") -> Prioritariamente nos aquiferos Guarani, Bauru e Serra Geral e águas superficiais da bacias do BPG
A22: BPG1024 | B22: =INDEX(Financeiro[Descrição da ação],MATCH(A22,Financeiro[ID Ação], 0)) -> T.2.5.2. Desenvolvimento, implantação, manutenção ou atualização de sistema de informação e/ou de suporte à decisão (SSD) com centro de contole operacional | C22: =IF(INDEX('Acompanhamento das metas 24-27'!$C$2:$C$50,MATCH(A22,'Acompanhamento das metas 24-27'!$A$2:$A$50,0))<>0,INDEX('Acompanhamento das metas 24-27'!$C$2:$C$50,MATCH(A22,'Acompanhamento das metas 24-27'!$A$2:$A$50,0)),"") ->  | D22: =IFERROR(INDEX(Financeiro[Fonte],MATCH(A22,IdentAcoes[ID Ação])),"") -> 0 | E22: =IFERROR(INDEX(Financeiro[R$ Planejado (2024)],MATCH($A22,IdentAcoes[ID Ação])),"") -> 0 | F22: =IFERROR(INDEX(Financeiro[R$ Planejado (2025)],MATCH($A22,IdentAcoes[ID Ação])),"") -> 0 | G22: =IFERROR(INDEX(Financeiro[R$ Planejado (2026)],MATCH($A22,IdentAcoes[ID Ação])),"") -> 0 | H22: =IFERROR(INDEX(Financeiro[R$ Planejado (2027)],MATCH($A22,IdentAcoes[ID Ação])),"") -> 0 | I22: =IFERROR(INDEX(IdentAcoes[SubPDC],MATCH(A22,IdentAcoes[ID Ação],0)),"") -> 2.5 Rede de Monitoramento e Sistemas de Informação sobre Recursos Hídricos | J22: =IFERROR(INDEX(IdentAcoes[Prioridade do PDC],MATCH(A22,IdentAcoes[ID Ação],0)),"") -> 0 | K22: =IFERROR(INDEX(IdentAcoes[Segmento do executor],MATCH($A22,IdentAcoes[ID Ação],0)),"") -> Estado | L22: =IFERROR(INDEX(IdentAcoes[Área de abrangência],MATCH($A22,IdentAcoes[ID Ação],0)),"") -> Bacia | M22: =IFERROR(INDEX(IdentAcoes[Detalhamento da área de abrangência],MATCH($A22,IdentAcoes[ID Ação],0)),"") -> Prioritariamente nos aquiferos Guarani, Bauru e Serra Geral e águas superficiais da bacias do BPG
A23: BPG1024 | B23: =INDEX(Financeiro[Descrição da ação],MATCH(A23,Financeiro[ID Ação], 0)) -> T.2.5.2. Desenvolvimento, implantação, manutenção ou atualização de sistema de informação e/ou de suporte à decisão (SSD) com centro de contole operacional | C23: =IF(INDEX('Acompanhamento das metas 24-27'!$C$2:$C$50,MATCH(A23,'Acompanhamento das metas 24-27'!$A$2:$A$50,0))<>0,INDEX('Acompanhamento das metas 24-27'!$C$2:$C$50,MATCH(A23,'Acompanhamento das metas 24-27'!$A$2:$A$50,0)),"") ->  | D23: =IFERROR(INDEX(Financeiro[Fonte],MATCH(A23,IdentAcoes[ID Ação])),"") -> 0 | E23: =IFERROR(INDEX(Financeiro[R$ Planejado (2024)],MATCH($A23,IdentAcoes[ID Ação])),"") -> 0 | F23: =IFERROR(INDEX(Financeiro[R$ Planejado (2025)],MATCH($A23,IdentAcoes[ID Ação])),"") -> 0 | G23: =IFERROR(INDEX(Financeiro[R$ Planejado (2026)],MATCH($A23,IdentAcoes[ID Ação])),"") -> 0 | H23: =IFERROR(INDEX(Financeiro[R$ Planejado (2027)],MATCH($A23,IdentAcoes[ID Ação])),"") -> 0 | I23: =IFERROR(INDEX(IdentAcoes[SubPDC],MATCH(A23,IdentAcoes[ID Ação],0)),"") -> 2.5 Rede de Monitoramento e Sistemas de Informação sobre Recursos Hídricos | J23: =IFERROR(INDEX(IdentAcoes[Prioridade do PDC],MATCH(A23,IdentAcoes[ID Ação],0)),"") -> 0 | K23: =IFERROR(INDEX(IdentAcoes[Segmento do executor],MATCH($A23,IdentAcoes[ID Ação],0)),"") -> Estado | L23: =IFERROR(INDEX(IdentAcoes[Área de abrangência],MATCH($A23,IdentAcoes[ID Ação],0)),"") -> Bacia | M23: =IFERROR(INDEX(IdentAcoes[Detalhamento da área de abrangência],MATCH($A23,IdentAcoes[ID Ação],0)),"") -> Prioritariamente nos aquiferos Guarani, Bauru e Serra Geral e águas superficiais da bacias do BPG
A24: BPG1124 | B24: =INDEX(Financeiro[Descrição da ação],MATCH(A24,Financeiro[ID Ação], 0)) -> T.2.5.3. Implantação, manutenção, modernização e ampliação de rede de monitoramento qualiquantitativo | C24: =IF(INDEX('Acompanhamento das metas 24-27'!$C$2:$C$50,MATCH(A24,'Acompanhamento das metas 24-27'!$A$2:$A$50,0))<>0,INDEX('Acompanhamento das metas 24-27'!$C$2:$C$50,MATCH(A24,'Acompanhamento das metas 24-27'!$A$2:$A$50,0)),"") ->  | D24: =IFERROR(INDEX(Financeiro[Fonte],MATCH(A24,IdentAcoes[ID Ação])),"") -> 0 | E24: =IFERROR(INDEX(Financeiro[R$ Planejado (2024)],MATCH($A24,IdentAcoes[ID Ação])),"") -> 0 | F24: =IFERROR(INDEX(Financeiro[R$ Planejado (2025)],MATCH($A24,IdentAcoes[ID Ação])),"") -> 0 | G24: =IFERROR(INDEX(Financeiro[R$ Planejado (2026)],MATCH($A24,IdentAcoes[ID Ação])),"") -> 0 | H24: =IFERROR(INDEX(Financeiro[R$ Planejado (2027)],MATCH($A24,IdentAcoes[ID Ação])),"") -> 0 | I24: =IFERROR(INDEX(IdentAcoes[SubPDC],MATCH(A24,IdentAcoes[ID Ação],0)),"") -> 2.5 Rede de Monitoramento e Sistemas de Informação sobre Recursos Hídricos | J24: =IFERROR(INDEX(IdentAcoes[Prioridade do PDC],MATCH(A24,IdentAcoes[ID Ação],0)),"") -> 0 | K24: =IFERROR(INDEX(IdentAcoes[Segmento do executor],MATCH($A24,IdentAcoes[ID Ação],0)),"") -> Estado | L24: =IFERROR(INDEX(IdentAcoes[Área de abrangência],MATCH($A24,IdentAcoes[ID Ação],0)),"") -> Bacia | M24: =IFERROR(INDEX(IdentAcoes[Detalhamento da área de abrangência],MATCH($A24,IdentAcoes[ID Ação],0)),"") -> Prioritariamente nos aquiferos Guarani, Bauru e Serra Geral e águas superficiais da bacias do BPG
A25: BPG1124 | B25: =INDEX(Financeiro[Descrição da ação],MATCH(A25,Financeiro[ID Ação], 0)) -> T.2.5.3. Implantação, manutenção, modernização e ampliação de rede de monitoramento qualiquantitativo | C25: =IF(INDEX('Acompanhamento das metas 24-27'!$C$2:$C$50,MATCH(A25,'Acompanhamento das metas 24-27'!$A$2:$A$50,0))<>0,INDEX('Acompanhamento das metas 24-27'!$C$2:$C$50,MATCH(A25,'Acompanhamento das metas 24-27'!$A$2:$A$50,0)),"") ->  | D25: =IFERROR(INDEX(Financeiro[Fonte],MATCH(A25,IdentAcoes[ID Ação])),"") -> 0 | E25: =IFERROR(INDEX(Financeiro[R$ Planejado (2024)],MATCH($A25,IdentAcoes[ID Ação])),"") -> 0 | F25: =IFERROR(INDEX(Financeiro[R$ Planejado (2025)],MATCH($A25,IdentAcoes[ID Ação])),"") -> 0 | G25: =IFERROR(INDEX(Financeiro[R$ Planejado (2026)],MATCH($A25,IdentAcoes[ID Ação])),"") -> 0 | H25: =IFERROR(INDEX(Financeiro[R$ Planejado (2027)],MATCH($A25,IdentAcoes[ID Ação])),"") -> 0 | I25: =IFERROR(INDEX(IdentAcoes[SubPDC],MATCH(A25,IdentAcoes[ID Ação],0)),"") -> 2.5 Rede de Monitoramento e Sistemas de Informação sobre Recursos Hídricos | J25: =IFERROR(INDEX(IdentAcoes[Prioridade do PDC],MATCH(A25,IdentAcoes[ID Ação],0)),"") -> 0 | K25: =IFERROR(INDEX(IdentAcoes[Segmento do executor],MATCH($A25,IdentAcoes[ID Ação],0)),"") -> Estado | L25: =IFERROR(INDEX(IdentAcoes[Área de abrangência],MATCH($A25,IdentAcoes[ID Ação],0)),"") -> Bacia | M25: =IFERROR(INDEX(IdentAcoes[Detalhamento da área de abrangência],MATCH($A25,IdentAcoes[ID Ação],0)),"") -> Prioritariamente nos aquiferos Guarani, Bauru e Serra Geral e águas superficiais da bacias do BPG
A26: BPG1124 | B26: =INDEX(Financeiro[Descrição da ação],MATCH(A26,Financeiro[ID Ação], 0)) -> T.2.5.3. Implantação, manutenção, modernização e ampliação de rede de monitoramento qualiquantitativo | C26: =IF(INDEX('Acompanhamento das metas 24-27'!$C$2:$C$50,MATCH(A26,'Acompanhamento das metas 24-27'!$A$2:$A$50,0))<>0,INDEX('Acompanhamento das metas 24-27'!$C$2:$C$50,MATCH(A26,'Acompanhamento das metas 24-27'!$A$2:$A$50,0)),"") ->  | D26: =IFERROR(INDEX(Financeiro[Fonte],MATCH(A26,IdentAcoes[ID Ação])),"") -> 0 | E26: =IFERROR(INDEX(Financeiro[R$ Planejado (2024)],MATCH($A26,IdentAcoes[ID Ação])),"") -> 0 | F26: =IFERROR(INDEX(Financeiro[R$ Planejado (2025)],MATCH($A26,IdentAcoes[ID Ação])),"") -> 0 | G26: =IFERROR(INDEX(Financeiro[R$ Planejado (2026)],MATCH($A26,IdentAcoes[ID Ação])),"") -> 0 | H26: =IFERROR(INDEX(Financeiro[R$ Planejado (2027)],MATCH($A26,IdentAcoes[ID Ação])),"") -> 0 | I26: =IFERROR(INDEX(IdentAcoes[SubPDC],MATCH(A26,IdentAcoes[ID Ação],0)),"") -> 2.5 Rede de Monitoramento e Sistemas de Informação sobre Recursos Hídricos | J26: =IFERROR(INDEX(IdentAcoes[Prioridade do PDC],MATCH(A26,IdentAcoes[ID Ação],0)),"") -> 0 | K26: =IFERROR(INDEX(IdentAcoes[Segmento do executor],MATCH($A26,IdentAcoes[ID Ação],0)),"") -> Estado | L26: =IFERROR(INDEX(IdentAcoes[Área de abrangência],MATCH($A26,IdentAcoes[ID Ação],0)),"") -> Bacia | M26: =IFERROR(INDEX(IdentAcoes[Detalhamento da área de abrangência],MATCH($A26,IdentAcoes[ID Ação],0)),"") -> Prioritariamente nos aquiferos Guarani, Bauru e Serra Geral e águas superficiais da bacias do BPG
A27: BPG1224 | B27: =INDEX(Financeiro[Descrição da ação],MATCH(A27,Financeiro[ID Ação], 0)) -> T.3.1.1. Projeto (básico e/ou executivo) de obras lineares (rede coletora de esgotos, emissário por gravidade, interceptores ou coletor tronco) | C27: =IF(INDEX('Acompanhamento das metas 24-27'!$C$2:$C$50,MATCH(A27,'Acompanhamento das metas 24-27'!$A$2:$A$50,0))<>0,INDEX('Acompanhamento das metas 24-27'!$C$2:$C$50,MATCH(A27,'Acompanhamento das metas 24-27'!$A$2:$A$50,0)),"") ->  | D27: =IFERROR(INDEX(Financeiro[Fonte],MATCH(A27,IdentAcoes[ID Ação])),"") -> 0 | E27: =IFERROR(INDEX(Financeiro[R$ Planejado (2024)],MATCH($A27,IdentAcoes[ID Ação])),"") -> 0 | F27: =IFERROR(INDEX(Financeiro[R$ Planejado (2025)],MATCH($A27,IdentAcoes[ID Ação])),"") -> 0 | G27: =IFERROR(INDEX(Financeiro[R$ Planejado (2026)],MATCH($A27,IdentAcoes[ID Ação])),"") -> 0 | H27: =IFERROR(INDEX(Financeiro[R$ Planejado (2027)],MATCH($A27,IdentAcoes[ID Ação])),"") -> 0 | I27: =IFERROR(INDEX(IdentAcoes[SubPDC],MATCH(A27,IdentAcoes[ID Ação],0)),"") -> 3.1 - Sist. esgotamento | J27: =IFERROR(INDEX(IdentAcoes[Prioridade do PDC],MATCH(A27,IdentAcoes[ID Ação],0)),"") -> 0 | K27: =IFERROR(INDEX(IdentAcoes[Segmento do executor],MATCH($A27,IdentAcoes[ID Ação],0)),"") -> Município | L27: =IFERROR(INDEX(IdentAcoes[Área de abrangência],MATCH($A27,IdentAcoes[ID Ação],0)),"") -> Bacia | M27: =IFERROR(INDEX(IdentAcoes[Detalhamento da área de abrangência],MATCH($A27,IdentAcoes[ID Ação],0)),"") -> Municipio que não possuem toda a rede coletora e de afastamento de esgoto ou precisam altera-las
A28: BPG1224 | B28: =INDEX(Financeiro[Descrição da ação],MATCH(A28,Financeiro[ID Ação], 0)) -> T.3.1.1. Projeto (básico e/ou executivo) de obras lineares (rede coletora de esgotos, emissário por gravidade, interceptores ou coletor tronco) | C28: =IF(INDEX('Acompanhamento das metas 24-27'!$C$2:$C$50,MATCH(A28,'Acompanhamento das metas 24-27'!$A$2:$A$50,0))<>0,INDEX('Acompanhamento das metas 24-27'!$C$2:$C$50,MATCH(A28,'Acompanhamento das metas 24-27'!$A$2:$A$50,0)),"") ->  | D28: =IFERROR(INDEX(Financeiro[Fonte],MATCH(A28,IdentAcoes[ID Ação])),"") -> 0 | E28: =IFERROR(INDEX(Financeiro[R$ Planejado (2024)],MATCH($A28,IdentAcoes[ID Ação])),"") -> 0 | F28: =IFERROR(INDEX(Financeiro[R$ Planejado (2025)],MATCH($A28,IdentAcoes[ID Ação])),"") -> 0 | G28: =IFERROR(INDEX(Financeiro[R$ Planejado (2026)],MATCH($A28,IdentAcoes[ID Ação])),"") -> 0 | H28: =IFERROR(INDEX(Financeiro[R$ Planejado (2027)],MATCH($A28,IdentAcoes[ID Ação])),"") -> 0 | I28: =IFERROR(INDEX(IdentAcoes[SubPDC],MATCH(A28,IdentAcoes[ID Ação],0)),"") -> 3.1 - Sist. esgotamento | J28: =IFERROR(INDEX(IdentAcoes[Prioridade do PDC],MATCH(A28,IdentAcoes[ID Ação],0)),"") -> 0 | K28: =IFERROR(INDEX(IdentAcoes[Segmento do executor],MATCH($A28,IdentAcoes[ID Ação],0)),"") -> Município | L28: =IFERROR(INDEX(IdentAcoes[Área de abrangência],MATCH($A28,IdentAcoes[ID Ação],0)),"") -> Bacia | M28: =IFERROR(INDEX(IdentAcoes[Detalhamento da área de abrangência],MATCH($A28,IdentAcoes[ID Ação],0)),"") -> Municipio que não possuem toda a rede coletora e de afastamento de esgoto ou precisam altera-las
A29: BPG1224 | B29: =INDEX(Financeiro[Descrição da ação],MATCH(A29,Financeiro[ID Ação], 0)) -> T.3.1.1. Projeto (básico e/ou executivo) de obras lineares (rede coletora de esgotos, emissário por gravidade, interceptores ou coletor tronco) | C29: =IF(INDEX('Acompanhamento das metas 24-27'!$C$2:$C$50,MATCH(A29,'Acompanhamento das metas 24-27'!$A$2:$A$50,0))<>0,INDEX('Acompanhamento das metas 24-27'!$C$2:$C$50,MATCH(A29,'Acompanhamento das metas 24-27'!$A$2:$A$50,0)),"") ->  | D29: =IFERROR(INDEX(Financeiro[Fonte],MATCH(A29,IdentAcoes[ID Ação])),"") -> 0 | E29: =IFERROR(INDEX(Financeiro[R$ Planejado (2024)],MATCH($A29,IdentAcoes[ID Ação])),"") -> 0 | F29: =IFERROR(INDEX(Financeiro[R$ Planejado (2025)],MATCH($A29,IdentAcoes[ID Ação])),"") -> 0 | G29: =IFERROR(INDEX(Financeiro[R$ Planejado (2026)],MATCH($A29,IdentAcoes[ID Ação])),"") -> 0 | H29: =IFERROR(INDEX(Financeiro[R$ Planejado (2027)],MATCH($A29,IdentAcoes[ID Ação])),"") -> 0 | I29: =IFERROR(INDEX(IdentAcoes[SubPDC],MATCH(A29,IdentAcoes[ID Ação],0)),"") -> 3.1 - Sist. esgotamento | J29: =IFERROR(INDEX(IdentAcoes[Prioridade do PDC],MATCH(A29,IdentAcoes[ID Ação],0)),"") -> 0 | K29: =IFERROR(INDEX(IdentAcoes[Segmento do executor],MATCH($A29,IdentAcoes[ID Ação],0)),"") -> Município | L29: =IFERROR(INDEX(IdentAcoes[Área de abrangência],MATCH($A29,IdentAcoes[ID Ação],0)),"") -> Bacia | M29: =IFERROR(INDEX(IdentAcoes[Detalhamento da área de abrangência],MATCH($A29,IdentAcoes[ID Ação],0)),"") -> Municipio que não possuem toda a rede coletora e de afastamento de esgoto ou precisam altera-las
A30: BPG1324 | B30: =INDEX(Financeiro[Descrição da ação],MATCH(A30,Financeiro[ID Ação], 0)) -> T.3.1.2. Execução de obras lineares (rede coletora, emissário por gravidade, interceptores ou coletor tronco) inclusive substituição. | C30: =IF(INDEX('Acompanhamento das metas 24-27'!$C$2:$C$50,MATCH(A30,'Acompanhamento das metas 24-27'!$A$2:$A$50,0))<>0,INDEX('Acompanhamento das metas 24-27'!$C$2:$C$50,MATCH(A30,'Acompanhamento das metas 24-27'!$A$2:$A$50,0)),"") ->  | D30: =IFERROR(INDEX(Financeiro[Fonte],MATCH(A30,IdentAcoes[ID Ação])),"") -> 0 | E30: =IFERROR(INDEX(Financeiro[R$ Planejado (2024)],MATCH($A30,IdentAcoes[ID Ação])),"") -> 0 | F30: =IFERROR(INDEX(Financeiro[R$ Planejado (2025)],MATCH($A30,IdentAcoes[ID Ação])),"") -> 0 | G30: =IFERROR(INDEX(Financeiro[R$ Planejado (2026)],MATCH($A30,IdentAcoes[ID Ação])),"") -> 0 | H30: =IFERROR(INDEX(Financeiro[R$ Planejado (2027)],MATCH($A30,IdentAcoes[ID Ação])),"") -> 0 | I30: =IFERROR(INDEX(IdentAcoes[SubPDC],MATCH(A30,IdentAcoes[ID Ação],0)),"") -> 3.1 - Sist. esgotamento | J30: =IFERROR(INDEX(IdentAcoes[Prioridade do PDC],MATCH(A30,IdentAcoes[ID Ação],0)),"") -> 0 | K30: =IFERROR(INDEX(IdentAcoes[Segmento do executor],MATCH($A30,IdentAcoes[ID Ação],0)),"") -> Município | L30: =IFERROR(INDEX(IdentAcoes[Área de abrangência],MATCH($A30,IdentAcoes[ID Ação],0)),"") -> Bacia | M30: =IFERROR(INDEX(IdentAcoes[Detalhamento da área de abrangência],MATCH($A30,IdentAcoes[ID Ação],0)),"") -> Municipio que não possuem toda a rede coletora e de afastamento de esgoto ou precisam altera-las
A31: BPG1324 | B31: =INDEX(Financeiro[Descrição da ação],MATCH(A31,Financeiro[ID Ação], 0)) -> T.3.1.2. Execução de obras lineares (rede coletora, emissário por gravidade, interceptores ou coletor tronco) inclusive substituição. | C31: =IF(INDEX('Acompanhamento das metas 24-27'!$C$2:$C$50,MATCH(A31,'Acompanhamento das metas 24-27'!$A$2:$A$50,0))<>0,INDEX('Acompanhamento das metas 24-27'!$C$2:$C$50,MATCH(A31,'Acompanhamento das metas 24-27'!$A$2:$A$50,0)),"") ->  | D31: =IFERROR(INDEX(Financeiro[Fonte],MATCH(A31,IdentAcoes[ID Ação])),"") -> 0 | E31: =IFERROR(INDEX(Financeiro[R$ Planejado (2024)],MATCH($A31,IdentAcoes[ID Ação])),"") -> 0 | F31: =IFERROR(INDEX(Financeiro[R$ Planejado (2025)],MATCH($A31,IdentAcoes[ID Ação])),"") -> 0 | G31: =IFERROR(INDEX(Financeiro[R$ Planejado (2026)],MATCH($A31,IdentAcoes[ID Ação])),"") -> 0 | H31: =IFERROR(INDEX(Financeiro[R$ Planejado (2027)],MATCH($A31,IdentAcoes[ID Ação])),"") -> 0 | I31: =IFERROR(INDEX(IdentAcoes[SubPDC],MATCH(A31,IdentAcoes[ID Ação],0)),"") -> 3.1 - Sist. esgotamento | J31: =IFERROR(INDEX(IdentAcoes[Prioridade do PDC],MATCH(A31,IdentAcoes[ID Ação],0)),"") -> 0 | K31: =IFERROR(INDEX(IdentAcoes[Segmento do executor],MATCH($A31,IdentAcoes[ID Ação],0)),"") -> Município | L31: =IFERROR(INDEX(IdentAcoes[Área de abrangência],MATCH($A31,IdentAcoes[ID Ação],0)),"") -> Bacia | M31: =IFERROR(INDEX(IdentAcoes[Detalhamento da área de abrangência],MATCH($A31,IdentAcoes[ID Ação],0)),"") -> Municipio que não possuem toda a rede coletora e de afastamento de esgoto ou precisam altera-las
A32: BPG1324 | B32: =INDEX(Financeiro[Descrição da ação],MATCH(A32,Financeiro[ID Ação], 0)) -> T.3.1.2. Execução de obras lineares (rede coletora, emissário por gravidade, interceptores ou coletor tronco) inclusive substituição. | C32: =IF(INDEX('Acompanhamento das metas 24-27'!$C$2:$C$50,MATCH(A32,'Acompanhamento das metas 24-27'!$A$2:$A$50,0))<>0,INDEX('Acompanhamento das metas 24-27'!$C$2:$C$50,MATCH(A32,'Acompanhamento das metas 24-27'!$A$2:$A$50,0)),"") ->  | D32: =IFERROR(INDEX(Financeiro[Fonte],MATCH(A32,IdentAcoes[ID Ação])),"") -> 0 | E32: =IFERROR(INDEX(Financeiro[R$ Planejado (2024)],MATCH($A32,IdentAcoes[ID Ação])),"") -> 0 | F32: =IFERROR(INDEX(Financeiro[R$ Planejado (2025)],MATCH($A32,IdentAcoes[ID Ação])),"") -> 0 | G32: =IFERROR(INDEX(Financeiro[R$ Planejado (2026)],MATCH($A32,IdentAcoes[ID Ação])),"") -> 0 | H32: =IFERROR(INDEX(Financeiro[R$ Planejado (2027)],MATCH($A32,IdentAcoes[ID Ação])),"") -> 0 | I32: =IFERROR(INDEX(IdentAcoes[SubPDC],MATCH(A32,IdentAcoes[ID Ação],0)),"") -> 3.1 - Sist. esgotamento | J32: =IFERROR(INDEX(IdentAcoes[Prioridade do PDC],MATCH(A32,IdentAcoes[ID Ação],0)),"") -> 0 | K32: =IFERROR(INDEX(IdentAcoes[Segmento do executor],MATCH($A32,IdentAcoes[ID Ação],0)),"") -> Município | L32: =IFERROR(INDEX(IdentAcoes[Área de abrangência],MATCH($A32,IdentAcoes[ID Ação],0)),"") -> Bacia | M32: =IFERROR(INDEX(IdentAcoes[Detalhamento da área de abrangência],MATCH($A32,IdentAcoes[ID Ação],0)),"") -> Municipio que não possuem toda a rede coletora e de afastamento de esgoto ou precisam altera-las
A33: BPG1424 | B33: =INDEX(Financeiro[Descrição da ação],MATCH(A33,Financeiro[ID Ação], 0)) -> T.3.1.3. Projeto (básico e/ou executivos) de reformas, melhorias ou obras localizadas (EEE Estação Elevatória de Esgoto e/ou ETE Estação de tratamento de Esgoto) | C33: =IF(INDEX('Acompanhamento das metas 24-27'!$C$2:$C$50,MATCH(A33,'Acompanhamento das metas 24-27'!$A$2:$A$50,0))<>0,INDEX('Acompanhamento das metas 24-27'!$C$2:$C$50,MATCH(A33,'Acompanhamento das metas 24-27'!$A$2:$A$50,0)),"") ->  | D33: =IFERROR(INDEX(Financeiro[Fonte],MATCH(A33,IdentAcoes[ID Ação])),"") -> 0 | E33: =IFERROR(INDEX(Financeiro[R$ Planejado (2024)],MATCH($A33,IdentAcoes[ID Ação])),"") -> 0 | F33: =IFERROR(INDEX(Financeiro[R$ Planejado (2025)],MATCH($A33,IdentAcoes[ID Ação])),"") -> 0 | G33: =IFERROR(INDEX(Financeiro[R$ Planejado (2026)],MATCH($A33,IdentAcoes[ID Ação])),"") -> 0 | H33: =IFERROR(INDEX(Financeiro[R$ Planejado (2027)],MATCH($A33,IdentAcoes[ID Ação])),"") -> 0 | I33: =IFERROR(INDEX(IdentAcoes[SubPDC],MATCH(A33,IdentAcoes[ID Ação],0)),"") -> 3.1 - Sist. esgotamento | J33: =IFERROR(INDEX(IdentAcoes[Prioridade do PDC],MATCH(A33,IdentAcoes[ID Ação],0)),"") -> 0 | K33: =IFERROR(INDEX(IdentAcoes[Segmento do executor],MATCH($A33,IdentAcoes[ID Ação],0)),"") -> Município | L33: =IFERROR(INDEX(IdentAcoes[Área de abrangência],MATCH($A33,IdentAcoes[ID Ação],0)),"") -> Bacia | M33: =IFERROR(INDEX(IdentAcoes[Detalhamento da área de abrangência],MATCH($A33,IdentAcoes[ID Ação],0)),"") -> Municipio que não possuem toda a vazão de esgoto tratada ou necessita de EEE para afastamento e tratmento do esgoto.
A34: BPG1424 | B34: =INDEX(Financeiro[Descrição da ação],MATCH(A34,Financeiro[ID Ação], 0)) -> T.3.1.3. Projeto (básico e/ou executivos) de reformas, melhorias ou obras localizadas (EEE Estação Elevatória de Esgoto e/ou ETE Estação de tratamento de Esgoto) | C34: =IF(INDEX('Acompanhamento das metas 24-27'!$C$2:$C$50,MATCH(A34,'Acompanhamento das metas 24-27'!$A$2:$A$50,0))<>0,INDEX('Acompanhamento das metas 24-27'!$C$2:$C$50,MATCH(A34,'Acompanhamento das metas 24-27'!$A$2:$A$50,0)),"") ->  | D34: =IFERROR(INDEX(Financeiro[Fonte],MATCH(A34,IdentAcoes[ID Ação])),"") -> 0 | E34: =IFERROR(INDEX(Financeiro[R$ Planejado (2024)],MATCH($A34,IdentAcoes[ID Ação])),"") -> 0 | F34: =IFERROR(INDEX(Financeiro[R$ Planejado (2025)],MATCH($A34,IdentAcoes[ID Ação])),"") -> 0 | G34: =IFERROR(INDEX(Financeiro[R$ Planejado (2026)],MATCH($A34,IdentAcoes[ID Ação])),"") -> 0 | H34: =IFERROR(INDEX(Financeiro[R$ Planejado (2027)],MATCH($A34,IdentAcoes[ID Ação])),"") -> 0 | I34: =IFERROR(INDEX(IdentAcoes[SubPDC],MATCH(A34,IdentAcoes[ID Ação],0)),"") -> 3.1 - Sist. esgotamento | J34: =IFERROR(INDEX(IdentAcoes[Prioridade do PDC],MATCH(A34,IdentAcoes[ID Ação],0)),"") -> 0 | K34: =IFERROR(INDEX(IdentAcoes[Segmento do executor],MATCH($A34,IdentAcoes[ID Ação],0)),"") -> Município | L34: =IFERROR(INDEX(IdentAcoes[Área de abrangência],MATCH($A34,IdentAcoes[ID Ação],0)),"") -> Bacia | M34: =IFERROR(INDEX(IdentAcoes[Detalhamento da área de abrangência],MATCH($A34,IdentAcoes[ID Ação],0)),"") -> Municipio que não possuem toda a vazão de esgoto tratada ou necessita de EEE para afastamento e tratmento do esgoto.
A35: BPG1524 | B35: =INDEX(Financeiro[Descrição da ação],MATCH(A35,Financeiro[ID Ação], 0)) -> T.3.1.4. Execução de reformas, melhorias ou obras de EEE e/ou ETE | C35: =IF(INDEX('Acompanhamento das metas 24-27'!$C$2:$C$50,MATCH(A35,'Acompanhamento das metas 24-27'!$A$2:$A$50,0))<>0,INDEX('Acompanhamento das metas 24-27'!$C$2:$C$50,MATCH(A35,'Acompanhamento das metas 24-27'!$A$2:$A$50,0)),"") ->  | D35: =IFERROR(INDEX(Financeiro[Fonte],MATCH(A35,IdentAcoes[ID Ação])),"") -> 0 | E35: =IFERROR(INDEX(Financeiro[R$ Planejado (2024)],MATCH($A35,IdentAcoes[ID Ação])),"") -> 0 | F35: =IFERROR(INDEX(Financeiro[R$ Planejado (2025)],MATCH($A35,IdentAcoes[ID Ação])),"") -> 0 | G35: =IFERROR(INDEX(Financeiro[R$ Planejado (2026)],MATCH($A35,IdentAcoes[ID Ação])),"") -> 0 | H35: =IFERROR(INDEX(Financeiro[R$ Planejado (2027)],MATCH($A35,IdentAcoes[ID Ação])),"") -> 0 | I35: =IFERROR(INDEX(IdentAcoes[SubPDC],MATCH(A35,IdentAcoes[ID Ação],0)),"") -> 3.1 - Sist. esgotamento | J35: =IFERROR(INDEX(IdentAcoes[Prioridade do PDC],MATCH(A35,IdentAcoes[ID Ação],0)),"") -> 0 | K35: =IFERROR(INDEX(IdentAcoes[Segmento do executor],MATCH($A35,IdentAcoes[ID Ação],0)),"") -> Município | L35: =IFERROR(INDEX(IdentAcoes[Área de abrangência],MATCH($A35,IdentAcoes[ID Ação],0)),"") -> Bacia | M35: =IFERROR(INDEX(IdentAcoes[Detalhamento da área de abrangência],MATCH($A35,IdentAcoes[ID Ação],0)),"") -> Municipio que não possuem toda a vazão de esgoto tratada ou necessita de EEE para afastamento e tratmento do esgoto.
A36: BPG1524 | B36: =INDEX(Financeiro[Descrição da ação],MATCH(A36,Financeiro[ID Ação], 0)) -> T.3.1.4. Execução de reformas, melhorias ou obras de EEE e/ou ETE | C36: =IF(INDEX('Acompanhamento das metas 24-27'!$C$2:$C$50,MATCH(A36,'Acompanhamento das metas 24-27'!$A$2:$A$50,0))<>0,INDEX('Acompanhamento das metas 24-27'!$C$2:$C$50,MATCH(A36,'Acompanhamento das metas 24-27'!$A$2:$A$50,0)),"") ->  | D36: =IFERROR(INDEX(Financeiro[Fonte],MATCH(A36,IdentAcoes[ID Ação])),"") -> 0 | E36: =IFERROR(INDEX(Financeiro[R$ Planejado (2024)],MATCH($A36,IdentAcoes[ID Ação])),"") -> 0 | F36: =IFERROR(INDEX(Financeiro[R$ Planejado (2025)],MATCH($A36,IdentAcoes[ID Ação])),"") -> 0 | G36: =IFERROR(INDEX(Financeiro[R$ Planejado (2026)],MATCH($A36,IdentAcoes[ID Ação])),"") -> 0 | H36: =IFERROR(INDEX(Financeiro[R$ Planejado (2027)],MATCH($A36,IdentAcoes[ID Ação])),"") -> 0 | I36: =IFERROR(INDEX(IdentAcoes[SubPDC],MATCH(A36,IdentAcoes[ID Ação],0)),"") -> 3.1 - Sist. esgotamento | J36: =IFERROR(INDEX(IdentAcoes[Prioridade do PDC],MATCH(A36,IdentAcoes[ID Ação],0)),"") -> 0 | K36: =IFERROR(INDEX(IdentAcoes[Segmento do executor],MATCH($A36,IdentAcoes[ID Ação],0)),"") -> Município | L36: =IFERROR(INDEX(IdentAcoes[Área de abrangência],MATCH($A36,IdentAcoes[ID Ação],0)),"") -> Bacia | M36: =IFERROR(INDEX(IdentAcoes[Detalhamento da área de abrangência],MATCH($A36,IdentAcoes[ID Ação],0)),"") -> Municipio que não possuem toda a vazão de esgoto tratada ou necessita de EEE para afastamento e tratmento do esgoto.
A37: BPG1624 | B37: =INDEX(Financeiro[Descrição da ação],MATCH(A37,Financeiro[ID Ação], 0)) -> T.3.1.6. Projeto de sistema de tratamento de lodo de ETE ou ETA | C37: =IF(INDEX('Acompanhamento das metas 24-27'!$C$2:$C$50,MATCH(A37,'Acompanhamento das metas 24-27'!$A$2:$A$50,0))<>0,INDEX('Acompanhamento das metas 24-27'!$C$2:$C$50,MATCH(A37,'Acompanhamento das metas 24-27'!$A$2:$A$50,0)),"") ->  | D37: =IFERROR(INDEX(Financeiro[Fonte],MATCH(A37,IdentAcoes[ID Ação])),"") -> 0 | E37: =IFERROR(INDEX(Financeiro[R$ Planejado (2024)],MATCH($A37,IdentAcoes[ID Ação])),"") -> 0 | F37: =IFERROR(INDEX(Financeiro[R$ Planejado (2025)],MATCH($A37,IdentAcoes[ID Ação])),"") -> 0 | G37: =IFERROR(INDEX(Financeiro[R$ Planejado (2026)],MATCH($A37,IdentAcoes[ID Ação])),"") -> 0 | H37: =IFERROR(INDEX(Financeiro[R$ Planejado (2027)],MATCH($A37,IdentAcoes[ID Ação])),"") -> 0 | I37: =IFERROR(INDEX(IdentAcoes[SubPDC],MATCH(A37,IdentAcoes[ID Ação],0)),"") -> 3.1 - Sist. esgotamento | J37: =IFERROR(INDEX(IdentAcoes[Prioridade do PDC],MATCH(A37,IdentAcoes[ID Ação],0)),"") -> 0 | K37: =IFERROR(INDEX(IdentAcoes[Segmento do executor],MATCH($A37,IdentAcoes[ID Ação],0)),"") -> Município | L37: =IFERROR(INDEX(IdentAcoes[Área de abrangência],MATCH($A37,IdentAcoes[ID Ação],0)),"") -> Bacia | M37: =IFERROR(INDEX(IdentAcoes[Detalhamento da área de abrangência],MATCH($A37,IdentAcoes[ID Ação],0)),"") -> Municipio que não possuem toda a vazão de esgoto tratada ou necessita de EEE para afastamento e tratmento do esgotp ou tratamento do lodo de ETA
A38: BPG1624 | B38: =INDEX(Financeiro[Descrição da ação],MATCH(A38,Financeiro[ID Ação], 0)) -> T.3.1.6. Projeto de sistema de tratamento de lodo de ETE ou ETA | C38: =IF(INDEX('Acompanhamento das metas 24-27'!$C$2:$C$50,MATCH(A38,'Acompanhamento das metas 24-27'!$A$2:$A$50,0))<>0,INDEX('Acompanhamento das metas 24-27'!$C$2:$C$50,MATCH(A38,'Acompanhamento das metas 24-27'!$A$2:$A$50,0)),"") ->  | D38: =IFERROR(INDEX(Financeiro[Fonte],MATCH(A38,IdentAcoes[ID Ação])),"") -> 0 | E38: =IFERROR(INDEX(Financeiro[R$ Planejado (2024)],MATCH($A38,IdentAcoes[ID Ação])),"") -> 0 | F38: =IFERROR(INDEX(Financeiro[R$ Planejado (2025)],MATCH($A38,IdentAcoes[ID Ação])),"") -> 0 | G38: =IFERROR(INDEX(Financeiro[R$ Planejado (2026)],MATCH($A38,IdentAcoes[ID Ação])),"") -> 0 | H38: =IFERROR(INDEX(Financeiro[R$ Planejado (2027)],MATCH($A38,IdentAcoes[ID Ação])),"") -> 0 | I38: =IFERROR(INDEX(IdentAcoes[SubPDC],MATCH(A38,IdentAcoes[ID Ação],0)),"") -> 3.1 - Sist. esgotamento | J38: =IFERROR(INDEX(IdentAcoes[Prioridade do PDC],MATCH(A38,IdentAcoes[ID Ação],0)),"") -> 0 | K38: =IFERROR(INDEX(IdentAcoes[Segmento do executor],MATCH($A38,IdentAcoes[ID Ação],0)),"") -> Município | L38: =IFERROR(INDEX(IdentAcoes[Área de abrangência],MATCH($A38,IdentAcoes[ID Ação],0)),"") -> Bacia | M38: =IFERROR(INDEX(IdentAcoes[Detalhamento da área de abrangência],MATCH($A38,IdentAcoes[ID Ação],0)),"") -> Municipio que não possuem toda a vazão de esgoto tratada ou necessita de EEE para afastamento e tratmento do esgotp ou tratamento do lodo de ETA
A39: BPG1724 | B39: =INDEX(Financeiro[Descrição da ação],MATCH(A39,Financeiro[ID Ação], 0)) -> T.3.1.7. Execução de sistema de tratamento de lodo de ETE ou ETA | C39: =IF(INDEX('Acompanhamento das metas 24-27'!$C$2:$C$50,MATCH(A39,'Acompanhamento das metas 24-27'!$A$2:$A$50,0))<>0,INDEX('Acompanhamento das metas 24-27'!$C$2:$C$50,MATCH(A39,'Acompanhamento das metas 24-27'!$A$2:$A$50,0)),"") ->  | D39: =IFERROR(INDEX(Financeiro[Fonte],MATCH(A39,IdentAcoes[ID Ação])),"") -> 0 | E39: =IFERROR(INDEX(Financeiro[R$ Planejado (2024)],MATCH($A39,IdentAcoes[ID Ação])),"") -> 0 | F39: =IFERROR(INDEX(Financeiro[R$ Planejado (2025)],MATCH($A39,IdentAcoes[ID Ação])),"") -> 0 | G39: =IFERROR(INDEX(Financeiro[R$ Planejado (2026)],MATCH($A39,IdentAcoes[ID Ação])),"") -> 0 | H39: =IFERROR(INDEX(Financeiro[R$ Planejado (2027)],MATCH($A39,IdentAcoes[ID Ação])),"") -> 0 | I39: =IFERROR(INDEX(IdentAcoes[SubPDC],MATCH(A39,IdentAcoes[ID Ação],0)),"") -> 3.1 - Sist. esgotamento | J39: =IFERROR(INDEX(IdentAcoes[Prioridade do PDC],MATCH(A39,IdentAcoes[ID Ação],0)),"") -> 0 | K39: =IFERROR(INDEX(IdentAcoes[Segmento do executor],MATCH($A39,IdentAcoes[ID Ação],0)),"") -> Município | L39: =IFERROR(INDEX(IdentAcoes[Área de abrangência],MATCH($A39,IdentAcoes[ID Ação],0)),"") -> Bacia | M39: =IFERROR(INDEX(IdentAcoes[Detalhamento da área de abrangência],MATCH($A39,IdentAcoes[ID Ação],0)),"") -> Municipio que não possuem toda a vazão de esgoto tratada ou necessita de EEE para afastamento e tratmento do esgotp ou tratamento do lodo de ETA
A40: BPG1724 | B40: =INDEX(Financeiro[Descrição da ação],MATCH(A40,Financeiro[ID Ação], 0)) -> T.3.1.7. Execução de sistema de tratamento de lodo de ETE ou ETA | C40: =IF(INDEX('Acompanhamento das metas 24-27'!$C$2:$C$50,MATCH(A40,'Acompanhamento das metas 24-27'!$A$2:$A$50,0))<>0,INDEX('Acompanhamento das metas 24-27'!$C$2:$C$50,MATCH(A40,'Acompanhamento das metas 24-27'!$A$2:$A$50,0)),"") ->  | D40: =IFERROR(INDEX(Financeiro[Fonte],MATCH(A40,IdentAcoes[ID Ação])),"") -> 0 | E40: =IFERROR(INDEX(Financeiro[R$ Planejado (2024)],MATCH($A40,IdentAcoes[ID Ação])),"") -> 0 | F40: =IFERROR(INDEX(Financeiro[R$ Planejado (2025)],MATCH($A40,IdentAcoes[ID Ação])),"") -> 0 | G40: =IFERROR(INDEX(Financeiro[R$ Planejado (2026)],MATCH($A40,IdentAcoes[ID Ação])),"") -> 0 | H40: =IFERROR(INDEX(Financeiro[R$ Planejado (2027)],MATCH($A40,IdentAcoes[ID Ação])),"") -> 0 | I40: =IFERROR(INDEX(IdentAcoes[SubPDC],MATCH(A40,IdentAcoes[ID Ação],0)),"") -> 3.1 - Sist. esgotamento | J40: =IFERROR(INDEX(IdentAcoes[Prioridade do PDC],MATCH(A40,IdentAcoes[ID Ação],0)),"") -> 0 | K40: =IFERROR(INDEX(IdentAcoes[Segmento do executor],MATCH($A40,IdentAcoes[ID Ação],0)),"") -> Município | L40: =IFERROR(INDEX(IdentAcoes[Área de abrangência],MATCH($A40,IdentAcoes[ID Ação],0)),"") -> Bacia | M40: =IFERROR(INDEX(IdentAcoes[Detalhamento da área de abrangência],MATCH($A40,IdentAcoes[ID Ação],0)),"") -> Municipio que não possuem toda a vazão de esgoto tratada ou necessita de EEE para afastamento e tratmento do esgotp ou tratamento do lodo de ETA
A41: BPG1824 | B41: =INDEX(Financeiro[Descrição da ação],MATCH(A41,Financeiro[ID Ação], 0)) -> T.3.2.1 . Projetos (básicos e/ou executivos) de recuperação de áreas contaminadas | C41: =IF(INDEX('Acompanhamento das metas 24-27'!$C$2:$C$50,MATCH(A41,'Acompanhamento das metas 24-27'!$A$2:$A$50,0))<>0,INDEX('Acompanhamento das metas 24-27'!$C$2:$C$50,MATCH(A41,'Acompanhamento das metas 24-27'!$A$2:$A$50,0)),"") ->  | D41: =IFERROR(INDEX(Financeiro[Fonte],MATCH(A41,IdentAcoes[ID Ação])),"") -> 0 | E41: =IFERROR(INDEX(Financeiro[R$ Planejado (2024)],MATCH($A41,IdentAcoes[ID Ação])),"") -> 0 | F41: =IFERROR(INDEX(Financeiro[R$ Planejado (2025)],MATCH($A41,IdentAcoes[ID Ação])),"") -> 0 | G41: =IFERROR(INDEX(Financeiro[R$ Planejado (2026)],MATCH($A41,IdentAcoes[ID Ação])),"") -> 0 | H41: =IFERROR(INDEX(Financeiro[R$ Planejado (2027)],MATCH($A41,IdentAcoes[ID Ação])),"") -> 0 | I41: =IFERROR(INDEX(IdentAcoes[SubPDC],MATCH(A41,IdentAcoes[ID Ação],0)),"") -> 3.2. Áreas contaminadas e poluição difusa | J41: =IFERROR(INDEX(IdentAcoes[Prioridade do PDC],MATCH(A41,IdentAcoes[ID Ação],0)),"") -> 0 | K41: =IFERROR(INDEX(IdentAcoes[Segmento do executor],MATCH($A41,IdentAcoes[ID Ação],0)),"") -> Município | L41: =IFERROR(INDEX(IdentAcoes[Área de abrangência],MATCH($A41,IdentAcoes[ID Ação],0)),"") -> Bacia | M41: =IFERROR(INDEX(IdentAcoes[Detalhamento da área de abrangência],MATCH($A41,IdentAcoes[ID Ação],0)),"") -> Municipio que possuem área contaminada por chorume ou necrochorume ou de postos de combustiveis abandonados
A42: BPG1824 | B42: =INDEX(Financeiro[Descrição da ação],MATCH(A42,Financeiro[ID Ação], 0)) -> T.3.2.1 . Projetos (básicos e/ou executivos) de recuperação de áreas contaminadas | C42: =IF(INDEX('Acompanhamento das metas 24-27'!$C$2:$C$50,MATCH(A42,'Acompanhamento das metas 24-27'!$A$2:$A$50,0))<>0,INDEX('Acompanhamento das metas 24-27'!$C$2:$C$50,MATCH(A42,'Acompanhamento das metas 24-27'!$A$2:$A$50,0)),"") ->  | D42: =IFERROR(INDEX(Financeiro[Fonte],MATCH(A42,IdentAcoes[ID Ação])),"") -> 0 | E42: =IFERROR(INDEX(Financeiro[R$ Planejado (2024)],MATCH($A42,IdentAcoes[ID Ação])),"") -> 0 | F42: =IFERROR(INDEX(Financeiro[R$ Planejado (2025)],MATCH($A42,IdentAcoes[ID Ação])),"") -> 0 | G42: =IFERROR(INDEX(Financeiro[R$ Planejado (2026)],MATCH($A42,IdentAcoes[ID Ação])),"") -> 0 | H42: =IFERROR(INDEX(Financeiro[R$ Planejado (2027)],MATCH($A42,IdentAcoes[ID Ação])),"") -> 0 | I42: =IFERROR(INDEX(IdentAcoes[SubPDC],MATCH(A42,IdentAcoes[ID Ação],0)),"") -> 3.2. Áreas contaminadas e poluição difusa | J42: =IFERROR(INDEX(IdentAcoes[Prioridade do PDC],MATCH(A42,IdentAcoes[ID Ação],0)),"") -> 0 | K42: =IFERROR(INDEX(IdentAcoes[Segmento do executor],MATCH($A42,IdentAcoes[ID Ação],0)),"") -> Município | L42: =IFERROR(INDEX(IdentAcoes[Área de abrangência],MATCH($A42,IdentAcoes[ID Ação],0)),"") -> Bacia | M42: =IFERROR(INDEX(IdentAcoes[Detalhamento da área de abrangência],MATCH($A42,IdentAcoes[ID Ação],0)),"") -> Municipio que possuem área contaminada por chorume ou necrochorume ou de postos de combustiveis abandonados
A43: BPG1824 | B43: =INDEX(Financeiro[Descrição da ação],MATCH(A43,Financeiro[ID Ação], 0)) -> T.3.2.1 . Projetos (básicos e/ou executivos) de recuperação de áreas contaminadas | C43: =IF(INDEX('Acompanhamento das metas 24-27'!$C$2:$C$50,MATCH(A43,'Acompanhamento das metas 24-27'!$A$2:$A$50,0))<>0,INDEX('Acompanhamento das metas 24-27'!$C$2:$C$50,MATCH(A43,'Acompanhamento das metas 24-27'!$A$2:$A$50,0)),"") ->  | D43: =IFERROR(INDEX(Financeiro[Fonte],MATCH(A43,IdentAcoes[ID Ação])),"") -> 0 | E43: =IFERROR(INDEX(Financeiro[R$ Planejado (2024)],MATCH($A43,IdentAcoes[ID Ação])),"") -> 0 | F43: =IFERROR(INDEX(Financeiro[R$ Planejado (2025)],MATCH($A43,IdentAcoes[ID Ação])),"") -> 0 | G43: =IFERROR(INDEX(Financeiro[R$ Planejado (2026)],MATCH($A43,IdentAcoes[ID Ação])),"") -> 0 | H43: =IFERROR(INDEX(Financeiro[R$ Planejado (2027)],MATCH($A43,IdentAcoes[ID Ação])),"") -> 0 | I43: =IFERROR(INDEX(IdentAcoes[SubPDC],MATCH(A43,IdentAcoes[ID Ação],0)),"") -> 3.2. Áreas contaminadas e poluição difusa | J43: =IFERROR(INDEX(IdentAcoes[Prioridade do PDC],MATCH(A43,IdentAcoes[ID Ação],0)),"") -> 0 | K43: =IFERROR(INDEX(IdentAcoes[Segmento do executor],MATCH($A43,IdentAcoes[ID Ação],0)),"") -> Município | L43: =IFERROR(INDEX(IdentAcoes[Área de abrangência],MATCH($A43,IdentAcoes[ID Ação],0)),"") -> Bacia | M43: =IFERROR(INDEX(IdentAcoes[Detalhamento da área de abrangência],MATCH($A43,IdentAcoes[ID Ação],0)),"") -> Municipio que possuem área contaminada por chorume ou necrochorume ou de postos de combustiveis abandonados
A44: BPG1924 | B44: =INDEX(Financeiro[Descrição da ação],MATCH(A44,Financeiro[ID Ação], 0)) -> T.3.2.2. Execução de serviços, obras ou ações de recuperação de áreas contaminadas | C44: =IF(INDEX('Acompanhamento das metas 24-27'!$C$2:$C$50,MATCH(A44,'Acompanhamento das metas 24-27'!$A$2:$A$50,0))<>0,INDEX('Acompanhamento das metas 24-27'!$C$2:$C$50,MATCH(A44,'Acompanhamento das metas 24-27'!$A$2:$A$50,0)),"") ->  | D44: =IFERROR(INDEX(Financeiro[Fonte],MATCH(A44,IdentAcoes[ID Ação])),"") -> 0 | E44: =IFERROR(INDEX(Financeiro[R$ Planejado (2024)],MATCH($A44,IdentAcoes[ID Ação])),"") -> 0 | F44: =IFERROR(INDEX(Financeiro[R$ Planejado (2025)],MATCH($A44,IdentAcoes[ID Ação])),"") -> 0 | G44: =IFERROR(INDEX(Financeiro[R$ Planejado (2026)],MATCH($A44,IdentAcoes[ID Ação])),"") -> 0 | H44: =IFERROR(INDEX(Financeiro[R$ Planejado (2027)],MATCH($A44,IdentAcoes[ID Ação])),"") -> 0 | I44: =IFERROR(INDEX(IdentAcoes[SubPDC],MATCH(A44,IdentAcoes[ID Ação],0)),"") -> 3.2. Áreas contaminadas e poluição difusa | J44: =IFERROR(INDEX(IdentAcoes[Prioridade do PDC],MATCH(A44,IdentAcoes[ID Ação],0)),"") -> 0 | K44: =IFERROR(INDEX(IdentAcoes[Segmento do executor],MATCH($A44,IdentAcoes[ID Ação],0)),"") -> Município | L44: =IFERROR(INDEX(IdentAcoes[Área de abrangência],MATCH($A44,IdentAcoes[ID Ação],0)),"") -> Bacia | M44: =IFERROR(INDEX(IdentAcoes[Detalhamento da área de abrangência],MATCH($A44,IdentAcoes[ID Ação],0)),"") -> Municipio que possuem área contaminada por chorume ou necrochorume ou de postos de combustiveis abandonados
A45: BPG1924 | B45: =INDEX(Financeiro[Descrição da ação],MATCH(A45,Financeiro[ID Ação], 0)) -> T.3.2.2. Execução de serviços, obras ou ações de recuperação de áreas contaminadas | C45: =IF(INDEX('Acompanhamento das metas 24-27'!$C$2:$C$50,MATCH(A45,'Acompanhamento das metas 24-27'!$A$2:$A$50,0))<>0,INDEX('Acompanhamento das metas 24-27'!$C$2:$C$50,MATCH(A45,'Acompanhamento das metas 24-27'!$A$2:$A$50,0)),"") ->  | D45: =IFERROR(INDEX(Financeiro[Fonte],MATCH(A45,IdentAcoes[ID Ação])),"") -> 0 | E45: =IFERROR(INDEX(Financeiro[R$ Planejado (2024)],MATCH($A45,IdentAcoes[ID Ação])),"") -> 0 | F45: =IFERROR(INDEX(Financeiro[R$ Planejado (2025)],MATCH($A45,IdentAcoes[ID Ação])),"") -> 0 | G45: =IFERROR(INDEX(Financeiro[R$ Planejado (2026)],MATCH($A45,IdentAcoes[ID Ação])),"") -> 0 | H45: =IFERROR(INDEX(Financeiro[R$ Planejado (2027)],MATCH($A45,IdentAcoes[ID Ação])),"") -> 0 | I45: =IFERROR(INDEX(IdentAcoes[SubPDC],MATCH(A45,IdentAcoes[ID Ação],0)),"") -> 3.2. Áreas contaminadas e poluição difusa | J45: =IFERROR(INDEX(IdentAcoes[Prioridade do PDC],MATCH(A45,IdentAcoes[ID Ação],0)),"") -> 0 | K45: =IFERROR(INDEX(IdentAcoes[Segmento do executor],MATCH($A45,IdentAcoes[ID Ação],0)),"") -> Município | L45: =IFERROR(INDEX(IdentAcoes[Área de abrangência],MATCH($A45,IdentAcoes[ID Ação],0)),"") -> Bacia | M45: =IFERROR(INDEX(IdentAcoes[Detalhamento da área de abrangência],MATCH($A45,IdentAcoes[ID Ação],0)),"") -> Municipio que possuem área contaminada por chorume ou necrochorume ou de postos de combustiveis abandonados
A46: BPG1924 | B46: =INDEX(Financeiro[Descrição da ação],MATCH(A46,Financeiro[ID Ação], 0)) -> T.3.2.2. Execução de serviços, obras ou ações de recuperação de áreas contaminadas | C46: =IF(INDEX('Acompanhamento das metas 24-27'!$C$2:$C$50,MATCH(A46,'Acompanhamento das metas 24-27'!$A$2:$A$50,0))<>0,INDEX('Acompanhamento das metas 24-27'!$C$2:$C$50,MATCH(A46,'Acompanhamento das metas 24-27'!$A$2:$A$50,0)),"") ->  | D46: =IFERROR(INDEX(Financeiro[Fonte],MATCH(A46,IdentAcoes[ID Ação])),"") -> 0 | E46: =IFERROR(INDEX(Financeiro[R$ Planejado (2024)],MATCH($A46,IdentAcoes[ID Ação])),"") -> 0 | F46: =IFERROR(INDEX(Financeiro[R$ Planejado (2025)],MATCH($A46,IdentAcoes[ID Ação])),"") -> 0 | G46: =IFERROR(INDEX(Financeiro[R$ Planejado (2026)],MATCH($A46,IdentAcoes[ID Ação])),"") -> 0 | H46: =IFERROR(INDEX(Financeiro[R$ Planejado (2027)],MATCH($A46,IdentAcoes[ID Ação])),"") -> 0 | I46: =IFERROR(INDEX(IdentAcoes[SubPDC],MATCH(A46,IdentAcoes[ID Ação],0)),"") -> 3.2. Áreas contaminadas e poluição difusa | J46: =IFERROR(INDEX(IdentAcoes[Prioridade do PDC],MATCH(A46,IdentAcoes[ID Ação],0)),"") -> 0 | K46: =IFERROR(INDEX(IdentAcoes[Segmento do executor],MATCH($A46,IdentAcoes[ID Ação],0)),"") -> Município | L46: =IFERROR(INDEX(IdentAcoes[Área de abrangência],MATCH($A46,IdentAcoes[ID Ação],0)),"") -> Bacia | M46: =IFERROR(INDEX(IdentAcoes[Detalhamento da área de abrangência],MATCH($A46,IdentAcoes[ID Ação],0)),"") -> Municipio que possuem área contaminada por chorume ou necrochorume ou de postos de combustiveis abandonados
A47: BPG2024 | B47: =INDEX(Financeiro[Descrição da ação],MATCH(A47,Financeiro[ID Ação], 0)) -> T.4.1.1 . Projetos (básicos e/ou executivos) para prevenção e controle de processos erosivos, tais como ravinas, voçorocas e deslizamentos | C47: =IF(INDEX('Acompanhamento das metas 24-27'!$C$2:$C$50,MATCH(A47,'Acompanhamento das metas 24-27'!$A$2:$A$50,0))<>0,INDEX('Acompanhamento das metas 24-27'!$C$2:$C$50,MATCH(A47,'Acompanhamento das metas 24-27'!$A$2:$A$50,0)),"") ->  | D47: =IFERROR(INDEX(Financeiro[Fonte],MATCH(A47,IdentAcoes[ID Ação])),"") -> 0 | E47: =IFERROR(INDEX(Financeiro[R$ Planejado (2024)],MATCH($A47,IdentAcoes[ID Ação])),"") -> 0 | F47: =IFERROR(INDEX(Financeiro[R$ Planejado (2025)],MATCH($A47,IdentAcoes[ID Ação])),"") -> 0 | G47: =IFERROR(INDEX(Financeiro[R$ Planejado (2026)],MATCH($A47,IdentAcoes[ID Ação])),"") -> 0 | H47: =IFERROR(INDEX(Financeiro[R$ Planejado (2027)],MATCH($A47,IdentAcoes[ID Ação])),"") -> 0 | I47: =IFERROR(INDEX(IdentAcoes[SubPDC],MATCH(A47,IdentAcoes[ID Ação],0)),"") -> 4.1. Controle de processos erosivos | J47: =IFERROR(INDEX(IdentAcoes[Prioridade do PDC],MATCH(A47,IdentAcoes[ID Ação],0)),"") -> 0 | K47: =IFERROR(INDEX(IdentAcoes[Segmento do executor],MATCH($A47,IdentAcoes[ID Ação],0)),"") -> Município | L47: =IFERROR(INDEX(IdentAcoes[Área de abrangência],MATCH($A47,IdentAcoes[ID Ação],0)),"") -> Bacia | M47: =IFERROR(INDEX(IdentAcoes[Detalhamento da área de abrangência],MATCH($A47,IdentAcoes[ID Ação],0)),"") -> Municipio que possuem processos erosivos na área urbana ou rural
A48: BPG2024 | B48: =INDEX(Financeiro[Descrição da ação],MATCH(A48,Financeiro[ID Ação], 0)) -> T.4.1.1 . Projetos (básicos e/ou executivos) para prevenção e controle de processos erosivos, tais como ravinas, voçorocas e deslizamentos | C48: =IF(INDEX('Acompanhamento das metas 24-27'!$C$2:$C$50,MATCH(A48,'Acompanhamento das metas 24-27'!$A$2:$A$50,0))<>0,INDEX('Acompanhamento das metas 24-27'!$C$2:$C$50,MATCH(A48,'Acompanhamento das metas 24-27'!$A$2:$A$50,0)),"") ->  | D48: =IFERROR(INDEX(Financeiro[Fonte],MATCH(A48,IdentAcoes[ID Ação])),"") -> 0 | E48: =IFERROR(INDEX(Financeiro[R$ Planejado (2024)],MATCH($A48,IdentAcoes[ID Ação])),"") -> 0 | F48: =IFERROR(INDEX(Financeiro[R$ Planejado (2025)],MATCH($A48,IdentAcoes[ID Ação])),"") -> 0 | G48: =IFERROR(INDEX(Financeiro[R$ Planejado (2026)],MATCH($A48,IdentAcoes[ID Ação])),"") -> 0 | H48: =IFERROR(INDEX(Financeiro[R$ Planejado (2027)],MATCH($A48,IdentAcoes[ID Ação])),"") -> 0 | I48: =IFERROR(INDEX(IdentAcoes[SubPDC],MATCH(A48,IdentAcoes[ID Ação],0)),"") -> 4.1. Controle de processos erosivos | J48: =IFERROR(INDEX(IdentAcoes[Prioridade do PDC],MATCH(A48,IdentAcoes[ID Ação],0)),"") -> 0 | K48: =IFERROR(INDEX(IdentAcoes[Segmento do executor],MATCH($A48,IdentAcoes[ID Ação],0)),"") -> Município | L48: =IFERROR(INDEX(IdentAcoes[Área de abrangência],MATCH($A48,IdentAcoes[ID Ação],0)),"") -> Bacia | M48: =IFERROR(INDEX(IdentAcoes[Detalhamento da área de abrangência],MATCH($A48,IdentAcoes[ID Ação],0)),"") -> Municipio que possuem processos erosivos na área urbana ou rural
A49: BPG2024 | B49: =INDEX(Financeiro[Descrição da ação],MATCH(A49,Financeiro[ID Ação], 0)) -> T.4.1.1 . Projetos (básicos e/ou executivos) para prevenção e controle de processos erosivos, tais como ravinas, voçorocas e deslizamentos | C49: =IF(INDEX('Acompanhamento das metas 24-27'!$C$2:$C$50,MATCH(A49,'Acompanhamento das metas 24-27'!$A$2:$A$50,0))<>0,INDEX('Acompanhamento das metas 24-27'!$C$2:$C$50,MATCH(A49,'Acompanhamento das metas 24-27'!$A$2:$A$50,0)),"") ->  | D49: =IFERROR(INDEX(Financeiro[Fonte],MATCH(A49,IdentAcoes[ID Ação])),"") -> 0 | E49: =IFERROR(INDEX(Financeiro[R$ Planejado (2024)],MATCH($A49,IdentAcoes[ID Ação])),"") -> 0 | F49: =IFERROR(INDEX(Financeiro[R$ Planejado (2025)],MATCH($A49,IdentAcoes[ID Ação])),"") -> 0 | G49: =IFERROR(INDEX(Financeiro[R$ Planejado (2026)],MATCH($A49,IdentAcoes[ID Ação])),"") -> 0 | H49: =IFERROR(INDEX(Financeiro[R$ Planejado (2027)],MATCH($A49,IdentAcoes[ID Ação])),"") -> 0 | I49: =IFERROR(INDEX(IdentAcoes[SubPDC],MATCH(A49,IdentAcoes[ID Ação],0)),"") -> 4.1. Controle de processos erosivos | J49: =IFERROR(INDEX(IdentAcoes[Prioridade do PDC],MATCH(A49,IdentAcoes[ID Ação],0)),"") -> 0 | K49: =IFERROR(INDEX(IdentAcoes[Segmento do executor],MATCH($A49,IdentAcoes[ID Ação],0)),"") -> Município | L49: =IFERROR(INDEX(IdentAcoes[Área de abrangência],MATCH($A49,IdentAcoes[ID Ação],0)),"") -> Bacia | M49: =IFERROR(INDEX(IdentAcoes[Detalhamento da área de abrangência],MATCH($A49,IdentAcoes[ID Ação],0)),"") -> Municipio que possuem processos erosivos na área urbana ou rural
A50: BPG2024 | B50: =INDEX(Financeiro[Descrição da ação],MATCH(A50,Financeiro[ID Ação], 0)) -> T.4.1.1 . Projetos (básicos e/ou executivos) para prevenção e controle de processos erosivos, tais como ravinas, voçorocas e deslizamentos | C50: =IF(INDEX('Acompanhamento das metas 24-27'!$C$2:$C$50,MATCH(A50,'Acompanhamento das metas 24-27'!$A$2:$A$50,0))<>0,INDEX('Acompanhamento das metas 24-27'!$C$2:$C$50,MATCH(A50,'Acompanhamento das metas 24-27'!$A$2:$A$50,0)),"") ->  | D50: =IFERROR(INDEX(Financeiro[Fonte],MATCH(A50,IdentAcoes[ID Ação])),"") -> 0 | E50: =IFERROR(INDEX(Financeiro[R$ Planejado (2024)],MATCH($A50,IdentAcoes[ID Ação])),"") -> 0 | F50: =IFERROR(INDEX(Financeiro[R$ Planejado (2025)],MATCH($A50,IdentAcoes[ID Ação])),"") -> 0 | G50: =IFERROR(INDEX(Financeiro[R$ Planejado (2026)],MATCH($A50,IdentAcoes[ID Ação])),"") -> 0 | H50: =IFERROR(INDEX(Financeiro[R$ Planejado (2027)],MATCH($A50,IdentAcoes[ID Ação])),"") -> 0 | I50: =IFERROR(INDEX(IdentAcoes[SubPDC],MATCH(A50,IdentAcoes[ID Ação],0)),"") -> 4.1. Controle de processos erosivos | J50: =IFERROR(INDEX(IdentAcoes[Prioridade do PDC],MATCH(A50,IdentAcoes[ID Ação],0)),"") -> 0 | K50: =IFERROR(INDEX(IdentAcoes[Segmento do executor],MATCH($A50,IdentAcoes[ID Ação],0)),"") -> Município | L50: =IFERROR(INDEX(IdentAcoes[Área de abrangência],MATCH($A50,IdentAcoes[ID Ação],0)),"") -> Bacia | M50: =IFERROR(INDEX(IdentAcoes[Detalhamento da área de abrangência],MATCH($A50,IdentAcoes[ID Ação],0)),"") -> Municipio que possuem processos erosivos na área urbana ou rural
A51: BPG2124 | B51: =INDEX(Financeiro[Descrição da ação],MATCH(A51,Financeiro[ID Ação], 0)) -> T.4.1.3. Projetos (básicos e/ou executivos) para proteção e/ou contenção de margens de curso dagua | D51: =IFERROR(INDEX(Financeiro[Fonte],MATCH(A51,IdentAcoes[ID Ação])),"") -> 0 | E51: =IFERROR(INDEX(Financeiro[R$ Planejado (2024)],MATCH($A51,IdentAcoes[ID Ação])),"") -> 0 | F51: =IFERROR(INDEX(Financeiro[R$ Planejado (2025)],MATCH($A51,IdentAcoes[ID Ação])),"") -> 0 | G51: =IFERROR(INDEX(Financeiro[R$ Planejado (2026)],MATCH($A51,IdentAcoes[ID Ação])),"") -> 0 | H51: =IFERROR(INDEX(Financeiro[R$ Planejado (2027)],MATCH($A51,IdentAcoes[ID Ação])),"") -> 0 | I51: =IFERROR(INDEX(IdentAcoes[SubPDC],MATCH(A51,IdentAcoes[ID Ação],0)),"") -> 4.1. Controle de processos erosivos | J51: =IFERROR(INDEX(IdentAcoes[Prioridade do PDC],MATCH(A51,IdentAcoes[ID Ação],0)),"") -> 0 | K51: =IFERROR(INDEX(IdentAcoes[Segmento do executor],MATCH($A51,IdentAcoes[ID Ação],0)),"") -> Município | L51: =IFERROR(INDEX(IdentAcoes[Área de abrangência],MATCH($A51,IdentAcoes[ID Ação],0)),"") -> Bacia | M51: =IFERROR(INDEX(IdentAcoes[Detalhamento da área de abrangência],MATCH($A51,IdentAcoes[ID Ação],0)),"") -> Municipio que possuem processos erosivos na área urbana ou rural

Sheet Consolidaçao - 1 (hidden)
A1: Delib. 190 | C1: 2021 (R$ Estimado) | H1: Delib. 246 | I1: 2022 (R$ Estimado) | N1: 2023 (R$ Estimado) | S1: 2022 - 2023 (R$ Estimado)
A2: SubPDC | B2: CFURH | C2: Cobrança Estadual | D2: Cobrança Federal | E2: Outras | F2: TOTAL | H2: SubPDC | I2: CFURH | J2: Cobrança Estadual | K2: Cobrança Federal | L2: Outras | M2: TOTAL | N2: CFURH | O2: Cobrança Estadual | P2: Cobrança Federal | Q2: Outras | R2: TOTAL | S2: TOTAL
A3: 1.1 - SI | B3: =SUMIFS(#REF!,#REF!,A3,#REF!,2021) ->  | C3: =SUMIFS(#REF!,#REF!,A3,#REF!,2021) ->  | D3: =SUMIFS(#REF!,#REF!,A3,#REF!,2021) ->  | E3: =SUMIFS(#REF!,#REF!,A3,#REF!,2021) ->  | F3: =SUM(B3:E3) ->  | H3: 1.1 - Legislação | I3: =SUMIFS(PAPI20_22_23[Recurso financeiro estimado no ano (R$) - CFURH],PAPI20_22_23[SubPDC],'Consolidaçao - 1'!H3,PAPI20_22_23[Ano previsto para início],2022) -> 0 | J3: =SUMIFS(PAPI20_22_23[Recurso financeiro estimado no ano (R$) - Cobrança Estadual],PAPI20_22_23[SubPDC],'Consolidaçao - 1'!H3,PAPI20_22_23[Ano previsto para início],2022) -> 0 | K3: =SUMIFS(PAPI20_22_23[Recurso financeiro estimado no ano (R$) - Cobrança Federal],PAPI20_22_23[SubPDC],'Consolidaçao - 1'!H3,PAPI20_22_23[Ano previsto para início],2022) -> 0 | L3: =SUMIFS(PAPI20_22_23[Recurso financeiro estimado no ano (R$) - Outras],PAPI20_22_23[SubPDC],'Consolidaçao - 1'!H3,PAPI20_22_23[Ano previsto para início],2022) -> 0 | M3: =SUM(I3:L3) -> 0 | N3: =SUMIFS(PAPI20_22_23[Recurso financeiro estimado no ano (R$) - CFURH],PAPI20_22_23[SubPDC],'Consolidaçao - 1'!H3,PAPI20_22_23[Ano previsto para início],2023) -> 0 | O3: =SUMIFS(PAPI20_22_23[Recurso financeiro estimado no ano (R$) - Cobrança Estadual],PAPI20_22_23[SubPDC],'Consolidaçao - 1'!M3,PAPI20_22_23[Ano previsto para início],2023) -> 0 | P3: =SUMIFS(PAPI20_22_23[Recurso financeiro estimado no ano (R$) - Cobrança Federal],PAPI20_22_23[SubPDC],'Consolidaçao - 1'!M3,PAPI20_22_23[Ano previsto para início],2023) -> 0 | Q3: =SUMIFS(PAPI20_22_23[Recurso financeiro estimado no ano (R$) - Outras],PAPI20_22_23[SubPDC],'Consolidaçao - 1'!M3,PAPI20_22_23[Ano previsto para início],2023) -> 0 | R3: =SUM(N3:Q3) -> 0 | S3: =SUM(M3,R3) -> 0
A4: 1.2 - Planejamento | B4: =SUMIFS(#REF!,#REF!,A4,#REF!,2021) ->  | C4: =SUMIFS(#REF!,#REF!,A4,#REF!,2021) ->  | D4: =SUMIFS(#REF!,#REF!,A4,#REF!,2021) ->  | E4: =SUMIFS(#REF!,#REF!,A4,#REF!,2021) ->  | H4: 1.2 - Planejamento | I4: =SUMIFS(PAPI20_22_23[Recurso financeiro estimado no ano (R$) - CFURH],PAPI20_22_23[SubPDC],'Consolidaçao - 1'!H4,PAPI20_22_23[Ano previsto para início],2022) -> 0 | J4: =SUMIFS(PAPI20_22_23[Recurso financeiro estimado no ano (R$) - Cobrança Estadual],PAPI20_22_23[SubPDC],'Consolidaçao - 1'!H4,PAPI20_22_23[Ano previsto para início],2022) -> 0 | K4: =SUMIFS(PAPI20_22_23[Recurso financeiro estimado no ano (R$) - Cobrança Federal],PAPI20_22_23[SubPDC],'Consolidaçao - 1'!H4,PAPI20_22_23[Ano previsto para início],2022) -> 0 | L4: =SUMIFS(PAPI20_22_23[Recurso financeiro estimado no ano (R$) - Outras],PAPI20_22_23[SubPDC],'Consolidaçao - 1'!H4,PAPI20_22_23[Ano previsto para início],2022) -> 0 | M4: 0 | N4: =SUMIFS(PAPI20_22_23[Recurso financeiro estimado no ano (R$) - CFURH],PAPI20_22_23[SubPDC],'Consolidaçao - 1'!H4,PAPI20_22_23[Ano previsto para início],2023) -> 0 | O4: =SUMIFS(PAPI20_22_23[Recurso financeiro estimado no ano (R$) - Cobrança Estadual],PAPI20_22_23[SubPDC],'Consolidaçao - 1'!M4,PAPI20_22_23[Ano previsto para início],2023) -> 0 | P4: =SUMIFS(PAPI20_22_23[Recurso financeiro estimado no ano (R$) - Cobrança Federal],PAPI20_22_23[SubPDC],'Consolidaçao - 1'!M4,PAPI20_22_23[Ano previsto para início],2023) -> 0 | Q4: =SUMIFS(PAPI20_22_23[Recurso financeiro estimado no ano (R$) - Outras],PAPI20_22_23[SubPDC],'Consolidaçao - 1'!M4,PAPI20_22_23[Ano previsto para início],2023) -> 0 | R4: 0 | S4: =SUM(M4,R4) -> 0
A5: 1.3 - Enquadramento | B5: =SUMIFS(#REF!,#REF!,A5,#REF!,2021) ->  | C5: =SUMIFS(#REF!,#REF!,A5,#REF!,2021) ->  | D5: =SUMIFS(#REF!,#REF!,A5,#REF!,2021) ->  | E5: =SUMIFS(#REF!,#REF!,A5,#REF!,2021) ->  | H5: 2.1 - Plano | I5: =SUMIFS(PAPI20_22_23[Recurso financeiro estimado no ano (R$) - CFURH],PAPI20_22_23[SubPDC],'Consolidaçao - 1'!H5,PAPI20_22_23[Ano previsto para início],2022) -> 0 | J5: =SUMIFS(PAPI20_22_23[Recurso financeiro estimado no ano (R$) - Cobrança Estadual],PAPI20_22_23[SubPDC],'Consolidaçao - 1'!H5,PAPI20_22_23[Ano previsto para início],2022) -> 0 | K5: =SUMIFS(PAPI20_22_23[Recurso financeiro estimado no ano (R$) - Cobrança Federal],PAPI20_22_23[SubPDC],'Consolidaçao - 1'!H5,PAPI20_22_23[Ano previsto para início],2022) -> 0 | L5: =SUMIFS(PAPI20_22_23[Recurso financeiro estimado no ano (R$) - Outras],PAPI20_22_23[SubPDC],'Consolidaçao - 1'!H5,PAPI20_22_23[Ano previsto para início],2022) -> 0 | M5: 0 | N5: =SUMIFS(PAPI20_22_23[Recurso financeiro estimado no ano (R$) - CFURH],PAPI20_22_23[SubPDC],'Consolidaçao - 1'!H5,PAPI20_22_23[Ano previsto para início],2023) -> 0 | O5: =SUMIFS(PAPI20_22_23[Recurso financeiro estimado no ano (R$) - Cobrança Estadual],PAPI20_22_23[SubPDC],'Consolidaçao - 1'!M5,PAPI20_22_23[Ano previsto para início],2023) -> 0 | P5: =SUMIFS(PAPI20_22_23[Recurso financeiro estimado no ano (R$) - Cobrança Federal],PAPI20_22_23[SubPDC],'Consolidaçao - 1'!M5,PAPI20_22_23[Ano previsto para início],2023) -> 0 | Q5: =SUMIFS(PAPI20_22_23[Recurso financeiro estimado no ano (R$) - Outras],PAPI20_22_23[SubPDC],'Consolidaçao - 1'!M5,PAPI20_22_23[Ano previsto para início],2023) -> 0 | R5: 0 | S5: 0
A6: 1.4 - Monitoramento | B6: =SUMIFS(#REF!,#REF!,A6,#REF!,2021) ->  | C6: =SUMIFS(#REF!,#REF!,A6,#REF!,2021) ->  | D6: =SUMIFS(#REF!,#REF!,A6,#REF!,2021) ->  | E6: =SUMIFS(#REF!,#REF!,A6,#REF!,2021) ->  | H6: 2.2 - Outorga | I6: =SUMIFS(PAPI20_22_23[Recurso financeiro estimado no ano (R$) - CFURH],PAPI20_22_23[SubPDC],'Consolidaçao - 1'!H6,PAPI20_22_23[Ano previsto para início],2022) -> 0 | J6: =SUMIFS(PAPI20_22_23[Recurso financeiro estimado no ano (R$) - Cobrança Estadual],PAPI20_22_23[SubPDC],'Consolidaçao - 1'!H6,PAPI20_22_23[Ano previsto para início],2022) -> 0 | K6: =SUMIFS(PAPI20_22_23[Recurso financeiro estimado no ano (R$) - Cobrança Federal],PAPI20_22_23[SubPDC],'Consolidaçao - 1'!H6,PAPI20_22_23[Ano previsto para início],2022) -> 0 | L6: =SUMIFS(PAPI20_22_23[Recurso financeiro estimado no ano (R$) - Outras],PAPI20_22_23[SubPDC],'Consolidaçao - 1'!H6,PAPI20_22_23[Ano previsto para início],2022) -> 0 | M6: 0 | N6: =SUMIFS(PAPI20_22_23[Recurso financeiro estimado no ano (R$) - CFURH],PAPI20_22_23[SubPDC],'Consolidaçao - 1'!H6,PAPI20_22_23[Ano previsto para início],2023) -> 0 | O6: =SUMIFS(PAPI20_22_23[Recurso financeiro estimado no ano (R$) - Cobrança Estadual],PAPI20_22_23[SubPDC],'Consolidaçao - 1'!M6,PAPI20_22_23[Ano previsto para início],2023) -> 0 | P6: =SUMIFS(PAPI20_22_23[Recurso financeiro estimado no ano (R$) - Cobrança Federal],PAPI20_22_23[SubPDC],'Consolidaçao - 1'!M6,PAPI20_22_23[Ano previsto para início],2023) -> 0 | Q6: =SUMIFS(PAPI20_22_23[Recurso financeiro estimado no ano (R$) - Outras],PAPI20_22_23[SubPDC],'Consolidaçao - 1'!M6,PAPI20_22_23[Ano previsto para início],2023) -> 0 | R6: 0 | S6: 0
A7: 1.5 - Disponibilidade | B7: =SUMIFS(#REF!,#REF!,A7,#REF!,2021) ->  | C7: =SUMIFS(#REF!,#REF!,A7,#REF!,2021) ->  | D7: =SUMIFS(#REF!,#REF!,A7,#REF!,2021) ->  | E7: =SUMIFS(#REF!,#REF!,A7,#REF!,2021) ->  | H7: 2.3 - Cobrança | I7: =SUMIFS(PAPI20_22_23[Recurso financeiro estimado no ano (R$) - CFURH],PAPI20_22_23[SubPDC],'Consolidaçao - 1'!H7,PAPI20_22_23[Ano previsto para início],2022) -> 0 | J7: =SUMIFS(PAPI20_22_23[Recurso financeiro estimado no ano (R$) - Cobrança Estadual],PAPI20_22_23[SubPDC],'Consolidaçao - 1'!H7,PAPI20_22_23[Ano previsto para início],2022) -> 0 | K7: =SUMIFS(PAPI20_22_23[Recurso financeiro estimado no ano (R$) - Cobrança Federal],PAPI20_22_23[SubPDC],'Consolidaçao - 1'!H7,PAPI20_22_23[Ano previsto para início],2022) -> 0 | L7: =SUMIFS(PAPI20_22_23[Recurso financeiro estimado no ano (R$) - Outras],PAPI20_22_23[SubPDC],'Consolidaçao - 1'!H7,PAPI20_22_23[Ano previsto para início],2022) -> 0 | M7: 0 | N7: =SUMIFS(PAPI20_22_23[Recurso financeiro estimado no ano (R$) - CFURH],PAPI20_22_23[SubPDC],'Consolidaçao - 1'!H7,PAPI20_22_23[Ano previsto para início],2023) -> 0 | O7: =SUMIFS(PAPI20_22_23[Recurso financeiro estimado no ano (R$) - Cobrança Estadual],PAPI20_22_23[SubPDC],'Consolidaçao - 1'!M7,PAPI20_22_23[Ano previsto para início],2023) -> 0 | P7: =SUMIFS(PAPI20_22_23[Recurso financeiro estimado no ano (R$) - Cobrança Federal],PAPI20_22_23[SubPDC],'Consolidaçao - 1'!M7,PAPI20_22_23[Ano previsto para início],2023) -> 0 | Q7: =SUMIFS(PAPI20_22_23[Recurso financeiro estimado no ano (R$) - Outras],PAPI20_22_23[SubPDC],'Consolidaçao - 1'!M7,PAPI20_22_23[Ano previsto para início],2023) -> 0 | R7: 0 | S7: 0
A8: 1.6 - Legislação | B8: =SUMIFS(#REF!,#REF!,A8,#REF!,2021) ->  | C8: =SUMIFS(#REF!,#REF!,A8,#REF!,2021) ->  | D8: =SUMIFS(#REF!,#REF!,A8,#REF!,2021) ->  | E8: =SUMIFS(#REF!,#REF!,A8,#REF!,2021) ->  | H8: 2.4 - Enquadramento | I8: =SUMIFS(PAPI20_22_23[Recurso financeiro estimado no ano (R$) - CFURH],PAPI20_22_23[SubPDC],'Consolidaçao - 1'!H8,PAPI20_22_23[Ano previsto para início],2022) -> 0 | J8: =SUMIFS(PAPI20_22_23[Recurso financeiro estimado no ano (R$) - Cobrança Estadual],PAPI20_22_23[SubPDC],'Consolidaçao - 1'!H8,PAPI20_22_23[Ano previsto para início],2022) -> 0 | K8: =SUMIFS(PAPI20_22_23[Recurso financeiro estimado no ano (R$) - Cobrança Federal],PAPI20_22_23[SubPDC],'Consolidaçao - 1'!H8,PAPI20_22_23[Ano previsto para início],2022) -> 0 | L8: =SUMIFS(PAPI20_22_23[Recurso financeiro estimado no ano (R$) - Outras],PAPI20_22_23[SubPDC],'Consolidaçao - 1'!H8,PAPI20_22_23[Ano previsto para início],2022) -> 0 | M8: 0 | N8: =SUMIFS(PAPI20_22_23[Recurso financeiro estimado no ano (R$) - CFURH],PAPI20_22_23[SubPDC],'Consolidaçao - 1'!H8,PAPI20_22_23[Ano previsto para início],2023) -> 0 | O8: =SUMIFS(PAPI20_22_23[Recurso financeiro estimado no ano (R$) - Cobrança Estadual],PAPI20_22_23[SubPDC],'Consolidaçao - 1'!M8,PAPI20_22_23[Ano previsto para início],2023) -> 0 | P8: =SUMIFS(PAPI20_22_23[Recurso financeiro estimado no ano (R$) - Cobrança Federal],PAPI20_22_23[SubPDC],'Consolidaçao - 1'!M8,PAPI20_22_23[Ano previsto para início],2023) -> 0 | Q8: =SUMIFS(PAPI20_22_23[Recurso financeiro estimado no ano (R$) - Outras],PAPI20_22_23[SubPDC],'Consolidaçao - 1'!M8,PAPI20_22_23[Ano previsto para início],2023) -> 0 | R8: 0 | S8: 0
A9: 1.7 - Poluição | B9: =SUMIFS(#REF!,#REF!,A9,#REF!,2021) ->  | C9: =SUMIFS(#REF!,#REF!,A9,#REF!,2021) ->  | D9: =SUMIFS(#REF!,#REF!,A9,#REF!,2021) ->  | E9: =SUMIFS(#REF!,#REF!,A9,#REF!,2021) ->  | H9: 2.5 - Monitoramento e SI | I9: =SUMIFS(PAPI20_22_23[Recurso financeiro estimado no ano (R$) - CFURH],PAPI20_22_23[SubPDC],'Consolidaçao - 1'!H9,PAPI20_22_23[Ano previsto para início],2022) -> 0 | J9: =SUMIFS(PAPI20_22_23[Recurso financeiro estimado no ano (R$) - Cobrança Estadual],PAPI20_22_23[SubPDC],'Consolidaçao - 1'!H9,PAPI20_22_23[Ano previsto para início],2022) -> 0 | K9: =SUMIFS(PAPI20_22_23[Recurso financeiro estimado no ano (R$) - Cobrança Federal],PAPI20_22_23[SubPDC],'Consolidaçao - 1'!H9,PAPI20_22_23[Ano previsto para início],2022) -> 0 | L9: =SUMIFS(PAPI20_22_23[Recurso financeiro estimado no ano (R$) - Outras],PAPI20_22_23[SubPDC],'Consolidaçao - 1'!H9,PAPI20_22_23[Ano previsto para início],2022) -> 0 | M9: 0 | N9: =SUMIFS(PAPI20_22_23[Recurso financeiro estimado no ano (R$) - CFURH],PAPI20_22_23[SubPDC],'Consolidaçao - 1'!H9,PAPI20_22_23[Ano previsto para início],2023) -> 0 | O9: =SUMIFS(PAPI20_22_23[Recurso financeiro estimado no ano (R$) - Cobrança Estadual],PAPI20_22_23[SubPDC],'Consolidaçao - 1'!M9,PAPI20_22_23[Ano previsto para início],2023) -> 0 | P9: =SUMIFS(PAPI20_22_23[Recurso financeiro estimado no ano (R$) - Cobrança Federal],PAPI20_22_23[SubPDC],'Consolidaçao - 1'!M9,PAPI20_22_23[Ano previsto para início],2023) -> 0 | Q9: =SUMIFS(PAPI20_22_23[Recurso financeiro estimado no ano (R$) - Outras],PAPI20_22_23[SubPDC],'Consolidaçao - 1'!M9,PAPI20_22_23[Ano previsto para início],2023) -> 0 | R9: 0 | S9: 0
A10: 2.1 - Planos | B10: =SUMIFS(#REF!,#REF!,A10,#REF!,2021) ->  | C10: =SUMIFS(#REF!,#REF!,A10,#REF!,2021) ->  | D10: =SUMIFS(#REF!,#REF!,A10,#REF!,2021) ->  | E10: =SUMIFS(#REF!,#REF!,A10,#REF!,2021) ->  | H10: 2.6 - Integração | I10: =SUMIFS(PAPI20_22_23[Recurso financeiro estimado no ano (R$) - CFURH],PAPI20_22_23[SubPDC],'Consolidaçao - 1'!H10,PAPI20_22_23[Ano previsto para início],2022) -> 0 | J10: =SUMIFS(PAPI20_22_23[Recurso financeiro estimado no ano (R$) - Cobrança Estadual],PAPI20_22_23[SubPDC],'Consolidaçao - 1'!H10,PAPI20_22_23[Ano previsto para início],2022) -> 0 | K10: =SUMIFS(PAPI20_22_23[Recurso financeiro estimado no ano (R$) - Cobrança Federal],PAPI20_22_23[SubPDC],'Consolidaçao - 1'!H10,PAPI20_22_23[Ano previsto para início],2022) -> 0 | L10: =SUMIFS(PAPI20_22_23[Recurso financeiro estimado no ano (R$) - Outras],PAPI20_22_23[SubPDC],'Consolidaçao - 1'!H10,PAPI20_22_23[Ano previsto para início],2022) -> 0 | M10: 0 | N10: =SUMIFS(PAPI20_22_23[Recurso financeiro estimado no ano (R$) - CFURH],PAPI20_22_23[SubPDC],'Consolidaçao - 1'!H10,PAPI20_22_23[Ano previsto para início],2023) -> 0 | O10: =SUMIFS(PAPI20_22_23[Recurso financeiro estimado no ano (R$) - Cobrança Estadual],PAPI20_22_23[SubPDC],'Consolidaçao - 1'!M10,PAPI20_22_23[Ano previsto para início],2023) -> 0 | P10: =SUMIFS(PAPI20_22_23[Recurso financeiro estimado no ano (R$) - Cobrança Federal],PAPI20_22_23[SubPDC],'Consolidaçao - 1'!M10,PAPI20_22_23[Ano previsto para início],2023) -> 0 | Q10: =SUMIFS(PAPI20_22_23[Recurso financeiro estimado no ano (R$) - Outras],PAPI20_22_23[SubPDC],'Consolidaçao - 1'!M10,PAPI20_22_23[Ano previsto para início],2023) -> 0 | R10: 0 | S10: 0
A11: 2.2 - Outorga | B11: =SUMIFS(#REF!,#REF!,A11,#REF!,2021) ->  | C11: =SUMIFS(#REF!,#REF!,A11,#REF!,2021) ->  | D11: =SUMIFS(#REF!,#REF!,A11,#REF!,2021) ->  | E11: =SUMIFS(#REF!,#REF!,A11,#REF!,2021) ->  | H11: 2.7 - CORHI | I11: =SUMIFS(PAPI20_22_23[Recurso financeiro estimado no ano (R$) - CFURH],PAPI20_22_23[SubPDC],'Consolidaçao - 1'!H11,PAPI20_22_23[Ano previsto para início],2022) -> 0 | J11: =SUMIFS(PAPI20_22_23[Recurso financeiro estimado no ano (R$) - Cobrança Estadual],PAPI20_22_23[SubPDC],'Consolidaçao - 1'!H11,PAPI20_22_23[Ano previsto para início],2022) -> 0 | K11: =SUMIFS(PAPI20_22_23[Recurso financeiro estimado no ano (R$) - Cobrança Federal],PAPI20_22_23[SubPDC],'Consolidaçao - 1'!H11,PAPI20_22_23[Ano previsto para início],2022) -> 0 | L11: =SUMIFS(PAPI20_22_23[Recurso financeiro estimado no ano (R$) - Outras],PAPI20_22_23[SubPDC],'Consolidaçao - 1'!H11,PAPI20_22_23[Ano previsto para início],2022) -> 0 | M11: 0 | N11: =SUMIFS(PAPI20_22_23[Recurso financeiro estimado no ano (R$) - CFURH],PAPI20_22_23[SubPDC],'Consolidaçao - 1'!H11,PAPI20_22_23[Ano previsto para início],2023) -> 0 | O11: =SUMIFS(PAPI20_22_23[Recurso financeiro estimado no ano (R$) - Cobrança Estadual],PAPI20_22_23[SubPDC],'Consolidaçao - 1'!M11,PAPI20_22_23[Ano previsto para início],2023) -> 0 | P11: =SUMIFS(PAPI20_22_23[Recurso financeiro estimado no ano (R$) - Cobrança Federal],PAPI20_22_23[SubPDC],'Consolidaçao - 1'!M11,PAPI20_22_23[Ano previsto para início],2023) -> 0 | Q11: =SUMIFS(PAPI20_22_23[Recurso financeiro estimado no ano (R$) - Outras],PAPI20_22_23[SubPDC],'Consolidaçao - 1'!M11,PAPI20_22_23[Ano previsto para início],2023) -> 0 | R11: 0 | S11: 0
A12: 2.3 - Cobrança | B12: =SUMIFS(#REF!,#REF!,A12,#REF!,2021) ->  | C12: =SUMIFS(#REF!,#REF!,A12,#REF!,2021) ->  | D12: =SUMIFS(#REF!,#REF!,A12,#REF!,2021) ->  | E12: =SUMIFS(#REF!,#REF!,A12,#REF!,2021) ->  | H12: 3.1 - Efluentes | I12: =SUMIFS(PAPI20_22_23[Recurso financeiro estimado no ano (R$) - CFURH],PAPI20_22_23[SubPDC],'Consolidaçao - 1'!H12,PAPI20_22_23[Ano previsto para início],2022) -> 0 | J12: =SUMIFS(PAPI20_22_23[Recurso financeiro estimado no ano (R$) - Cobrança Estadual],PAPI20_22_23[SubPDC],'Consolidaçao - 1'!H12,PAPI20_22_23[Ano previsto para início],2022) -> 0 | K12: =SUMIFS(PAPI20_22_23[Recurso financeiro estimado no ano (R$) - Cobrança Federal],PAPI20_22_23[SubPDC],'Consolidaçao - 1'!H12,PAPI20_22_23[Ano previsto para início],2022) -> 0 | L12: =SUMIFS(PAPI20_22_23[Recurso financeiro estimado no ano (R$) - Outras],PAPI20_22_23[SubPDC],'Consolidaçao - 1'!H12,PAPI20_22_23[Ano previsto para início],2022) -> 0 | M12: 0 | N12: =SUMIFS(PAPI20_22_23[Recurso financeiro estimado no ano (R$) - CFURH],PAPI20_22_23[SubPDC],'Consolidaçao - 1'!H12,PAPI20_22_23[Ano previsto para início],2023) -> 0 | O12: =SUMIFS(PAPI20_22_23[Recurso financeiro estimado no ano (R$) - Cobrança Estadual],PAPI20_22_23[SubPDC],'Consolidaçao - 1'!M12,PAPI20_22_23[Ano previsto para início],2023) -> 0 | P12: =SUMIFS(PAPI20_22_23[Recurso financeiro estimado no ano (R$) - Cobrança Federal],PAPI20_22_23[SubPDC],'Consolidaçao - 1'!M12,PAPI20_22_23[Ano previsto para início],2023) -> 0 | Q12: =SUMIFS(PAPI20_22_23[Recurso financeiro estimado no ano (R$) - Outras],PAPI20_22_23[SubPDC],'Consolidaçao - 1'!M12,PAPI20_22_23[Ano previsto para início],2023) -> 0 | R12: 0 | S12: 0
A13: 2.4 - Efetivação | B13: =SUMIFS(#REF!,#REF!,A13,#REF!,2021) ->  | C13: =SUMIFS(#REF!,#REF!,A13,#REF!,2021) ->  | D13: =SUMIFS(#REF!,#REF!,A13,#REF!,2021) ->  | E13: =SUMIFS(#REF!,#REF!,A13,#REF!,2021) ->  | H13: 3.2 - Poluição | I13: =SUMIFS(PAPI20_22_23[Recurso financeiro estimado no ano (R$) - CFURH],PAPI20_22_23[SubPDC],'Consolidaçao - 1'!H13,PAPI20_22_23[Ano previsto para início],2022) -> 0 | J13: =SUMIFS(PAPI20_22_23[Recurso financeiro estimado no ano (R$) - Cobrança Estadual],PAPI20_22_23[SubPDC],'Consolidaçao - 1'!H13,PAPI20_22_23[Ano previsto para início],2022) -> 0 | K13: =SUMIFS(PAPI20_22_23[Recurso financeiro estimado no ano (R$) - Cobrança Federal],PAPI20_22_23[SubPDC],'Consolidaçao - 1'!H13,PAPI20_22_23[Ano previsto para início],2022) -> 0 | L13: =SUMIFS(PAPI20_22_23[Recurso financeiro estimado no ano (R$) - Outras],PAPI20_22_23[SubPDC],'Consolidaçao - 1'!H13,PAPI20_22_23[Ano previsto para início],2022) -> 0 | M13: 0 | N13: =SUMIFS(PAPI20_22_23[Recurso financeiro estimado no ano (R$) - CFURH],PAPI20_22_23[SubPDC],'Consolidaçao - 1'!H13,PAPI20_22_23[Ano previsto para início],2023) -> 0 | O13: =SUMIFS(PAPI20_22_23[Recurso financeiro estimado no ano (R$) - Cobrança Estadual],PAPI20_22_23[SubPDC],'Consolidaçao - 1'!M13,PAPI20_22_23[Ano previsto para início],2023) -> 0 | P13: =SUMIFS(PAPI20_22_23[Recurso financeiro estimado no ano (R$) - Cobrança Federal],PAPI20_22_23[SubPDC],'Consolidaçao - 1'!M13,PAPI20_22_23[Ano previsto para início],2023) -> 0 | Q13: =SUMIFS(PAPI20_22_23[Recurso financeiro estimado no ano (R$) - Outras],PAPI20_22_23[SubPDC],'Consolidaçao - 1'!M13,PAPI20_22_23[Ano previsto para início],2023) -> 0 | R13: 0 | S13: 0
A14: 2.5 - Integração | B14: =SUMIFS(#REF!,#REF!,A14,#REF!,2021) ->  | C14: =SUMIFS(#REF!,#REF!,A14,#REF!,2021) ->  | D14: =SUMIFS(#REF!,#REF!,A14,#REF!,2021) ->  | E14: =SUMIFS(#REF!,#REF!,A14,#REF!,2021) ->  | H14: 3.3 - Resíduos | I14: =SUMIFS(PAPI20_22_23[Recurso financeiro estimado no ano (R$) - CFURH],PAPI20_22_23[SubPDC],'Consolidaçao - 1'!H14,PAPI20_22_23[Ano previsto para início],2022) -> 0 | J14: =SUMIFS(PAPI20_22_23[Recurso financeiro estimado no ano (R$) - Cobrança Estadual],PAPI20_22_23[SubPDC],'Consolidaçao - 1'!H14,PAPI20_22_23[Ano previsto para início],2022) -> 0 | K14: =SUMIFS(PAPI20_22_23[Recurso financeiro estimado no ano (R$) - Cobrança Federal],PAPI20_22_23[SubPDC],'Consolidaçao - 1'!H14,PAPI20_22_23[Ano previsto para início],2022) -> 0 | L14: =SUMIFS(PAPI20_22_23[Recurso financeiro estimado no ano (R$) - Outras],PAPI20_22_23[SubPDC],'Consolidaçao - 1'!H14,PAPI20_22_23[Ano previsto para início],2022) -> 0 | M14: 0 | N14: =SUMIFS(PAPI20_22_23[Recurso financeiro estimado no ano (R$) - CFURH],PAPI20_22_23[SubPDC],'Consolidaçao - 1'!H14,PAPI20_22_23[Ano previsto para início],2023) -> 0 | O14: =SUMIFS(PAPI20_22_23[Recurso financeiro estimado no ano (R$) - Cobrança Estadual],PAPI20_22_23[SubPDC],'Consolidaçao - 1'!M14,PAPI20_22_23[Ano previsto para início],2023) -> 0 | P14: =SUMIFS(PAPI20_22_23[Recurso financeiro estimado no ano (R$) - Cobrança Federal],PAPI20_22_23[SubPDC],'Consolidaçao - 1'!M14,PAPI20_22_23[Ano previsto para início],2023) -> 0 | Q14: =SUMIFS(PAPI20_22_23[Recurso financeiro estimado no ano (R$) - Outras],PAPI20_22_23[SubPDC],'Consolidaçao - 1'!M14,PAPI20_22_23[Ano previsto para início],2023) -> 0 | R14: 0 | S14: 0
A15: 2.6 - CORHI | B15: =SUMIFS(#REF!,#REF!,A15,#REF!,2021) ->  | C15: =SUMIFS(#REF!,#REF!,A15,#REF!,2021) ->  | D15: =SUMIFS(#REF!,#REF!,A15,#REF!,2021) ->  | E15: =SUMIFS(#REF!,#REF!,A15,#REF!,2021) ->  | H15: 3.4 - Intervenções | I15: =SUMIFS(PAPI20_22_23[Recurso financeiro estimado no ano (R$) - CFURH],PAPI20_22_23[SubPDC],'Consolidaçao - 1'!H15,PAPI20_22_23[Ano previsto para início],2022) -> 0 | J15: =SUMIFS(PAPI20_22_23[Recurso financeiro estimado no ano (R$) - Cobrança Estadual],PAPI20_22_23[SubPDC],'Consolidaçao - 1'!H15,PAPI20_22_23[Ano previsto para início],2022) -> 0 | K15: =SUMIFS(PAPI20_22_23[Recurso financeiro estimado no ano (R$) - Cobrança Federal],PAPI20_22_23[SubPDC],'Consolidaçao - 1'!H15,PAPI20_22_23[Ano previsto para início],2022) -> 0 | L15: =SUMIFS(PAPI20_22_23[Recurso financeiro estimado no ano (R$) - Outras],PAPI20_22_23[SubPDC],'Consolidaçao - 1'!H15,PAPI20_22_23[Ano previsto para início],2022) -> 0 | M15: 0 | N15: =SUMIFS(PAPI20_22_23[Recurso financeiro estimado no ano (R$) - CFURH],PAPI20_22_23[SubPDC],'Consolidaçao - 1'!H15,PAPI20_22_23[Ano previsto para início],2023) -> 0 | O15: =SUMIFS(PAPI20_22_23[Recurso financeiro estimado no ano (R$) - Cobrança Estadual],PAPI20_22_23[SubPDC],'Consolidaçao - 1'!H15,PAPI20_22_23[Ano previsto para início],2023) -> 0 | P15: =SUMIFS(PAPI20_22_23[Recurso financeiro estimado no ano (R$) - Cobrança Federal],PAPI20_22_23[SubPDC],'Consolidaçao - 1'!H15,PAPI20_22_23[Ano previsto para início],2023) -> 0 | Q15: =SUMIFS(PAPI20_22_23[Recurso financeiro estimado no ano (R$) - Outras],PAPI20_22_23[SubPDC],'Consolidaçao - 1'!H15,PAPI20_22_23[Ano previsto para início],2023) -> 0 | R15: 0 | S15: 0
A16: 3.1 - Efluentes | B16: =SUMIFS(#REF!,#REF!,A16,#REF!,2021) ->  | C16: =SUMIFS(#REF!,#REF!,A16,#REF!,2021) ->  | D16: =SUMIFS(#REF!,#REF!,A16,#REF!,2021) ->  | E16: =SUMIFS(#REF!,#REF!,A16,#REF!,2021) ->  | H16: 4.1 - Erosão | I16: =SUMIFS(PAPI20_22_23[Recurso financeiro estimado no ano (R$) - CFURH],PAPI20_22_23[SubPDC],'Consolidaçao - 1'!H16,PAPI20_22_23[Ano previsto para início],2022) -> 0 | J16: =SUMIFS(PAPI20_22_23[Recurso financeiro estimado no ano (R$) - Cobrança Estadual],PAPI20_22_23[SubPDC],'Consolidaçao - 1'!H16,PAPI20_22_23[Ano previsto para início],2022) -> 0 | K16: =SUMIFS(PAPI20_22_23[Recurso financeiro estimado no ano (R$) - Cobrança Federal],PAPI20_22_23[SubPDC],'Consolidaçao - 1'!H16,PAPI20_22_23[Ano previsto para início],2022) -> 0 | L16: =SUMIFS(PAPI20_22_23[Recurso financeiro estimado no ano (R$) - Outras],PAPI20_22_23[SubPDC],'Consolidaçao - 1'!H16,PAPI20_22_23[Ano previsto para início],2022) -> 0 | M16: 0 | N16: =SUMIFS(PAPI20_22_23[Recurso financeiro estimado no ano (R$) - CFURH],PAPI20_22_23[SubPDC],'Consolidaçao - 1'!H16,PAPI20_22_23[Ano previsto para início],2023) -> 0 | O16: =SUMIFS(PAPI20_22_23[Recurso financeiro estimado no ano (R$) - Cobrança Estadual],PAPI20_22_23[SubPDC],'Consolidaçao - 1'!H16,PAPI20_22_23[Ano previsto para início],2023) -> 0 | P16: =SUMIFS(PAPI20_22_23[Recurso financeiro estimado no ano (R$) - Cobrança Federal],PAPI20_22_23[SubPDC],'Consolidaçao - 1'!H16,PAPI20_22_23[Ano previsto para início],2023) -> 0 | Q16: =SUMIFS(PAPI20_22_23[Recurso financeiro estimado no ano (R$) - Outras],PAPI20_22_23[SubPDC],'Consolidaçao - 1'!H16,PAPI20_22_23[Ano previsto para início],2023) -> 0 | R16: 0 | S16: 0
A17: 3.2 - Resíduos | B17: =SUMIFS(#REF!,#REF!,A17,#REF!,2021) ->  | C17: =SUMIFS(#REF!,#REF!,A17,#REF!,2021) ->  | D17: =SUMIFS(#REF!,#REF!,A17,#REF!,2021) ->  | E17: =SUMIFS(#REF!,#REF!,A17,#REF!,2021) ->  | H17: 4.2 - Conservação | I17: =SUMIFS(PAPI20_22_23[Recurso financeiro estimado no ano (R$) - CFURH],PAPI20_22_23[SubPDC],'Consolidaçao - 1'!H17,PAPI20_22_23[Ano previsto para início],2022) -> 0 | J17: =SUMIFS(PAPI20_22_23[Recurso financeiro estimado no ano (R$) - Cobrança Estadual],PAPI20_22_23[SubPDC],'Consolidaçao - 1'!H17,PAPI20_22_23[Ano previsto para início],2022) -> 0 | K17: =SUMIFS(PAPI20_22_23[Recurso financeiro estimado no ano (R$) - Cobrança Federal],PAPI20_22_23[SubPDC],'Consolidaçao - 1'!H17,PAPI20_22_23[Ano previsto para início],2022) -> 0 | L17: =SUMIFS(PAPI20_22_23[Recurso financeiro estimado no ano (R$) - Outras],PAPI20_22_23[SubPDC],'Consolidaçao - 1'!H17,PAPI20_22_23[Ano previsto para início],2022) -> 0 | M17: 0 | N17: =SUMIFS(PAPI20_22_23[Recurso financeiro estimado no ano (R$) - CFURH],PAPI20_22_23[SubPDC],'Consolidaçao - 1'!H17,PAPI20_22_23[Ano previsto para início],2023) -> 0 | O17: =SUMIFS(PAPI20_22_23[Recurso financeiro estimado no ano (R$) - Cobrança Estadual],PAPI20_22_23[SubPDC],'Consolidaçao - 1'!H17,PAPI20_22_23[Ano previsto para início],2023) -> 0 | P17: =SUMIFS(PAPI20_22_23[Recurso financeiro estimado no ano (R$) - Cobrança Federal],PAPI20_22_23[SubPDC],'Consolidaçao - 1'!H17,PAPI20_22_23[Ano previsto para início],2023) -> 0 | Q17: =SUMIFS(PAPI20_22_23[Recurso financeiro estimado no ano (R$) - Outras],PAPI20_22_23[SubPDC],'Consolidaçao - 1'!H17,PAPI20_22_23[Ano previsto para início],2023) -> 0 | R17: 0 | S17: 0
A18: 3.3 - Drenagem | B18: =SUMIFS(#REF!,#REF!,A18,#REF!,2021) ->  | C18: =SUMIFS(#REF!,#REF!,A18,#REF!,2021) ->  | D18: =SUMIFS(#REF!,#REF!,A18,#REF!,2021) ->  | E18: =SUMIFS(#REF!,#REF!,A18,#REF!,2021) ->  | H18: 4.3 - Mananciais | I18: =SUMIFS(PAPI20_22_23[Recurso financeiro estimado no ano (R$) - CFURH],PAPI20_22_23[SubPDC],'Consolidaçao - 1'!H18,PAPI20_22_23[Ano previsto para início],2022) -> 0 | J18: =SUMIFS(PAPI20_22_23[Recurso financeiro estimado no ano (R$) - Cobrança Estadual],PAPI20_22_23[SubPDC],'Consolidaçao - 1'!H18,PAPI20_22_23[Ano previsto para início],2022) -> 0 | K18: =SUMIFS(PAPI20_22_23[Recurso financeiro estimado no ano (R$) - Cobrança Federal],PAPI20_22_23[SubPDC],'Consolidaçao - 1'!H18,PAPI20_22_23[Ano previsto para início],2022) -> 0 | L18: =SUMIFS(PAPI20_22_23[Recurso financeiro estimado no ano (R$) - Outras],PAPI20_22_23[SubPDC],'Consolidaçao - 1'!H18,PAPI20_22_23[Ano previsto para início],2022) -> 0 | M18: 0 | N18: =SUMIFS(PAPI20_22_23[Recurso financeiro estimado no ano (R$) - CFURH],PAPI20_22_23[SubPDC],'Consolidaçao - 1'!H18,PAPI20_22_23[Ano previsto para início],2023) -> 0 | O18: =SUMIFS(PAPI20_22_23[Recurso financeiro estimado no ano (R$) - Cobrança Estadual],PAPI20_22_23[SubPDC],'Consolidaçao - 1'!H18,PAPI20_22_23[Ano previsto para início],2023) -> 0 | P18: =SUMIFS(PAPI20_22_23[Recurso financeiro estimado no ano (R$) - Cobrança Federal],PAPI20_22_23[SubPDC],'Consolidaçao - 1'!H18,PAPI20_22_23[Ano previsto para início],2023) -> 0 | Q18: =SUMIFS(PAPI20_22_23[Recurso financeiro estimado no ano (R$) - Outras],PAPI20_22_23[SubPDC],'Consolidaçao - 1'!H18,PAPI20_22_23[Ano previsto para início],2023) -> 0 | R18: 0 | S18: 0
A19: 3.4 - Erosão | B19: =SUMIFS(#REF!,#REF!,A19,#REF!,2021) ->  | C19: =SUMIFS(#REF!,#REF!,A19,#REF!,2021) ->  | D19: =SUMIFS(#REF!,#REF!,A19,#REF!,2021) ->  | E19: =SUMIFS(#REF!,#REF!,A19,#REF!,2021) ->  | H19: 5.1 - Perdas | I19: =SUMIFS(PAPI20_22_23[Recurso financeiro estimado no ano (R$) - CFURH],PAPI20_22_23[SubPDC],'Consolidaçao - 1'!H19,PAPI20_22_23[Ano previsto para início],2022) -> 0 | J19: =SUMIFS(PAPI20_22_23[Recurso financeiro estimado no ano (R$) - Cobrança Estadual],PAPI20_22_23[SubPDC],'Consolidaçao - 1'!H19,PAPI20_22_23[Ano previsto para início],2022) -> 0 | K19: =SUMIFS(PAPI20_22_23[Recurso financeiro estimado no ano (R$) - Cobrança Federal],PAPI20_22_23[SubPDC],'Consolidaçao - 1'!H19,PAPI20_22_23[Ano previsto para início],2022) -> 0 | L19: =SUMIFS(PAPI20_22_23[Recurso financeiro estimado no ano (R$) - Outras],PAPI20_22_23[SubPDC],'Consolidaçao - 1'!H19,PAPI20_22_23[Ano previsto para início],2022) -> 0 | M19: 0 | N19: =SUMIFS(PAPI20_22_23[Recurso financeiro estimado no ano (R$) - CFURH],PAPI20_22_23[SubPDC],'Consolidaçao - 1'!H19,PAPI20_22_23[Ano previsto para início],2023) -> 0 | O19: =SUMIFS(PAPI20_22_23[Recurso financeiro estimado no ano (R$) - Cobrança Estadual],PAPI20_22_23[SubPDC],'Consolidaçao - 1'!H19,PAPI20_22_23[Ano previsto para início],2023) -> 0 | P19: =SUMIFS(PAPI20_22_23[Recurso financeiro estimado no ano (R$) - Cobrança Federal],PAPI20_22_23[SubPDC],'Consolidaçao - 1'!H19,PAPI20_22_23[Ano previsto para início],2023) -> 0 | Q19: =SUMIFS(PAPI20_22_23[Recurso financeiro estimado no ano (R$) - Outras],PAPI20_22_23[SubPDC],'Consolidaçao - 1'!H19,PAPI20_22_23[Ano previsto para início],2023) -> 0 | R19: 0 | S19: 0
A20: 3.5 - Intervenções | B20: =SUMIFS(#REF!,#REF!,A20,#REF!,2021) ->  | C20: =SUMIFS(#REF!,#REF!,A20,#REF!,2021) ->  | D20: =SUMIFS(#REF!,#REF!,A20,#REF!,2021) ->  | E20: =SUMIFS(#REF!,#REF!,A20,#REF!,2021) ->  | H20: 5.2 - Racionalização | I20: =SUMIFS(PAPI20_22_23[Recurso financeiro estimado no ano (R$) - CFURH],PAPI20_22_23[SubPDC],'Consolidaçao - 1'!H20,PAPI20_22_23[Ano previsto para início],2022) -> 0 | J20: =SUMIFS(PAPI20_22_23[Recurso financeiro estimado no ano (R$) - Cobrança Estadual],PAPI20_22_23[SubPDC],'Consolidaçao - 1'!H20,PAPI20_22_23[Ano previsto para início],2022) -> 0 | K20: =SUMIFS(PAPI20_22_23[Recurso financeiro estimado no ano (R$) - Cobrança Federal],PAPI20_22_23[SubPDC],'Consolidaçao - 1'!H20,PAPI20_22_23[Ano previsto para início],2022) -> 0 | L20: =SUMIFS(PAPI20_22_23[Recurso financeiro estimado no ano (R$) - Outras],PAPI20_22_23[SubPDC],'Consolidaçao - 1'!H20,PAPI20_22_23[Ano previsto para início],2022) -> 0 | M20: 0 | N20: =SUMIFS(PAPI20_22_23[Recurso financeiro estimado no ano (R$) - CFURH],PAPI20_22_23[SubPDC],'Consolidaçao - 1'!H20,PAPI20_22_23[Ano previsto para início],2023) -> 0 | O20: =SUMIFS(PAPI20_22_23[Recurso financeiro estimado no ano (R$) - Cobrança Estadual],PAPI20_22_23[SubPDC],'Consolidaçao - 1'!H20,PAPI20_22_23[Ano previsto para início],2023) -> 0 | P20: =SUMIFS(PAPI20_22_23[Recurso financeiro estimado no ano (R$) - Cobrança Federal],PAPI20_22_23[SubPDC],'Consolidaçao - 1'!H20,PAPI20_22_23[Ano previsto para início],2023) -> 0 | Q20: =SUMIFS(PAPI20_22_23[Recurso financeiro estimado no ano (R$) - Outras],PAPI20_22_23[SubPDC],'Consolidaçao - 1'!H20,PAPI20_22_23[Ano previsto para início],2023) -> 0 | R20: 0 | S20: 0
A21: 4.1 - Mananciais | B21: =SUMIFS(#REF!,#REF!,A21,#REF!,2021) ->  | C21: =SUMIFS(#REF!,#REF!,A21,#REF!,2021) ->  | D21: =SUMIFS(#REF!,#REF!,A21,#REF!,2021) ->  | E21: =SUMIFS(#REF!,#REF!,A21,#REF!,2021) ->  | H21: 5.3 - Reuso | I21: =SUMIFS(PAPI20_22_23[Recurso financeiro estimado no ano (R$) - CFURH],PAPI20_22_23[SubPDC],'Consolidaçao - 1'!H21,PAPI20_22_23[Ano previsto para início],2022) -> 0 | J21: =SUMIFS(PAPI20_22_23[Recurso financeiro estimado no ano (R$) - Cobrança Estadual],PAPI20_22_23[SubPDC],'Consolidaçao - 1'!H21,PAPI20_22_23[Ano previsto para início],2022) -> 0 | K21: =SUMIFS(PAPI20_22_23[Recurso financeiro estimado no ano (R$) - Cobrança Federal],PAPI20_22_23[SubPDC],'Consolidaçao - 1'!H21,PAPI20_22_23[Ano previsto para início],2022) -> 0 | L21: =SUMIFS(PAPI20_22_23[Recurso financeiro estimado no ano (R$) - Outras],PAPI20_22_23[SubPDC],'Consolidaçao - 1'!H21,PAPI20_22_23[Ano previsto para início],2022) -> 0 | M21: 0 | N21: =SUMIFS(PAPI20_22_23[Recurso financeiro estimado no ano (R$) - CFURH],PAPI20_22_23[SubPDC],'Consolidaçao - 1'!H21,PAPI20_22_23[Ano previsto para início],2023) -> 0 | O21: =SUMIFS(PAPI20_22_23[Recurso financeiro estimado no ano (R$) - Cobrança Estadual],PAPI20_22_23[SubPDC],'Consolidaçao - 1'!H21,PAPI20_22_23[Ano previsto para início],2023) -> 0 | P21: =SUMIFS(PAPI20_22_23[Recurso financeiro estimado no ano (R$) - Cobrança Federal],PAPI20_22_23[SubPDC],'Consolidaçao - 1'!H21,PAPI20_22_23[Ano previsto para início],2023) -> 0 | Q21: =SUMIFS(PAPI20_22_23[Recurso financeiro estimado no ano (R$) - Outras],PAPI20_22_23[SubPDC],'Consolidaçao - 1'!H21,PAPI20_22_23[Ano previsto para início],2023) -> 0 | R21: 0 | S21: 0
A22: 4.2 - Vegetação | B22: =SUMIFS(#REF!,#REF!,A22,#REF!,2021) ->  | C22: =SUMIFS(#REF!,#REF!,A22,#REF!,2021) ->  | D22: =SUMIFS(#REF!,#REF!,A22,#REF!,2021) ->  | E22: =SUMIFS(#REF!,#REF!,A22,#REF!,2021) ->  | H22: 6.1 - Captação | I22: =SUMIFS(PAPI20_22_23[Recurso financeiro estimado no ano (R$) - CFURH],PAPI20_22_23[SubPDC],'Consolidaçao - 1'!H22,PAPI20_22_23[Ano previsto para início],2022) -> 0 | J22: =SUMIFS(PAPI20_22_23[Recurso financeiro estimado no ano (R$) - Cobrança Estadual],PAPI20_22_23[SubPDC],'Consolidaçao - 1'!H22,PAPI20_22_23[Ano previsto para início],2022) -> 0 | K22: =SUMIFS(PAPI20_22_23[Recurso financeiro estimado no ano (R$) - Cobrança Federal],PAPI20_22_23[SubPDC],'Consolidaçao - 1'!H22,PAPI20_22_23[Ano previsto para início],2022) -> 0 | L22: =SUMIFS(PAPI20_22_23[Recurso financeiro estimado no ano (R$) - Outras],PAPI20_22_23[SubPDC],'Consolidaçao - 1'!H22,PAPI20_22_23[Ano previsto para início],2022) -> 0 | M22: 0 | N22: =SUMIFS(PAPI20_22_23[Recurso financeiro estimado no ano (R$) - CFURH],PAPI20_22_23[SubPDC],'Consolidaçao - 1'!H22,PAPI20_22_23[Ano previsto para início],2023) -> 0 | O22: =SUMIFS(PAPI20_22_23[Recurso financeiro estimado no ano (R$) - Cobrança Estadual],PAPI20_22_23[SubPDC],'Consolidaçao - 1'!H22,PAPI20_22_23[Ano previsto para início],2023) -> 0 | P22: =SUMIFS(PAPI20_22_23[Recurso financeiro estimado no ano (R$) - Cobrança Federal],PAPI20_22_23[SubPDC],'Consolidaçao - 1'!H22,PAPI20_22_23[Ano previsto para início],2023) -> 0 | Q22: =SUMIFS(PAPI20_22_23[Recurso financeiro estimado no ano (R$) - Outras],PAPI20_22_23[SubPDC],'Consolidaçao - 1'!H22,PAPI20_22_23[Ano previsto para início],2023) -> 0 | R22: 0 | S22: 0
A23: 5.1 - Perdas | B23: =SUMIFS(#REF!,#REF!,A23,#REF!,2021) ->  | C23: =SUMIFS(#REF!,#REF!,A23,#REF!,2021) ->  | D23: =SUMIFS(#REF!,#REF!,A23,#REF!,2021) ->  | E23: =SUMIFS(#REF!,#REF!,A23,#REF!,2021) ->  | H23: 6.2 - Regularização | I23: =SUMIFS(PAPI20_22_23[Recurso financeiro estimado no ano (R$) - CFURH],PAPI20_22_23[SubPDC],'Consolidaçao - 1'!H23,PAPI20_22_23[Ano previsto para início],2022) -> 0 | J23: =SUMIFS(PAPI20_22_23[Recurso financeiro estimado no ano (R$) - Cobrança Estadual],PAPI20_22_23[SubPDC],'Consolidaçao - 1'!H23,PAPI20_22_23[Ano previsto para início],2022) -> 0 | K23: =SUMIFS(PAPI20_22_23[Recurso financeiro estimado no ano (R$) - Cobrança Federal],PAPI20_22_23[SubPDC],'Consolidaçao - 1'!H23,PAPI20_22_23[Ano previsto para início],2022) -> 0 | L23: =SUMIFS(PAPI20_22_23[Recurso financeiro estimado no ano (R$) - Outras],PAPI20_22_23[SubPDC],'Consolidaçao - 1'!H23,PAPI20_22_23[Ano previsto para início],2022) -> 0 | M23: 0 | N23: =SUMIFS(PAPI20_22_23[Recurso financeiro estimado no ano (R$) - CFURH],PAPI20_22_23[SubPDC],'Consolidaçao - 1'!H23,PAPI20_22_23[Ano previsto para início],2023) -> 0 | O23: =SUMIFS(PAPI20_22_23[Recurso financeiro estimado no ano (R$) - Cobrança Estadual],PAPI20_22_23[SubPDC],'Consolidaçao - 1'!H23,PAPI20_22_23[Ano previsto para início],2023) -> 0 | P23: =SUMIFS(PAPI20_22_23[Recurso financeiro estimado no ano (R$) - Cobrança Federal],PAPI20_22_23[SubPDC],'Consolidaçao - 1'!H23,PAPI20_22_23[Ano previsto para início],2023) -> 0 | Q23: =SUMIFS(PAPI20_22_23[Recurso financeiro estimado no ano (R$) - Outras],PAPI20_22_23[SubPDC],'Consolidaçao - 1'!H23,PAPI20_22_23[Ano previsto para início],2023) -> 0 | R23: 0 | S23: 0
A24: 5.2 - Racionalização | B24: =SUMIFS(#REF!,#REF!,A24,#REF!,2021) ->  | C24: =SUMIFS(#REF!,#REF!,A24,#REF!,2021) ->  | D24: =SUMIFS(#REF!,#REF!,A24,#REF!,2021) ->  | E24: =SUMIFS(#REF!,#REF!,A24,#REF!,2021) ->  | H24: 7.1 - Drenagem | I24: =SUMIFS(PAPI20_22_23[Recurso financeiro estimado no ano (R$) - CFURH],PAPI20_22_23[SubPDC],'Consolidaçao - 1'!H24,PAPI20_22_23[Ano previsto para início],2022) -> 0 | J24: =SUMIFS(PAPI20_22_23[Recurso financeiro estimado no ano (R$) - Cobrança Estadual],PAPI20_22_23[SubPDC],'Consolidaçao - 1'!H24,PAPI20_22_23[Ano previsto para início],2022) -> 0 | K24: =SUMIFS(PAPI20_22_23[Recurso financeiro estimado no ano (R$) - Cobrança Federal],PAPI20_22_23[SubPDC],'Consolidaçao - 1'!H24,PAPI20_22_23[Ano previsto para início],2022) -> 0 | L24: =SUMIFS(PAPI20_22_23[Recurso financeiro estimado no ano (R$) - Outras],PAPI20_22_23[SubPDC],'Consolidaçao - 1'!H24,PAPI20_22_23[Ano previsto para início],2022) -> 0 | M24: 0 | N24: =SUMIFS(PAPI20_22_23[Recurso financeiro estimado no ano (R$) - CFURH],PAPI20_22_23[SubPDC],'Consolidaçao - 1'!H24,PAPI20_22_23[Ano previsto para início],2023) -> 0 | O24: =SUMIFS(PAPI20_22_23[Recurso financeiro estimado no ano (R$) - Cobrança Estadual],PAPI20_22_23[SubPDC],'Consolidaçao - 1'!H24,PAPI20_22_23[Ano previsto para início],2023) -> 0 | P24: =SUMIFS(PAPI20_22_23[Recurso financeiro estimado no ano (R$) - Cobrança Federal],PAPI20_22_23[SubPDC],'Consolidaçao - 1'!H24,PAPI20_22_23[Ano previsto para início],2023) -> 0 | Q24: =SUMIFS(PAPI20_22_23[Recurso financeiro estimado no ano (R$) - Outras],PAPI20_22_23[SubPDC],'Consolidaçao - 1'!H24,PAPI20_22_23[Ano previsto para início],2023) -> 0 | R24: 0 | S24: 0
A25: 5.3 - Reuso | B25: =SUMIFS(#REF!,#REF!,A25,#REF!,2021) ->  | C25: =SUMIFS(#REF!,#REF!,A25,#REF!,2021) ->  | D25: =SUMIFS(#REF!,#REF!,A25,#REF!,2021) ->  | E25: =SUMIFS(#REF!,#REF!,A25,#REF!,2021) ->  | H25: 7.2 - Escassez | I25: =SUMIFS(PAPI20_22_23[Recurso financeiro estimado no ano (R$) - CFURH],PAPI20_22_23[SubPDC],'Consolidaçao - 1'!H25,PAPI20_22_23[Ano previsto para início],2022) -> 0 | J25: =SUMIFS(PAPI20_22_23[Recurso financeiro estimado no ano (R$) - Cobrança Estadual],PAPI20_22_23[SubPDC],'Consolidaçao - 1'!H25,PAPI20_22_23[Ano previsto para início],2022) -> 0 | K25: =SUMIFS(PAPI20_22_23[Recurso financeiro estimado no ano (R$) - Cobrança Federal],PAPI20_22_23[SubPDC],'Consolidaçao - 1'!H25,PAPI20_22_23[Ano previsto para início],2022) -> 0 | L25: =SUMIFS(PAPI20_22_23[Recurso financeiro estimado no ano (R$) - Outras],PAPI20_22_23[SubPDC],'Consolidaçao - 1'!H25,PAPI20_22_23[Ano previsto para início],2022) -> 0 | M25: 0 | N25: =SUMIFS(PAPI20_22_23[Recurso financeiro estimado no ano (R$) - CFURH],PAPI20_22_23[SubPDC],'Consolidaçao - 1'!H25,PAPI20_22_23[Ano previsto para início],2023) -> 0 | O25: =SUMIFS(PAPI20_22_23[Recurso financeiro estimado no ano (R$) - Cobrança Estadual],PAPI20_22_23[SubPDC],'Consolidaçao - 1'!H25,PAPI20_22_23[Ano previsto para início],2023) -> 0 | P25: =SUMIFS(PAPI20_22_23[Recurso financeiro estimado no ano (R$) - Cobrança Federal],PAPI20_22_23[SubPDC],'Consolidaçao - 1'!H25,PAPI20_22_23[Ano previsto para início],2023) -> 0 | Q25: =SUMIFS(PAPI20_22_23[Recurso financeiro estimado no ano (R$) - Outras],PAPI20_22_23[SubPDC],'Consolidaçao - 1'!H25,PAPI20_22_23[Ano previsto para início],2023) -> 0 | R25: 0 | S25: 0
A26: 6.1 - Usos | B26: =SUMIFS(#REF!,#REF!,A26,#REF!,2021) ->  | C26: =SUMIFS(#REF!,#REF!,A26,#REF!,2021) ->  | D26: =SUMIFS(#REF!,#REF!,A26,#REF!,2021) ->  | E26: =SUMIFS(#REF!,#REF!,A26,#REF!,2021) ->  | H26: 8.1 - Capacitação | I26: =SUMIFS(PAPI20_22_23[Recurso financeiro estimado no ano (R$) - CFURH],PAPI20_22_23[SubPDC],'Consolidaçao - 1'!H26,PAPI20_22_23[Ano previsto para início],2022) -> 0 | J26: =SUMIFS(PAPI20_22_23[Recurso financeiro estimado no ano (R$) - Cobrança Estadual],PAPI20_22_23[SubPDC],'Consolidaçao - 1'!H26,PAPI20_22_23[Ano previsto para início],2022) -> 0 | K26: =SUMIFS(PAPI20_22_23[Recurso financeiro estimado no ano (R$) - Cobrança Federal],PAPI20_22_23[SubPDC],'Consolidaçao - 1'!H26,PAPI20_22_23[Ano previsto para início],2022) -> 0 | L26: =SUMIFS(PAPI20_22_23[Recurso financeiro estimado no ano (R$) - Outras],PAPI20_22_23[SubPDC],'Consolidaçao - 1'!H26,PAPI20_22_23[Ano previsto para início],2022) -> 0 | M26: 0 | N26: =SUMIFS(PAPI20_22_23[Recurso financeiro estimado no ano (R$) - CFURH],PAPI20_22_23[SubPDC],'Consolidaçao - 1'!H26,PAPI20_22_23[Ano previsto para início],2023) -> 0 | O26: =SUMIFS(PAPI20_22_23[Recurso financeiro estimado no ano (R$) - Cobrança Estadual],PAPI20_22_23[SubPDC],'Consolidaçao - 1'!H26,PAPI20_22_23[Ano previsto para início],2023) -> 0 | P26: =SUMIFS(PAPI20_22_23[Recurso financeiro estimado no ano (R$) - Cobrança Federal],PAPI20_22_23[SubPDC],'Consolidaçao - 1'!H26,PAPI20_22_23[Ano previsto para início],2023) -> 0 | Q26: =SUMIFS(PAPI20_22_23[Recurso financeiro estimado no ano (R$) - Outras],PAPI20_22_23[SubPDC],'Consolidaçao - 1'!H26,PAPI20_22_23[Ano previsto para início],2023) -> 0 | R26: 0 | S26: 0
A27: 6.2 - Segurança | B27: =SUMIFS(#REF!,#REF!,A27,#REF!,2021) ->  | C27: =SUMIFS(#REF!,#REF!,A27,#REF!,2021) ->  | D27: =SUMIFS(#REF!,#REF!,A27,#REF!,2021) ->  | E27: =SUMIFS(#REF!,#REF!,A27,#REF!,2021) ->  | H27: 8.2 - Educação | I27: =SUMIFS(PAPI20_22_23[Recurso financeiro estimado no ano (R$) - CFURH],PAPI20_22_23[SubPDC],'Consolidaçao - 1'!H27,PAPI20_22_23[Ano previsto para início],2022) -> 0 | J27: =SUMIFS(PAPI20_22_23[Recurso financeiro estimado no ano (R$) - Cobrança Estadual],PAPI20_22_23[SubPDC],'Consolidaçao - 1'!H27,PAPI20_22_23[Ano previsto para início],2022) -> 0 | K27: =SUMIFS(PAPI20_22_23[Recurso financeiro estimado no ano (R$) - Cobrança Federal],PAPI20_22_23[SubPDC],'Consolidaçao - 1'!H27,PAPI20_22_23[Ano previsto para início],2022) -> 0 | L27: =SUMIFS(PAPI20_22_23[Recurso financeiro estimado no ano (R$) - Outras],PAPI20_22_23[SubPDC],'Consolidaçao - 1'!H27,PAPI20_22_23[Ano previsto para início],2022) -> 0 | M27: 0 | N27: =SUMIFS(PAPI20_22_23[Recurso financeiro estimado no ano (R$) - CFURH],PAPI20_22_23[SubPDC],'Consolidaçao - 1'!H27,PAPI20_22_23[Ano previsto para início],2023) -> 0 | O27: =SUMIFS(PAPI20_22_23[Recurso financeiro estimado no ano (R$) - Cobrança Estadual],PAPI20_22_23[SubPDC],'Consolidaçao - 1'!H27,PAPI20_22_23[Ano previsto para início],2023) -> 0 | P27: =SUMIFS(PAPI20_22_23[Recurso financeiro estimado no ano (R$) - Cobrança Federal],PAPI20_22_23[SubPDC],'Consolidaçao - 1'!H27,PAPI20_22_23[Ano previsto para início],2023) -> 0 | Q27: =SUMIFS(PAPI20_22_23[Recurso financeiro estimado no ano (R$) - Outras],PAPI20_22_23[SubPDC],'Consolidaçao - 1'!H27,PAPI20_22_23[Ano previsto para início],2023) -> 0 | R27: 0 | S27: 0
A28: 6.3 - Aproveitamento | B28: =SUMIFS(#REF!,#REF!,A28,#REF!,2021) ->  | C28: =SUMIFS(#REF!,#REF!,A28,#REF!,2021) ->  | D28: =SUMIFS(#REF!,#REF!,A28,#REF!,2021) ->  | E28: =SUMIFS(#REF!,#REF!,A28,#REF!,2021) ->  | H28: 8.3 - Comunicação | I28: =SUMIFS(PAPI20_22_23[Recurso financeiro estimado no ano (R$) - CFURH],PAPI20_22_23[SubPDC],'Consolidaçao - 1'!H28,PAPI20_22_23[Ano previsto para início],2022) -> 0 | J28: =SUMIFS(PAPI20_22_23[Recurso financeiro estimado no ano (R$) - Cobrança Estadual],PAPI20_22_23[SubPDC],'Consolidaçao - 1'!H28,PAPI20_22_23[Ano previsto para início],2022) -> 0 | K28: =SUMIFS(PAPI20_22_23[Recurso financeiro estimado no ano (R$) - Cobrança Federal],PAPI20_22_23[SubPDC],'Consolidaçao - 1'!H28,PAPI20_22_23[Ano previsto para início],2022) -> 0 | L28: =SUMIFS(PAPI20_22_23[Recurso financeiro estimado no ano (R$) - Outras],PAPI20_22_23[SubPDC],'Consolidaçao - 1'!H28,PAPI20_22_23[Ano previsto para início],2022) -> 0 | M28: 0 | N28: =SUMIFS(PAPI20_22_23[Recurso financeiro estimado no ano (R$) - CFURH],PAPI20_22_23[SubPDC],'Consolidaçao - 1'!H28,PAPI20_22_23[Ano previsto para início],2023) -> 0 | O28: =SUMIFS(PAPI20_22_23[Recurso financeiro estimado no ano (R$) - Cobrança Estadual],PAPI20_22_23[SubPDC],'Consolidaçao - 1'!H28,PAPI20_22_23[Ano previsto para início],2023) -> 0 | P28: =SUMIFS(PAPI20_22_23[Recurso financeiro estimado no ano (R$) - Cobrança Federal],PAPI20_22_23[SubPDC],'Consolidaçao - 1'!H28,PAPI20_22_23[Ano previsto para início],2023) -> 0 | Q28: =SUMIFS(PAPI20_22_23[Recurso financeiro estimado no ano (R$) - Outras],PAPI20_22_23[SubPDC],'Consolidaçao - 1'!H28,PAPI20_22_23[Ano previsto para início],2023) -> 0 | R28: 0 | S28: 0
A29: 7.1 - Criticidades | B29: =SUMIFS(#REF!,#REF!,A29,#REF!,2021) ->  | C29: =SUMIFS(#REF!,#REF!,A29,#REF!,2021) ->  | D29: =SUMIFS(#REF!,#REF!,A29,#REF!,2021) ->  | E29: =SUMIFS(#REF!,#REF!,A29,#REF!,2021) -> 
A30: 7.2 - Inundações | B30: =SUMIFS(#REF!,#REF!,A30,#REF!,2021) ->  | C30: =SUMIFS(#REF!,#REF!,A30,#REF!,2021) ->  | D30: =SUMIFS(#REF!,#REF!,A30,#REF!,2021) ->  | E30: =SUMIFS(#REF!,#REF!,A30,#REF!,2021) ->  | H30: Delib. 246 | I30: PDC 1 e 2 | J30: Prioritário | K30: Não Prioritário
A31: 7.3 - Estiagens | B31: =SUMIFS(#REF!,#REF!,A31,#REF!,2021) ->  | C31: =SUMIFS(#REF!,#REF!,A31,#REF!,2021) ->  | D31: =SUMIFS(#REF!,#REF!,A31,#REF!,2021) ->  | E31: =SUMIFS(#REF!,#REF!,A31,#REF!,2021) ->  | H31: SubPDC | I31: =SUMIF(#REF!,I$30,PAPI20_22_23[Recurso financeiro estimado no ano (R$)]) ->  | J31: =SUMIF(#REF!,J$30,PAPI20_22_23[Recurso financeiro estimado no ano (R$)]) ->  | K31: =SUMIF(#REF!,K$30,PAPI20_22_23[Recurso financeiro estimado no ano (R$)]) -> 
A32: 8.1 - Capacitação | B32: =SUMIFS(#REF!,#REF!,A32,#REF!,2021) ->  | C32: =SUMIFS(#REF!,#REF!,A32,#REF!,2021) ->  | D32: =SUMIFS(#REF!,#REF!,A32,#REF!,2021) ->  | E32: =SUMIFS(#REF!,#REF!,A32,#REF!,2021) ->  | I32: =IFERROR(I31/SUM(I31:K31),"") ->  | J32: =IFERROR(J31/SUM(I31:K31),"") ->  | K32: =IFERROR(K31/SUM(I31:K31),"") -> 
A33: 8.2 - Educação | B33: =SUMIFS(#REF!,#REF!,A33,#REF!,2021) ->  | C33: =SUMIFS(#REF!,#REF!,A33,#REF!,2021) ->  | D33: =SUMIFS(#REF!,#REF!,A33,#REF!,2021) ->  | E33: =SUMIFS(#REF!,#REF!,A33,#REF!,2021) -> 
A34: 8.3 - Comunicação | B34: =SUMIFS(#REF!,#REF!,A34,#REF!,2021) ->  | C34: =SUMIFS(#REF!,#REF!,A34,#REF!,2021) ->  | D34: =SUMIFS(#REF!,#REF!,A34,#REF!,2021) ->  | E34: =SUMIFS(#REF!,#REF!,A34,#REF!,2021) -> 
A36: Delib. 190 | B36: PDC 1 e 2 | C36: Prioritário | D36: Não Prioritário
A37: SubPDC | B37: =SUMIF(#REF!,B$36,#REF!) ->  | C37: =SUMIF(#REF!,C$36,#REF!) ->  | D37: =SUMIF(#REF!,D$36,#REF!) -> 
B38: =B37/SUM(B37:D37) ->  | C38: =C37/SUM(B37:D37) ->  | D38: =D37/SUM(B37:D37) -> 

Sheet Consolidaçao - 2 (hidden)
A1: Para atualizar, vá em Dados --> Atualizar Tudo ou aperte
A2: CTRL + Alt + F5

Sheet Orientações
B1: MELHOR VISUALIZADO no Office 365
B3: Este modelo de PAPI para o quadriênio 2024-2027 tem uma estrutura distinta dos enviados nos outros períodos/anos, pois ele contempla tanto o PAPI 24-27 e seu acompanhamento, quanto o acompanhamento do PAPI anterior.
B4: Está dividido em multiplas planilhas ("abas"), estruturadas em dois grupos: PAPI 24-27 e PAPI 20-23 (Acompanhamento). A expectativa é que a mesma planilha sirva para todo o quadriênio.
A8: A | B8: PAPI 2024-2027
B9: Compreende quatro planilhas ("abas") e se refere ao planejamento e acompanhamento do PAPI - 24-27.
A10: 1 | B10: Identificação das ações - 24-27" - Compreende a indicação das ações previstas para o PAPI 2024-2027. Sugere-se a indicação do que será produzido/realizado com o recurso pleiteado, considerando a esfera de atuação direta do CBH. Envolve um fluxo de atividades a serem executadas para entregar um produto final. Preencher TODAS informações das colunas também de forma sequencial (esquerda para direita).
A11: 2 | B11: Acompanhamento das metas 24-27 - Compreende a indicação e o acompanhamento da execução das Metas (do quadriênio e anuais).Devem ser quantificáveis e mensuráveis por meio de indicadores que reflitam as mudanças para as quais espera-se que as intervenções previstos pelas ações propostas influenciem.
A12: 3 | B12: Acomp. Financeiro 24-27 - Acompanhamento das previsões dos valores (R$) planejados, disponbilizados e executados. Para esta primeira etapa, só precisam ser preenchidos os valores Planejados (colunas em roxo). O acompanhamento se dará ao longo do quadriênio.
A13: 4 | B13: PAPI 2024-2027 - Resultado automático do preenchimento anterior. Não deve ser preenchida. É o conteúdo mínimo do PAPI 24/27 que deve ser deliberado e referendado nas revisões anuais.
A15: B | B15: ACOMPANHAMENTO - PAPI 20-23
B16: Compreende o acompanhamento das ações iniciadas no quadriênio anterior. Como grande parte delas ainda está em execução, ideal é monitorar, na medida do possível, sua execução.
A17: 1 | B17: Serão utilizadas as mesmas planilhas do ano anterior, que devem ser incorporadas no presente arquivo. Observar as duas colunas na cor roxa, relativa ao acompanhamento 2024. As outras colunas devem ser copiadas do último PAPI aprovado. Como se trata do acompanhamento de 2024 dessas ações, só será iniciado em 2025.

Sheet Operacional (hidden)
C1: SubPDC - Delib.CRH N° 246/2021 | E1: Area | F1: Executor | G1: Fonte | I1: Tipo de Ação | K1: Prioridade | M1: Fonte
C2: Não se aplica | E2: APRM | F2: Estado | G2: CFURH | I2: Obra | K2: Não prioritário | M2: FEHIDRO - Cobrança estadual
C3: 1.1 - Legislação | E3: Aquífero | F3: Município | G3: Cobrança Estadual | I3: Serviços | K3: PDC 1 e 2 | M3: FEHIDRO - CFURH
C4: 1.2 - Planejamento | E4: Área rural | F4: Sociedade Civil | G4: Outras | I4: Projeto Básico/Executivo | K4: Prioritário | M4: Cobrança Federal
C5: 2.1 - Plano | E5: Área urbana | F5: Iniciativa privada | G5: Cobrança Federal | I5: Estudo/Diagnóstico | M5: Tesouro do Estado
C6: 2.2 - Outorga | E6: Bacia | I6: Capacitação | M6: Fundo especial de despesa
C7: 2.3 - Cobrança | E7: Corpo hídrico | M7: Recursos da administração indireta
C8: 2.4 - Enquadramento | E8: Município | M8: Recursos vinculados federais
C9: 2.5 - Redes de monitoramento e SI | E9: Região Hidrográfica | M9: Operações de crédito
C10: 2.6 - Integração | E10: Sub-bacia | M10: Recursos privados da sociedade civil
C11: 2.7 - CORHI | E11: UGRHi | M11: Recursos de instrumentos de fomento
C12: 3.1 - Efluentes | E12: Outra | M12: Outras fontes
C13: 3.2 - Poluição
C14: 3.3 - Resíduos
C15: 3.4 - Intervenções
C16: 4.1 - Controle erosão
C17: 4.2 - Soluções baseadas Natureza
C18: 4.3 - Mananciais
C19: 5.1 - Perdas
C20: 5.2 - Racionalização
C21: 5.3 - Reuso
C22: 6.1 - Captação
C23: 6.2 - Regularização
C24: 7.1 - Drenagem
C25: 7.2 - Escassez
C26: 8.1 - Capacitação
C27: 8.2 - Educação
C28: 8.3 - Comunicação
B36: Delib. CRH N° 246/2021 | BL36: Delib. CRH N° 190/2016, revogada a partir de 31/12/21
A37: Não se aplica | B37: 1.1 - Legislação | C37: 1.2 - Planejamento | D37: 2.1 - Plano | E37: 2.2 - Outorga | F37: 2.3 - Cobrança | G37: 2.4 - Enquadramento | H37: 2.5 - Redes de monitoramento e SI | I37: 2.6 - Integração | J37: 2.7 - CORHI | K37: 3.1 - Efluentes | L37: 3.2 - Poluição | M37: 3.3 - Resíduos | N37: 3.4 - Intervenções | O37: 4.1 - Controle erosão | P37: 4.2 - Soluções baseadas Natureza | Q37: 4.3 - Mananciais | R37: 5.1 - Perdas | S37: 5.2 - Racionalização | T37: 5.3 - Reuso | U37: 6.1 - Captação | V37: 6.2 - Regularização | W37: 7.1 - Drenagem | X37: 7.2 - Escassez | Y37: 8.1 - Capacitação | Z37: 8.2 - Educação | AA37: 8.3 - Comunicação | BH37: 2020 | BI37: 2021 | BL37: 1.1 - SI | BM37: 1.2 - Planejamento | BN37: 1.3 - Enquadramento | BO37: 1.4 - Monitoramento | BP37: 1.5 - Disponibilidade | BQ37: 1.6 - Legislação | BR37: 1.7 - Poluição | BS37: 2.1 - Planos | BT37: 2.2 - Outorga | BU37: 2.3 - Cobrança | BV37: 2.4 - Efetivação | BW37: 2.5 - Integração | BX37: 2.6 - CORHI | BY37: 3.1 - Efluentes | BZ37: 3.2 - Resíduos | CA37: 3.3 - Drenagem | CB37: 3.4 - Erosão | CC37: 3.5 - Intervenções | CD37: 4.1 - Mananciais | CE37: 4.2 - Vegetação | CF37: 5.1 - Perdas | CG37: 5.2 - Racionalização | CH37: 5.3 - Reuso | CI37: 6.1 - Usos | CJ37: 6.2 - Segurança | CK37: 6.3 - Aproveitamento | CL37: 7.1 - Criticidades | CM37: 7.2 - Inundações | CN37: 7.3 - Estiagens | CO37: 8.1 - Capacitação | CP37: 8.2 - Educação | CQ37: 8.3 - Comunicação
A38: Não se aplica | B38: PDC 1 e 2 | C38: PDC 1 e 2 | D38: PDC 1 e 2 | E38: PDC 1 e 2 | F38: PDC 1 e 2 | G38: PDC 1 e 2 | H38: PDC 1 e 2 | I38: PDC 1 e 2 | J38: PDC 1 e 2 | K38: Prioritário | L38: Prioritário | M38: Prioritário | N38: Prioritário | O38: Prioritário | P38: Prioritário | Q38: Prioritário | R38: Prioritário | S38: Prioritário | T38: Prioritário | U38: Prioritário | V38: Prioritário | W38: Prioritário | X38: Prioritário | Y38: Prioritário | Z38: Prioritário | AA38: Prioritário | BH38: 1.1 | BI38: 1.1 | BL38: PDC 1 e 2 | BM38: PDC 1 e 2 | BN38: PDC 1 e 2 | BO38: PDC 1 e 2 | BP38: PDC 1 e 2 | BQ38: PDC 1 e 2 | BR38: PDC 1 e 2 | BS38: PDC 1 e 2 | BT38: PDC 1 e 2 | BU38: PDC 1 e 2 | BV38: PDC 1 e 2 | BW38: PDC 1 e 2 | BX38: PDC 1 e 2 | BY38: Prioritário | BZ38: Prioritário | CA38: Prioritário | CB38: Prioritário | CC38: Prioritário | CD38: Prioritário | CE38: Prioritário | CF38: Prioritário | CG38: Prioritário | CH38: Prioritário | CI38: Prioritário | CJ38: Prioritário | CK38: Prioritário | CL38: Prioritário | CM38: Prioritário | CN38: Prioritário | CO38: Prioritário | CP38: Prioritário | CQ38: Prioritário
K39: Não prioritário | L39: Não prioritário | M39: Não prioritário | N39: Não prioritário | O39: Não prioritário | P39: Não prioritário | Q39: Não prioritário | R39: Não prioritário | S39: Não prioritário | T39: Não prioritário | U39: Não prioritário | V39: Não prioritário | W39: Não prioritário | X39: Não prioritário | Y39: Não prioritário | Z39: Não prioritário | AA39: Não prioritário | BH39: 1.2 | BI39: 1.2 | BY39: Não prioritário | BZ39: Não prioritário | CA39: Não prioritário | CB39: Não prioritário | CC39: Não prioritário | CD39: Não prioritário | CE39: Não prioritário | CF39: Não prioritário | CG39: Não prioritário | CH39: Não prioritário | CI39: Não prioritário | CJ39: Não prioritário | CK39: Não prioritário | CL39: Não prioritário | CM39: Não prioritário | CN39: Não prioritário | CO39: Não prioritário | CP39: Não prioritário | CQ39: Não prioritário
BH40: 1.3 | BI40: 1.3
BH41: 1.4 | BI41: 1.4
BH42: 1.5 | BI42: 1.5
BH43: 1.6 | BI43: 1.6
BH44: 1.7 | BI44: 1.7
A45: Sim | B45: Não | BH45: 2.1 | BI45: 2.1
A46: Sim | B46: Sim | BH46: 2.2 | BI46: 2.2
B47: Não | BH47: 2.3 | BI47: 2.3
BH48: 2.4 | BI48: 2.4
BH49: 2.5 | BI49: 2.5
BH50: 2.6 | BI50: 2.6
A51: Não se aplica | B51: Não se aplica | BH51: 3.1 | BI51: 3.1
A52: 1.1 - Legislação | B52: PDC 1 e 2 | BH52: 3.2 | BI52: 3.2
A53: 1.2 - Planejamento | BH53: 3.3 | BI53: 3.3
A54: 2.1 - Plano | BH54: 3.4 | BI54: 3.4
A55: 2.2 - Outorga | BH55: 3.5 | BI55: 3.5
A56: 2.3 - Cobrança | BH56: 4.1 | BI56: 4.1
A57: 2.4 - Enquadramento | BH57: 4.2 | BI57: 4.2
A58: 2.6 - Integração | BH58: 5.1 | BI58: 5.1
A59: 2.7 - CORHI | BH59: 5.2 | BI59: 5.2
A60: 3.1 - Efluentes | BH60: 5.3 | BI60: 5.3
A61: 3.2 - Poluição | BH61: 6.1 | BI61: 6.1
A62: 3.3 - Resíduos | BH62: 6.2 | BI62: 6.2
A63: 3.4 - Intervenções | BH63: 6.3 | BI63: 6.3
A64: 4.1 - Erosão | BH64: 7.1 | BI64: 7.1
A65: 4.2 - Conservação | BH65: 7.2 | BI65: 7.2
A66: 4.3 - Mananciais | BH66: 7.3 | BI66: 7.3
A67: 5.1 - Perdas | BH67: 8.1 | BI67: 8.1
A68: 5.2 - Racionalização | BH68: 8.2 | BI68: 8.2
A69: 5.3 - Reuso | BH69: 8.3 | BI69: 8.3
A70: 6.1 - Captação
A71: 6.2 - Regularização
A72: 7.1 - Drenagem
A73: 7.2 - Escassez
A74: 8.1 - Capacitação
A75: 8.2 - Educação
A76: 8.3 - Comunicação

Sheet Explicativo (hidden)
A1: Explicativo | B1: Função
A2: sheet PAPI_20_21
A3: Coluna A | B3: PDCs da Delib. CRH 190/2016 = lista suspensa (Operacional)
A4: Coluna B | B4: subPDCs da Delib. CRH 190/2016 = lista suspensa (Operacional)
A5: Coluna E | B5: formatação condicional para % = % tem que coincidir com o informado pelo CBH na Coluna O (Execução)
A6: Coluna F | B6: categorias de Executores de Empreendimentos Fehidro = lista suspensa (Operacional)
A7: Coluna G | B7: Área de abrangencia = delimitações possível em mapeamento = lista suspensa (Operacional)
A8: Coluna H | B8: Nome da área de abrangencia conforme consta no Empreendimento Fehidro ou TR ou similar (preenchimento livre)
A9: Coluna I | B9: R$ total que consta no PAPI vigente aprovado pelo CBH no RS
A10: Coluna J | B10: R$ total disponibilizado para investimento conforme Deliberação do COFEHIDRO
A11: Coluna K | B11: R$ total efetivamente pago/repassado neste exercício (Coluna L) ao Executor da Ação = tem que coincidir com informações do SINFehidro Quando R$ de K é maior que R$ de I, valor é destacado em vermelho = CBH tem que explicar a extrapolação dos recursos
A12: Coluna L | B12: ano/exercício ao qual se referem os dados informados
A13: Coluna M | B13: categorias de Fontes de recursos para os Executores da Ação = lista suspensa (Operacional)
A14: Coluna N | B14: Nome da Fonte de recursos conforme consta no Empreendimento Fehidro ou TR ou similar = tem que coincidir com informações do SinFEHIDRO
A15: Coluna O | B15: Informações relevantes sobre a execução Física e Financeira da Ação = tem que coincidir com a execução do Empreendimento e informações do SinFEHIDRO
A17: sheet PAPI_22_23
A18: Coluna A | B18: PDCs da Delib. CRH 246/2021 = lista suspensa (Operacional)
A19: Coluna B | B19: subPDCs da Delib. CRH 246/2021 = lista suspensa (Operacional)
A20: Coluna E | B20: formatação condicional para % = % tem que coincidir com o informado pelo CBH na Coluna O (Execução)
A21: Coluna F | B21: categorias de Executores de Empreendimentos Fehidro = lista suspensa (Operacional)
A22: Coluna G | B22: Área de abrangencia = delimitações possível em mapeamento = lista suspensa (Operacional)
A23: Coluna H | B23: Nome da área de abrangencia conforme consta no Empreendimento Fehidro ou TR ou similar (preenchimento livre)
A24: Coluna I | B24: R$ total que consta no PAPI vigente aprovado pelo CBH no RS
A25: Coluna J | B25: R$ total disponibilizado para investimento conforme Deliberação do COFEHIDRO
A26: Coluna K | B26: R$ total efetivamente pago/repassado neste exercício (Coluna L) ao Executor da Ação = tem que coincidir com informações do SINFehidro Quando R$ de K é maior que R$ de I, valor é destacado em vermelho = CBH tem que explicar a extrapolação dos recursos
A27: Coluna L | B27: ano/exercício ao qual se referem os dados informados
A28: Coluna M | B28: categorias de Fontes de recursos para os Executores da Ação = lista suspensa (Operacional)
A29: Coluna N | B29: Nome da Fonte de recursos conforme consta no Empreendimento Fehidro ou TR ou similar = tem que coincidir com informações do SinFEHIDRO
A30: Coluna O | B30: Informações relevantes sobre a execução Física e Financeira da Ação = tem que coincidir com a execução do Empreendimento e informações do SinFEHIDRO
A32: sheet Consolidação | B32: DEVE SER BLOQUEADA PARA ALTERAÇÕES
A34: Coluna A | B34: PDCs da Delib. CRH 190/2016 = lista suspensa (Operacional)
A35: Colunas B C D | B35: Cálculos com os valores de Recurso financeiro Executado 2020 (sheet PAPI_20_21; Coluna K) para cada fonte FEHIDRO e para outras (soma da demais fontes)
A36: Colunas E F G | B36: Cálculos com os valores de Recurso financeiro Executado 2021 (sheet PAPI_20_21; Coluna K) para cada fonte FEHIDRO e para outras (soma da demais fontes)
A37: Coluna H | B37: PDCs da Delib. CRH 246/2021 = lista suspensa (Operacional)
A38: Colunas H I J | B38: Cálculos com os valores de Recurso financeiro Executado 2022 (sheet PAPI_22_23; Coluna K) para cada fonte FEHIDRO e para outras (soma da demais fontes)
A39: Colunas K L M | B39: Cálculos com os valores de Recurso financeiro Executado 2023 (sheet PAPI_22_23; Coluna K) para cada fonte FEHIDRO e para outras (soma da demais fontes)

Sheet de-para 246 190 (hidden)
A1: 246 | B1: 190 | C1: Coluna1 | E1: 246 | F1: 190 | G1: Coluna1 | H1: Coluna12 | J1: 190 | K1: 246 | M1: 190 | N1: 246
A2: 1.1 | B2: 1.6 | E2: 1.1 | F2: 1.6 | J2: 1.1 | K2: 2.5 | M2: 1.1 | N2: 2.5
A3: 1.2 | B3: 1.2 | E3: 1.2 | F3: 1.2 | G3: 1.5 | H3: 1.7 | J3: 1.2 | K3: 1.2 | M3: 1.2 | N3: 1.2
A4: 2.1 | B4: 2.1 | E4: 2.1 | F4: 2.1 | J4: 1.3 | K4: 2.4 | M4: 1.3 | N4: 2.4
A5: 2.2 | B5: 2.2 | E5: 2.2 | F5: 2.2 | J5: 1.4 | K5: 2.5 | M5: 1.4 | N5: 2.5
A6: 2.3 | B6: 2.3 | E6: 2.3 | F6: 2.3 | J6: 1.5 | K6: 6.1 | M6: 1.5 | N6: 1.2
A7: 2.4 | B7: 1.3 | E7: 2.4 | F7: 1.3 | G7: 2.4 | J7: 1.6 | K7: 1.1 | M7: 1.6 | N7: 1.1
A8: 2.4 | B8: 2.4 | E8: 2.5 | F8: 1.1 | G8: 1.4 | H8: 7.1 | J8: 1.7 | K8: 3.2 | M8: 1.7 | N8: 1.2
A9: 2.5 | B9: 1.1 | C9: 1.4 | E9: 2.6 | F9: 2.5 | J9: 2.1 | K9: 2.1 | M9: 2.1 | N9: 2.1
A10: 2.6 | B10: 2.5 | E10: 2.7 | F10: 2.6 | J10: 2.2 | K10: 2.2 | M10: 2.2 | N10: 2.2
A11: 2.7 | B11: 2.6 | E11: 3.1 | F11: 3.1 | J11: 2.3 | K11: 2.3 | M11: 2.3 | N11: 2.3
A12: 3.1 | B12: 3.1 | E12: 3.2 | J12: 2.4 | K12: 2.4 | M12: 2.4 | N12: 2.4
A13: 3.2 | B13: 1.7 | E13: 3.3 | F13: 3.2 | J13: 2.5 | K13: 2.6 | M13: 2.5 | N13: 2.6
A14: 3.3 | B14: 3.2 | E14: 3.4 | F14: 3.5 | J14: 2.6 | K14: 2.7 | M14: 2.6 | N14: 2.7
A15: 3.4 | B15: 3.5 | E15: 4.1 | F15: 3.4 | J15: 3.1 | K15: 3.1 | M15: 3.1 | N15: 3.1
A16: 4.1 | B16: 3.4 | E16: 4.2 | F16: 4.2 | J16: 3.2 | K16: 3.3 | M16: 3.2 | N16: 3.3
A17: 4.2 | B17: 4.2 | E17: 4.3 | F17: 4.1 | J17: 3.3 | K17: 7.1 | M17: 3.4 | N17: 4.1
A18: 4.3 | B18: 4.1 | E18: 5.1 | F18: 5.1 | J18: 3.4 | K18: 4.1 | M18: 3.5 | N18: 3.4
A19: 5.1 | B19: 5.1 | E19: 5.2 | F19: 5.2 | J19: 3.5 | K19: 3.4 | M19: 4.1 | N19: 4.3
A20: 5.2 | B20: 5.2 | E20: 5.3 | F20: 5.3 | J20: 4.1 | K20: 4.3 | M20: 4.2 | N20: 4.2
A21: 5.3 | B21: 5.3 | E21: 6.1 | J21: 4.2 | K21: 4.2 | M21: 5.1 | N21: 5.1
A22: 6.1 | B22: 1.5 | C22: 6.2 | E22: 6.2 | F22: 6.2 | J22: 5.1 | K22: 5.1 | M22: 5.2 | N22: 5.2
A23: 6.2 | B23: 6.1 | C23: 6.3 | E23: 7.1 | F23: 7.2 | J23: 5.2 | K23: 5.2 | M23: 5.3 | N23: 5.3
A24: 7.1 | B24: 3.3 | C24: 7.2 | E24: 7.2 | F24: 7.3 | J24: 5.3 | K24: 5.3 | M24: 6.2 | N24: 6.2
A25: 7.2 | B25: 7.1 | C25: 7.3 | E25: 8.1 | F25: 8.1 | J25: 6.1 | K25: 6.2 | M25: 7.1 | N25: 2.5
A26: 8.1 | B26: 8.1 | E26: 8.2 | F26: 8.2 | J26: 6.2 | K26: 6.1 | M26: 7.2 | N26: 7.1
A27: 8.2 | B27: 8.2 | E27: 8.3 | F27: 8.3 | J27: 6.3 | K27: 6.2 | M27: 7.3 | N27: 7.2
A28: 8.3 | B28: 8.3 | J28: 7.1 | K28: 7.2 | M28: 8.1 | N28: 8.1
J29: 7.2 | K29: 7.1 | M29: 8.2 | N29: 8.2
J30: 7.3 | K30: 7.2 | M30: 8.3 | N30: 8.3
J31: 8.1 | K31: 8.1
J32: 8.2 | K32: 8.2
J33: 8.3 | K33: 8.3
